Department,Account,Date,Amount,Fund,Description,VendorPayee
City Clerk,Other profess & tech services,01/03/2022,47.19,General Fund,12/21 MM CCO CC Fees,Fiserv EFT
Community Resources,Other profess & tech services,01/03/2022,563.84,Golf Course Enterprise Fund,12/21 R&F HME ST CC Fees,Auth Net/Fiserv EFT
Community Resources,Other profess & tech services,01/03/2022,1265.08,Golf Course Enterprise Fund,12/21 R&F FOXHW CC Fees,Auth Net/Fiserv EFT
Community Resources,Other profess & tech services,01/03/2022,897.68,Golf Course Enterprise Fund,12/21 R&F HMEST-2529 CC Fees,Fiserv EFT
Community Resources,Other profess & tech services,01/03/2022,1536.75,Golf Course Enterprise Fund,12/21 R&F FOXHW CC Fees,Fiserv EFT
Community Resources,Other profess & tech services,01/03/2022,32.37,General Fund,12/21 R&F WRC CC Fees,Fiserv EFT
Community Resources,Other profess & tech services,01/03/2022,768.11,General Fund,12/21 R&F CARM CC Fees,Fiserv EFT
Community Resources,Other profess & tech services,01/03/2022,973.65,General Fund,12/21 R&F GMRC CC Fees,Fiserv EFT
Community Resources,Other profess & tech services,01/03/2022,137.30,General Fund,12/21 R&F CC CCC Fees,Fiserv EFT
Community Resources,Other profess & tech services,01/03/2022,359.02,General Fund,12/21 R&F LINK CC Fees,Fiserv EFT
Community Resources,Other profess & tech services,01/03/2022,496.80,General Fund,12/21 R&F CWRC CC Fees,Fiserv EFT
Community Resources,Other profess & tech services,01/03/2022,82.93,General Fund,12/21 R&F CR CC Fees,Fiserv EFT
Community Resources,Other profess & tech services,01/03/2022,503.51,Open Space Fund,12/21 R&F BCLP CC Fees,Fiserv EFT
Community Resources,Other profess & tech services,01/03/2022,490.42,"Heritage, Culture & Arts Fund",12/21 R&F LCC CC Fees,Fiserv EFT
Community Resources,Other profess & tech services,01/03/2022,541.85,"Heritage, Culture & Arts Fund",12/21 R&F HLBP CC Fees,Fiserv EFT
Community Resources,Other profess & tech services,01/03/2022,187.22,"Heritage, Culture & Arts Fund",12/21 R&F WH CC Fees,Fiserv EFT
Community Resources,Other profess & tech services,01/03/2022,933.85,"Heritage, Culture & Arts Fund",12/21 R&F LCC SW CC Fees,Fiserv EFT
Community Resources,Other profess & tech services,01/03/2022,3550.73,General Fund,12/21 MM RTOL CC Fees,Fiserv EFT
Community Resources,"Printing, copying & binding",01/03/2022,2292.17,Golf Course Enterprise Fund,SCORECARDS HOMESTEAD,GOLF CORE INC
Community Resources,Travel - auto expense,01/03/2022,66.08,General Fund,Mileage Reimbursement,"FEDAK, NESTOR L"
Municipal Court,Other profess & tech services,01/03/2022,794.47,General Fund,12/21 MC CC Fees,Fiserv EFT
Municipal Court,Other profess & tech services,01/03/2022,29.62,General Fund,12/21 MC Bond CC Fees,Fiserv EFT
Municipal Court,Other profess & tech services,01/03/2022,850.57,General Fund,12/21 MC Online Ct CC Fees,Fiserv EFT
Municipal Court,Training,01/03/2022,460.00,General Fund,2022 CMJA Dues,COLORADO MUNICIPAL JUDGES ASSOCIATION
Police,Cleaning & janitorial services,01/03/2022,160.00,General Fund,Dudley Janitorial Services,CARNATION BUILDING SERVICE INC
Police,Cleaning & janitorial services,01/03/2022,160.00,General Fund,Dudley Janitorial Services,CARNATION BUILDING SERVICE INC
Police,Other profess & tech services,01/03/2022,103.97,General Fund,12/21 MM PD Records CC Fees,Fiserv EFT
Public Works,Electricity,01/03/2022,522.35,General Fund,2021 Electricity,XCEL ENERGY
Public Works,Other profess & tech services,01/03/2022,338.41,Water Enterprise Fund,12/21 WSS Online CC Fees,Fiserv EFT
Public Works,Other profess & tech services,01/03/2022,2763.70,Sewer Enterprise Fund,12/21 WSS Online CC Fees,Fiserv EFT
Public Works,Other profess & tech services,01/03/2022,2538.10,Stormwater Enterprise Fund,12/21 WSS Online CC Fees,Fiserv EFT
Public Works,Other profess & tech services,01/03/2022,11981.03,General Fund,12/21 MM PW Online CC Fees,Fiserv EFT
Public Works,Other profess & tech services,01/03/2022,52.22,General Fund,12/21 MM PW CC Fees,Fiserv EFT
Public Works,Other services,01/03/2022,898.92,General Fund,2021 RTL Transmissions,UTILITY NOTIFICATION CTR OF COLORADO
Community Resources,Other utility services,01/04/2022,12.60,General Fund,1206 WADSWORTH BLVD,XCEL ENERGY
Community Resources,Other utility services,01/04/2022,22.60,General Fund,1301 CARR ST,XCEL ENERGY
Community Resources,Other utility services,01/04/2022,95.04,General Fund,5601 W 13TH AVE-MOUNTAIR,XCEL ENERGY
Community Resources,Other utility services,01/04/2022,12.42,General Fund,110 S CODY ST,XCEL ENERGY
Community Resources,Water,01/04/2022,11.96,Open Space Fund,2021 10060 W. Lehigh Ave,LAKEHURST WATER
Community Resources,Water,01/04/2022,9.67,Open Space Fund,2021 4950 S JELLISON WY,LAKEHURST WATER
Community Resources,Water,01/04/2022,197.90,General Fund,445 S ALLISON PKWY,CONSOLIDATED MUTUAL WATER
Community Resources,Water,01/04/2022,33.50,General Fund,445 S ALLISON PKWY,CONSOLIDATED MUTUAL WATER
Community Resources,Water,01/04/2022,142.50,General Fund,445 S ALLISON PKWY,CONSOLIDATED MUTUAL WATER
Community Resources,Water,01/04/2022,30.70,Open Space Fund,5602 W ALAMEDA AVE-IRRG,CONSOLIDATED MUTUAL WATER
Community Resources,Water,01/04/2022,22.70,Open Space Fund,302 S AMES ST,CONSOLIDATED MUTUAL WATER
Community Resources,Water,01/04/2022,22.70,Open Space Fund,5823 W ALAMEDA AVE,CONSOLIDATED MUTUAL WATER
Community Resources,Water,01/04/2022,22.70,Open Space Fund,6647 W ALAMEDA AVE,CONSOLIDATED MUTUAL WATER
Community Resources,Water,01/04/2022,30.70,Open Space Fund,294 S DEPEW ST IRRG,CONSOLIDATED MUTUAL WATER
Community Resources,Water,01/04/2022,22.70,Open Space Fund,180 s wadsworth blvd,CONSOLIDATED MUTUAL WATER
Community Resources,Water,01/04/2022,22.70,Open Space Fund,295 S WADSWORTH BLVD,CONSOLIDATED MUTUAL WATER
Community Resources,Water,01/04/2022,222.70,General Fund,480 S ALLISON PKWY,CONSOLIDATED MUTUAL WATER
Community Resources,Water,01/04/2022,292.90,General Fund,470 S ALLISON PKWY,CONSOLIDATED MUTUAL WATER
Community Resources,Water,01/04/2022,83.50,General Fund,2345 ROUTT ST,CONSOLIDATED MUTUAL WATER
Community Resources,Water,01/04/2022,30.70,Open Space Fund,7998 W ALAMEDA AVE,CONSOLIDATED MUTUAL WATER
Community Resources,Water,01/04/2022,50.70,Open Space Fund,7183 W ALAMEDA AVE,CONSOLIDATED MUTUAL WATER
Community Resources,Water,01/04/2022,30.70,Open Space Fund,6016 W ALAMEDA AVE,CONSOLIDATED MUTUAL WATER
Community Resources,Water,01/04/2022,22.70,Open Space Fund,6790 W ALAMEDA ABE,CONSOLIDATED MUTUAL WATER
Community Resources,Water,01/04/2022,30.70,Open Space Fund,7002 W ALAMEDA AVE RT OF WAY,CONSOLIDATED MUTUAL WATER
Community Resources,Water,01/04/2022,30.70,Open Space Fund,11290 W 17TH AVE,CONSOLIDATED MUTUAL WATER
Community Resources,Water,01/04/2022,28.10,Open Space Fund,12655 W COLFAX AVE,CONSOLIDATED MUTUAL WATER
Mayor and City Council,Dues and memberships,01/04/2022,88942.00,General Fund,2022 Membership Dues,COLORADO MUNICIPAL LEAGUE
Mayor and City Council,Meal expense,01/04/2022,108.98,General Fund,Metro Mayors/Metro Denver EDC,"PAUL, ADAM A"
Mayor and City Council,Meal expense,01/04/2022,52.74,General Fund,Ward 4 Councilor/Discussion,"PAUL, ADAM A"
Mayor and City Council,Travel - auto expense,01/04/2022,46.26,General Fund,Mileage Reimbursement,"PAUL, ADAM A"
Municipal Court,Other profess & tech services,01/04/2022,5.00,General Fund,12/21 Muni Ct ECheck Fee,Authorize.Net EFT
Municipal Court,Other profess & tech services,01/04/2022,68.00,General Fund,12/21 Muni Ct CC Trans Fee,Authorize.Net EFT
Municipal Court,Other profess & tech services,01/04/2022,3.10,General Fund,12/21 Muni Ct CC Batch Fee,Authorize.Net EFT
Municipal Court,Other profess & tech services,01/04/2022,25.00,General Fund,01/22 Muni Ct Gateway Fee,Authorize.Net EFT
Community Resources,Other profess & tech services,01/05/2022,83.83,Golf Course Enterprise Fund,12/21 R&F HME ST CC Fees,American Express EFT
Community Resources,Other profess & tech services,01/05/2022,217.08,Golf Course Enterprise Fund,12/21 R&F FOXHW CC Fees,American Express EFT
Community Resources,"Printing, copying & binding",01/05/2022,1537.69,Open Space Fund,2021 Printing of annual passes,COLORADO ADVERTISING PRODUCTS INC
Community Resources,Training,01/05/2022,750.00,Grants Fund,Resilience Facilitation Fee,DYNAMIC COACHING SYSTEMS LLC
Community Resources,Travel - auto expense,01/05/2022,18.48,Grants Fund,MILEAGE BRADY Dec  2021,"BRADY, ANN S"
Planning,Other general supplies,01/05/2022,16.00,General Fund,2021 FILTER SYSTEM RENTAL,ROCKY MOUNTAIN BOTTLED WATER
Planning,Other small tools & equipment,01/05/2022,16.00,General Fund,2021 FILTER SYSTEM RENTAL,ROCKY MOUNTAIN BOTTLED WATER
Police,Contractor services,01/05/2022,234457.00,General Fund,2022 ASSESSMENT,FOOTHILLS ANIMAL SHELTER
Police,Other profess & tech services,01/05/2022,3391.90,Grants Fund,LEAD-JCPH,JEFFERSON COUNTY PUBLIC HEALTH
Police,Other profess & tech services,01/05/2022,2996.18,Grants Fund,,JEFFERSON COUNTY PUBLIC HEALTH
Police,Other profess & tech services,01/05/2022,2123.68,Grants Fund,,JEFFERSON COUNTY PUBLIC HEALTH
Public Works,Electricity,01/05/2022,128864.44,General Fund,2021 Recurring Charges,XCEL ENERGY
Public Works,Electricity-traffic signals,01/05/2022,308.75,General Fund,2021 Electricity,XCEL ENERGY
Public Works,Electricity-traffic signals,01/05/2022,2635.14,General Fund,2021 Electricity,XCEL ENERGY
Public Works,Electricity-traffic signals,01/05/2022,2635.14,General Fund,2021 Electricity,XCEL ENERGY
Public Works,Other Charges-Sidewalks,01/05/2022,4013.00,Grants Fund,TEMPORARY CONSTRUCTION EASEMEN,KELLY A ORR
Public Works,Repairs & maint-plant/system,01/05/2022,34119.16,General Fund,2021 Non-Recurring Chrgs/Cr,XCEL ENERGY
City Clerk,Other profess & tech services,01/06/2022,15.00,General Fund,12/21 MM  CCO CC FEES,Plug & Pay Technologies EFT
City Manager,Dues and memberships,01/06/2022,10000.00,Economic Development Fund,2022 membership,WEST METRO CHAMBER OF COMMERCE
City Manager,Dues and memberships,01/06/2022,20000.00,Economic Development Fund,2022 Membership,JEFFERSON CTY ECONOMIC DEV. CORPORATION
City Manager,Meal expense,01/06/2022,52.28,General Fund,DBG,"HODGSON, KATHLEEN E"
City Manager,Meal expense,01/06/2022,41.60,General Fund,GSA,"HODGSON, KATHLEEN E"
City Manager,Meal expense,01/06/2022,39.79,General Fund,Boulder City Manager,"HODGSON, KATHLEEN E"
City Manager,Promotional expense,01/06/2022,10000.00,Economic Development Fund,2022 Support,ALAMEDA CONNECTS
City Manager,Redevelopment Costs Reimbursed,01/06/2022,5639.00,Economic Development Fund,LWA2BB 11/21,Belmar Hotel Accom Shbk 11/21
Community Resources,Land,01/06/2022,33140.00,TABOR Fund,Earnest 2951 S Wadsworth Blvd,Fidelity National Title EFT
Community Resources,Other property services,01/06/2022,5872.00,General Fund,2021-GENERATOR TESTING,RESA SERVICE LLC
Community Resources,Other utility services,01/06/2022,2874.68,General Fund,Parfet Monthly Bill,XCEL ENERGY
Community Resources,Other utility services,01/06/2022,29.71,General Fund,1295 S. REED ST. -LINK SIGN,XCEL ENERGY
Community Resources,Other utility services,01/06/2022,94273.45,General Fund,LARGE MONTHLY BILL,XCEL ENERGY
Community Resources,Temporary Art -non cap,01/06/2022,300.00,"Heritage, Culture & Arts Fund",Landmark Installation,CUTTYUP LIMITED
Community Resources,Travel - auto expense,01/06/2022,45.64,"Heritage, Culture & Arts Fund",2021 Mileage Reimbursement,"WILLIAMSON, CHANDLER GENE"
Community Resources,Travel - auto expense,01/06/2022,31.04,"Heritage, Culture & Arts Fund",2021 Mileage Reimbursement,"WILLIAMSON, CHANDLER GENE"
Police,Meal expense,01/06/2022,88.20,General Fund,REIMBURSE-LUNCHEON C. JANSON,"LAABS, AMY MARIE"
Police,Other profess & tech services,01/06/2022,15.00,General Fund,12/21 MM  PDREC CC FEES,Plug & Pay Technologies EFT
Public Works,Other profess & tech services,01/06/2022,15.00,General Fund,12/21 MM  BP CC FEES,Plug & Pay Technologies EFT
Community Resources,Other profess & tech services,01/07/2022,2759.25,General Fund,M & V - YEAR 2,MCKINSTRY ESSENTION LLC
Community Resources,Other profess & tech services,01/07/2022,2759.25,General Fund,M & V - YEAR 2,MCKINSTRY ESSENTION LLC
Police,Travel - other,01/07/2022,711.65,General Fund,2021 - TRAVEL REIMB,"MCNITT JR, THEODORE R"
Community Resources,Advertising,01/10/2022,800.00,General Fund,2021 Photography,WILLIAM GUERRIERO
Community Resources,Advertising,01/10/2022,3150.00,Golf Course Enterprise Fund,Golf 2022 Issue,O'KEEFE PUBLISHING INC
Community Resources,Advertising,01/10/2022,3150.00,Golf Course Enterprise Fund,Golf 2022 Issue,O'KEEFE PUBLISHING INC
Community Resources,Training,01/10/2022,80.50,General Fund,TR 15695 Reconciliation,"BLAIR, LEE LEON"
Community Resources,Training,01/10/2022,76.94,General Fund,TR 15722 Reconciliation,"BLAIR, LEE LEON"
Community Resources,Travel - auto expense,01/10/2022,73.92,Golf Course Enterprise Fund,""2021 Mileage Reimbursement"","THOMAS, KELLY E"
Community Resources,Travel - auto expense,01/10/2022,23.52,Golf Course Enterprise Fund,""2021 Mileage Reimbursement"","THOMAS, KELLY E"
Community Resources,Travel - other,01/10/2022,120.00,Golf Course Enterprise Fund,TR 15678 Per Diem,MARGARET SCHMICK
Community Resources,Travel - other,01/10/2022,120.00,Golf Course Enterprise Fund,TR 15678 Per Diem,MARGARET SCHMICK
Community Resources,Travel - other,01/10/2022,120.00,Golf Course Enterprise Fund,TR 15677 Per Diem,PAULA BAUER
Community Resources,Travel - other,01/10/2022,120.00,Golf Course Enterprise Fund,TR 15677 Per Diem,PAULA BAUER
Police,Clothing & Uniforms,01/10/2022,3279.01,General Fund,Four vests,ANGEL ARMOR LLC
Police,Repairs & maint - equipment,01/10/2022,49.00,General Fund,Toshiba Copier,TOSHIBA FINANCIAL SERVICE (WELLS FARGO)
Police,Training,01/10/2022,850.00,General Fund,Training-Kayla Martinez,COLORADO LAW ENFORCEMENT DRIVING SKILLS
City Clerk,Sanitation,01/11/2022,520.00,General Fund,City Wide Secure Shred Service,BAYAUD ENTERPRISES INC
Community Resources,Alarm systems,01/11/2022,8471.25,General Fund,"Fire, Burglar and Panic Alarm",JDE FIRE AND SECURITY LLC
Community Resources,Alarm systems,01/11/2022,2823.75,Open Space Fund,Account Alloc Adjustment,JDE FIRE AND SECURITY LLC
Community Resources,Bldg Construction Costs,01/11/2022,23045.22,Capital Improvement Fund,Emergency Shoring Services for,JOHN ROHRER CONTRACTING COMPANY INC
Community Resources,Bldg Construction Costs,01/11/2022,111416.90,Open Space Fund,Morse Park Satellite,CROSSLAND CONSTRUCTION COMPANY INC
Community Resources,Building material supplies,01/11/2022,4883.75,General Fund,tree of life memorial,W & E BAUM BRONZE TABLET CORP
Community Resources,Construc Costs-Site Improve,01/11/2022,4900.00,Open Space Fund,Harrison Park Survey Services,ESI LAND SURVEYING LLC
Community Resources,Consulting Costs-Site Improve,01/11/2022,1375.00,Open Space Fund,Irrigation Design Consultant -,IRRIGATION TECHNOLOGIES
Community Resources,Contractor services,01/11/2022,285.00,General Fund,snow removal,THE CUTTING EDGE LANDSCAPING INC
Community Resources,Contractor services,01/11/2022,430.00,General Fund,Power Sweeping -Parking Garage,CAM SERVICES
Community Resources,Contractor services,01/11/2022,285.00,Open Space Fund,snow removal,THE CUTTING EDGE LANDSCAPING INC
Community Resources,Contractor services,01/11/2022,529.32,Open Space Fund,2021 Utility locates,UTILITY NOTIFICATION CTR OF COLORADO
Community Resources,Contractor services,01/11/2022,861.12,Open Space Fund,maintenance fee,POO FREE PARKS
Community Resources,Other profess & tech services,01/11/2022,322.92,General Fund,maintenance fee,POO FREE PARKS
Community Resources,Other profess & tech services,01/11/2022,6000.00,"Heritage, Culture & Arts Fund",Snow Removal Services  RFQ 503,APPLIED PROPERTY SERVICES
Community Resources,Other profess & tech services,01/11/2022,665.00,"Heritage, Culture & Arts Fund",Snow Removal Services  RFQ 503,APPLIED PROPERTY SERVICES
Community Resources,Other profess & tech services,01/11/2022,800.00,Open Space Fund,Water Quaility Services add'l,AQUA BUENOS LLC
Community Resources,Other profess & tech services,01/11/2022,60.00,"Heritage, Culture & Arts Fund",Figure Drawing Model,DAVID L DAGGETT
Community Resources,Other profess & tech services,01/11/2022,396.00,General Fund,YOUTH Basketball & Other Sport,DEWLANEY SPORTS OFFICIALS
Community Resources,Other profess & tech services,01/11/2022,3017.00,General Fund,ADULT Basketball OfficialS,DEWLANEY SPORTS OFFICIALS
Community Resources,Other utility services,01/11/2022,195.46,General Fund,680 S. Harlan St.-Solar,XCEL ENERGY
Community Resources,Travel - auto expense,01/11/2022,5.54,General Fund,2021 Mileage Reimbursement,"BROWN, CHRISTA J"
Community Resources,Vehicle/Equipment Chargebacks,01/11/2022,26649.00,General Fund,E20 T4 ZTS Compact Excavator,BOBCAT OF THE ROCKIES
Community Resources,Water,01/11/2022,109.44,Open Space Fund,2021 water hydrant use,DENVER WATER DEPARTMENT
Community Resources,Water,01/11/2022,138.70,General Fund,14800 W ALAMEDA PKWY FORSBERG,CONSOLIDATED MUTUAL WATER
Community Resources,Water,01/11/2022,30.70,General Fund,2951 SIMMS DR,CONSOLIDATED MUTUAL WATER
Human Resources,Dues and memberships,01/11/2022,9000.00,General Fund,Membership: Feb. 22 - Jan. 23,EMPLOYERS COUNCIL SERVICES INC
Human Resources,Dues and memberships,01/11/2022,7499.00,General Fund,Annual membership,COMPENSATION TOOL LLC
Information Technology,Telecommunications,01/11/2022,33854.00,General Fund,2022-120 Mitel Maint,HI COUNTRY WIRE & TELEPHONE
Lkwd Reinvestment Authority,Redevelopment Costs Reimbursed,01/11/2022,6188572.03,Lakewood Reinvestment Auth CIF,2021 Redev Costs,Continuum Lakewood Devel EFT
Planning,Consulting,01/11/2022,500.00,General Fund,2021 40WESTARTS & ARTLINE MAP,ELLE POWELL ART LTD
Planning,Other profess & tech services,01/11/2022,910.00,Grants Fund,Jefferson County,JEFFERSON COUNTY HOUSING AUTHORITY
Planning,Other profess & tech services,01/11/2022,720.00,Grants Fund,2021 CV CDBG 0202 R Lucero,GOLDEN HOURS MOTEL
Planning,Other profess & tech services,01/11/2022,720.00,Grants Fund,2021 CV CDBG 0203 D Parker,MESA MOTOR INN
Police,Consulting,01/11/2022,11395.00,General Fund,Niche RMS Data Quality,BLUE SKIES ASSOCIATES LIMITED
Police,Other profess & tech services,01/11/2022,79489.31,General Fund,IGA 2022 CONTRIBUTION,JEFFERSON COUNTY JUVENILE ASSESSMENT CTR
Police,Travel - other,01/11/2022,238.40,General Fund,TRAVEL REIMBURSE - LK21-046805,"LANGLEY, CHRISTOPHER M"
Public Works,Building material supplies,01/11/2022,1974.65,General Fund,8744 MAPO Salt,CENTRAL SALT LLC
Public Works,Building material supplies,01/11/2022,2062.18,General Fund,8744 MAPO Salt,CENTRAL SALT LLC
Public Works,Building material supplies,01/11/2022,1896.94,General Fund,8744 MAPO Salt,CENTRAL SALT LLC
Public Works,Building material supplies,01/11/2022,1967.29,General Fund,8744 MAPO Salt,CENTRAL SALT LLC
Public Works,Building material supplies,01/11/2022,1917.39,General Fund,8744 MAPO Salt,CENTRAL SALT LLC
Public Works,Building material supplies,01/11/2022,2240.50,General Fund,8744 MAPO Salt,CENTRAL SALT LLC
Public Works,Building material supplies,01/11/2022,2263.41,General Fund,8744 MAPO Salt,CENTRAL SALT LLC
Public Works,Building material supplies,01/11/2022,3883.86,General Fund,8744 MAPO Salt,CENTRAL SALT LLC
Public Works,Building material supplies,01/11/2022,1975.47,General Fund,8744 MAPO Salt,CENTRAL SALT LLC
Public Works,Building material supplies,01/11/2022,4008.20,General Fund,8744 MAPO Salt,CENTRAL SALT LLC
Public Works,Building material supplies,01/11/2022,3968.94,General Fund,8744 MAPO Salt,CENTRAL SALT LLC
Public Works,Building material supplies,01/11/2022,4545.63,General Fund,8744 MAPO Salt,CENTRAL SALT LLC
Public Works,Computer software & supplies,01/11/2022,12095.00,Sewer Enterprise Fund,Year 3 IT Pipes Platform &,DAWSON INFRASTRUCTURE SOLUTIONS LLC
Public Works,Construc Costs-Streets/Roadway,01/11/2022,7368.45,Capital Improvement Fund,Annual Crackseal Program,COATINGS INC
Public Works,Contractor services,01/11/2022,1022.00,General Fund,Barricade Services as needed,STATEWIDE SAFETY SYSTEMS
Public Works,Misc expenses,01/11/2022,250.00,General Fund,CLASS A CDL TEST,JEFFCO TRAINING DEPARTMENT
Public Works,Other profess & tech services,01/11/2022,90.15,Water Enterprise Fund,12/21 WSS CC Fees,Invoice Cloud EFT
Public Works,Other profess & tech services,01/11/2022,736.20,Sewer Enterprise Fund,12/21 WSS CC Fees,Invoice Cloud EFT
Public Works,Other profess & tech services,01/11/2022,676.10,Stormwater Enterprise Fund,12/21 WSS CC Fees,Invoice Cloud EFT
City Manager,Other profess & tech services,01/12/2022,1000.00,General Fund,Professional Services,MARK E. KOEBRICH
City Manager,Rental of equipment & vehicles,01/12/2022,15.30,General Fund,Annual Estimated Meter Charges,KONICA MINOLTA BUSINESS SOLUTIONS USA IN
City Manager,Rental of equipment & vehicles,01/12/2022,3853.43,General Fund,Annual Estimated Meter Charges,KONICA MINOLTA BUSINESS SOLUTIONS USA IN
Community Resources,Bldg Construction Costs,01/12/2022,2692.00,Open Space Fund,2021-MP MAINT MATERIALS,A G WASSENAAR INC
Community Resources,Cleaning & janitorial services,01/12/2022,861.50,Golf Course Enterprise Fund,Custodial Services - FH,OPENWORKS
Community Resources,Cleaning & janitorial services,01/12/2022,861.50,Golf Course Enterprise Fund,Custodial Services - HMSTD,OPENWORKS
Community Resources,Construc Costs-Site Improve,01/12/2022,858.00,Conservation Trust Fund,2021-ADDENBROOKE MATERIALS,A G WASSENAAR INC
Community Resources,Construction Costs-Other Impro,01/12/2022,230675.20,Open Space Fund,Lakewood Park Lower Tennis,RENNER SPORTS SURFACES
Community Resources,Construction Costs-Other Impro,01/12/2022,1473.00,Open Space Fund,2021-Lakewood Park Materials,A G WASSENAAR INC
Community Resources,Construction Costs-Other Impro,01/12/2022,120359.30,Open Space Fund,Lakewood Park Lower Tennis,RENNER SPORTS SURFACES
Community Resources,Consulting Costs-Other Improve,01/12/2022,25657.00,TABOR Fund,CO 1 Add'l Scope of Services,MULLER ENGINEERING CO INC
Community Resources,Consulting Costs-Other Improve,01/12/2022,35597.71,TABOR Fund,CO 1 Add'l Scope of Services,MULLER ENGINEERING CO INC
Community Resources,Consulting Costs-Site Improve,01/12/2022,5059.24,Open Space Fund,CO 2 Add'l SOW Ext to 4/30/23,MULLER ENGINEERING CO INC
Community Resources,Gasoline,01/12/2022,3128.53,General Fund,bear Creek Lake Park Bulk Fuel,HILL PETROLEUM/HILL ENTERPRISES
Community Resources,Other profess & tech services,01/12/2022,60.00,"Heritage, Culture & Arts Fund",Figure Drawing Model,JILLIAN QUINTANA
Community Resources,Other profess & tech services,01/12/2022,1060.08,General Fund,Head Start Food Services,LITTLE ANGELS FOOD SERVICES
Community Resources,Other profess & tech services,01/12/2022,66.00,"Heritage, Culture & Arts Fund",Lakewood Heritage Center,ARMORED KNIGHTS INC
Community Resources,Other profess & tech services,01/12/2022,66.00,"Heritage, Culture & Arts Fund",Washington Heights,ARMORED KNIGHTS INC
Community Resources,Other profess & tech services,01/12/2022,195.00,General Fund,Link Recreation Center,ARMORED KNIGHTS INC
Community Resources,Other profess & tech services,01/12/2022,195.00,General Fund,Green Mountain Rec. Center,ARMORED KNIGHTS INC
Community Resources,Other profess & tech services,01/12/2022,195.00,General Fund,Carmody Recreation Center,ARMORED KNIGHTS INC
Community Resources,Other profess & tech services,01/12/2022,195.00,General Fund,Charles Whitlock Rec. Center,ARMORED KNIGHTS INC
Community Resources,Other profess & tech services,01/12/2022,66.00,General Fund,Clements Community Ctr,ARMORED KNIGHTS INC
Community Resources,Other profess & tech services,01/12/2022,456.00,Golf Course Enterprise Fund,Fox Hollow Golf Course,ARMORED KNIGHTS INC
Community Resources,Other profess & tech services,01/12/2022,456.00,Golf Course Enterprise Fund,Homestead Golf Course,ARMORED KNIGHTS INC
Community Resources,Other profess & tech services,01/12/2022,240.00,General Fund,Bear Creek Lake Park,ARMORED KNIGHTS INC
Community Resources,Other profess & tech services,01/12/2022,66.00,General Fund,Wilbur Rogers Center,ARMORED KNIGHTS INC
Community Resources,Recreational supplies,01/12/2022,341.50,"Heritage, Culture & Arts Fund",Gift card refund,CANDANCE BRINCKMAN
Community Resources,Repair & maintenance supplies,01/12/2022,311.82,General Fund,2021 work completed link pool,AQUATIC CHEMICAL SOLUTIONS INC
Community Resources,Training,01/12/2022,412.00,General Fund,Dave Masterson-2022 registrati,COLORADO CHAPTER ICC
Community Resources,Training,01/12/2022,412.00,General Fund,Jeff Christiansen 2022 registr,COLORADO CHAPTER ICC
Community Resources,Training,01/12/2022,412.00,General Fund,2022 Tom Zeman registration,COLORADO CHAPTER ICC
Community Resources,Water,01/12/2022,36.20,General Fund,9150 W CORNELL PL,DENVER WATER DEPARTMENT
Community Resources,Water,01/12/2022,17.20,General Fund,7001 W STANFORD AVE,DENVER WATER DEPARTMENT
Community Resources,Water,01/12/2022,124.06,General Fund,9600 W DARTMOUTH PL,DENVER WATER DEPARTMENT
Community Resources,Water,01/12/2022,45.93,General Fund,4751 S KIPLING PKWY,DENVER WATER DEPARTMENT
Community Resources,Water,01/12/2022,69.93,General Fund,3350 S KIPLING ST,DENVER WATER DEPARTMENT
Community Resources,Water,01/12/2022,69.93,Open Space Fund,3333 S FIELD ST,DENVER WATER DEPARTMENT
Community Resources,Water,01/12/2022,69.93,Open Space Fund,3250 S CARR ST,DENVER WATER DEPARTMENT
Community Resources,Water,01/12/2022,29.90,General Fund,11498 W HAMPDEN AVE,DENVER WATER DEPARTMENT
Community Resources,Water,01/12/2022,190.50,General Fund,11500 W HAMPDEN AVE,DENVER WATER DEPARTMENT
Community Resources,Water,01/12/2022,68.59,General Fund,1001 SIMMS MCDONNELL PK,HIGH VIEW WATER DISTRICT
Community Resources,Water,01/12/2022,24.07,General Fund,1235 SIMMS ST,HIGH VIEW WATER DISTRICT
Community Resources,Water,01/12/2022,24.07,General Fund,1185 SIMMS ST,HIGH VIEW WATER DISTRICT
Community Resources,Water,01/12/2022,24.07,General Fund,1175 SIMMS ST,HIGH VIEW WATER DISTRICT
Community Resources,Water,01/12/2022,25.41,Open Space Fund,1001 KIPLING ST,HIGH VIEW WATER DISTRICT
Community Resources,Water,01/12/2022,35.99,General Fund,ACROSSFROM11308COLLINSAV,HIGH VIEW WATER DISTRICT
Finance,Other profess & tech services,01/12/2022,195.00,General Fund,Civic Center / Finance,ARMORED KNIGHTS INC
Finance,"Printing, copying & binding",01/12/2022,3412.28,General Fund,Sales Tax Lockbox Services,"UMB BANK, N.A."
Finance,"Printing, copying & binding",01/12/2022,-3412.28,General Fund,Sales Tax Lockbox Services,"UMB BANK, N.A."
Lkwd Reinvestment Authority,Other profess & tech services,01/12/2022,325.00,Lakewood Reinvestment Auth CIF,2021  LRA special counsel,HOFFMANN PARKER WILSON & CARBERRY PC
Lkwd Reinvestment Authority,Other profess & tech services,01/12/2022,325.00,Lakewood Reinvestment Auth CIF,2021  LRA special counsel,HOFFMANN PARKER WILSON & CARBERRY PC
Planning,Construc Costs-Site Improve,01/12/2022,26119.44,Grants Fund,Morse Park Playground,T2 CONSTRUCTION
Planning,Consulting,01/12/2022,10786.00,Grants Fund,West Colfax Pedestrian Safety,MICHAEL BAKER INTERNATIONAL INC
Police,Cleaning & janitorial services,01/12/2022,2342.72,General Fund,Police Uniform Cleaning & Svcs,SUNSHINE CLEANERS & LAUNDRY
Police,Other profess & tech services,01/12/2022,1120.00,General Fund,Psychological & Counceling Svc,NICOLETTI-FLATER ASSOCIATES PLLPC
Police,Towing,01/12/2022,285.00,General Fund,TOWING,ACE TOWING ENTERPRISES
Public Works,Building material supplies,01/12/2022,6351.35,Capital Improvement Fund,Curbing Material,QWICK KURB INC
Public Works,Building material supplies,01/12/2022,-6351.35,Capital Improvement Fund,Curbing Material,QWICK KURB INC
City Manager,Construction Costs-Other Impro,01/13/2022,2040.00,Economic Development Fund,Task Order 68  -EC noise reduc,JAMES A WILLIAMSON
Community Resources,Chem. & lab. supplies,01/13/2022,496.25,General Fund,Pool Treatment Chemicals,THE AQUEOUS SOLUTION INC.
Community Resources,Chem. & lab. supplies,01/13/2022,329.70,General Fund,Pool Treatment Chemicals,THE AQUEOUS SOLUTION INC.
Community Resources,Cleaning & janitorial services,01/13/2022,14684.77,General Fund,Custodial Services for City's,ISS FACILITY SERVICES INC
Community Resources,Cleaning & janitorial services,01/13/2022,414.00,General Fund,Custodial Services per RFP,CARNATION BUILDING SERVICE INC
Community Resources,Construc Costs-Site Improve,01/13/2022,1355.00,Open Space Fund,Park Signage Installation for,COLORADO SIGN SYSTEMS
Community Resources,Consulting,01/13/2022,2010.50,Open Space Fund,2021 professional Services,LEONARD RICE ENGINEERS INC
Community Resources,Consulting Costs-Other Improve,01/13/2022,14828.31,Open Space Fund,"Peakview Access Road, Parking",RESPEC COMPANY LLC
Community Resources,Consulting Costs-Other Improve,01/13/2022,21141.69,Open Space Fund,"Peakview Access Road, Parking",RESPEC COMPANY LLC
Community Resources,Consulting Costs-Other Improve,01/13/2022,3602.06,Open Space Fund,CO 1 Add'l Services,RESPEC COMPANY LLC
Community Resources,Consulting Costs-Site Improve,01/13/2022,3244.90,Open Space Fund,Carmody Outdoor Pickleball,THE ARCHITERRA GROUP INC
Community Resources,Other profess & tech services,01/13/2022,5000.00,Open Space Fund,O'Kane Park Structures -,STILES ENVIRONMENTAL & INDUSTRIAL
Community Resources,Other utility services,01/13/2022,12.42,General Fund,1930 S. Bear Creek Blvd,XCEL ENERGY
Community Resources,Other utility services,01/13/2022,13.24,General Fund,9401 Morrison Rd,XCEL ENERGY
Community Resources,Other utility services,01/13/2022,13.79,General Fund,9555 W. Cornell Pl,XCEL ENERGY
Community Resources,Other utility services,01/13/2022,270.76,General Fund,2230 S. Kipling St,XCEL ENERGY
Community Resources,Other utility services,01/13/2022,2983.50,General Fund,Homestead at Fox Hollow Monthl,XCEL ENERGY
Community Resources,Recreational supplies,01/13/2022,229.00,"Heritage, Culture & Arts Fund",Washington Heights Repair,MARK'S KILN REPAIR
Community Resources,Recreational supplies,01/13/2022,1887.00,General Fund,Task Order 69 - Guardrail,JAMES A WILLIAMSON
Community Resources,Repairs & maint - bldgs,01/13/2022,2500.00,General Fund,inv 343190 Patterson Cottages,A G WASSENAAR INC
Community Resources,Repairs & maint - equipment,01/13/2022,50435.60,Capital Improvement Fund,Elevator Modernization Project,TK ELEVATOR CORPORATION
Community Resources,Repairs & maint - equipment,01/13/2022,48923.43,Capital Improvement Fund,Elevator Modernization Project,TK ELEVATOR CORPORATION
Community Resources,Repairs & maint - equipment,01/13/2022,50435.61,Capital Improvement Fund,Elevator Modernization Project,TK ELEVATOR CORPORATION
Community Resources,Repairs & maint - equipment,01/13/2022,55452.08,Capital Improvement Fund,Elevator Modernization Project,TK ELEVATOR CORPORATION
Community Resources,Repairs & maint - equipment,01/13/2022,48187.89,Capital Improvement Fund,Elevator Modernization Project,TK ELEVATOR CORPORATION
Community Resources,Repairs & maint - equipment,01/13/2022,54315.99,Capital Improvement Fund,Elevator Modernization Project,TK ELEVATOR CORPORATION
Community Resources,Travel - auto expense,01/13/2022,80.98,General Fund,MILEAGE FERRANDINO December 21,"FERRANDINO, CAMILLE"
Finance,Other profess & tech services,01/13/2022,7793.55,General Fund,Add'l Funds ok per PS,CHANDLER ASSET MANAGEMENT  INC
Finance,Other profess & tech services,01/13/2022,691.58,General Fund,Add'l Funds ok per PS,CHANDLER ASSET MANAGEMENT  INC
Information Technology,Computer equipment-non cap,01/13/2022,7200.00,Equipment Replacement Fund,"PC, Laptop & Monitor",DHE COMPUTER SYSTEMS LLC
Information Technology,Computer equipment-non cap,01/13/2022,1800.00,Equipment Replacement Fund,"PC, Laptop & Monitor",DHE COMPUTER SYSTEMS LLC
Mayor and City Council,Computer software & supplies,01/13/2022,2000.00,General Fund,Lakewood Speaks - PO 11175,PEOPLE SPEAK LLC
Municipal Court,Books & Publications,01/13/2022,135.00,General Fund,2021 CO Revised Statutes,COLORADO DISTRICT ATTORNEYS COUNCIL
Municipal Court,Misc expenses,01/13/2022,250.00,General Fund,inv 3519 Counseling svcs,J BROWER PSYCHOLOGICAL SERVICES &
Municipal Court,Office supplies,01/13/2022,9.57,General Fund,Restock VB Office Supplies,LAKEWOOD MUNICIPAL COURT
Municipal Court,Office supplies,01/13/2022,29.90,General Fund,Restock Probation Office Suppl,LAKEWOOD MUNICIPAL COURT
Municipal Court,Office supplies,01/13/2022,17.40,General Fund,Restock Marshals Office Suppli,LAKEWOOD MUNICIPAL COURT
Municipal Court,Other profess & tech services,01/13/2022,375.00,General Fund,MH L676324 L665521 L683875/76,LAW OFFICE OF KEVIN C FLESCH LLC
Municipal Court,Other services,01/13/2022,99.00,General Fund,Juror Fee Reimbursement,LAKEWOOD MUNICIPAL COURT
Planning,Board and commissions,01/13/2022,2200.00,General Fund,Lakewood Speaks - PO 11175,PEOPLE SPEAK LLC
Planning,Other profess & tech services,01/13/2022,14230.78,Grants Fund,CDBG Activity - Coronavirus,THE ACTION CENTER
Police,Misc expenses,01/13/2022,2000.00,General Fund,INVESTIGATION PURPOSES,H & B ENTERPRISES
Police,Other profess & tech services,01/13/2022,8425.00,General Fund,inv 3519 Counseling svcs,J BROWER PSYCHOLOGICAL SERVICES &
Public Works,Building material supplies,01/13/2022,2968.90,General Fund,Ice Slicer RS - per CDOT Award,ENVIROTECH SERVICES INC
Public Works,Building material supplies,01/13/2022,2933.62,General Fund,Ice Slicer RS - per CDOT Award,ENVIROTECH SERVICES INC
Public Works,Building material supplies,01/13/2022,3018.28,General Fund,Ice Slicer RS - per CDOT Award,ENVIROTECH SERVICES INC
Public Works,Building material supplies,01/13/2022,2754.90,General Fund,Ice Slicer RS - per CDOT Award,ENVIROTECH SERVICES INC
Public Works,Building material supplies,01/13/2022,62.91,General Fund,850 Parfet Street,XCEL ENERGY
Public Works,Construc Costs-Streets/Roadway,01/13/2022,196.98,Capital Improvement Fund,Overlay and Patching Program,MARTIN MARIETTA MATERIALS
Public Works,Construc Costs-Streets/Roadway,01/13/2022,221.48,Capital Improvement Fund,Overlay and Patching Program,MARTIN MARIETTA MATERIALS
Public Works,Construc Costs-Streets/Roadway,01/13/2022,299.88,Capital Improvement Fund,Overlay and Patching Program,MARTIN MARIETTA MATERIALS
Public Works,Construc Costs-Streets/Roadway,01/13/2022,197.47,Capital Improvement Fund,Overlay and Patching Program,MARTIN MARIETTA MATERIALS
Public Works,Construc Costs-Streets/Roadway,01/13/2022,198.45,Capital Improvement Fund,Overlay and Patching Program,MARTIN MARIETTA MATERIALS
Public Works,Construc Costs-Streets/Roadway,01/13/2022,154.35,Capital Improvement Fund,Overlay and Patching Program,MARTIN MARIETTA MATERIALS
Public Works,Construc Costs-Streets/Roadway,01/13/2022,74.97,Capital Improvement Fund,Overlay and Patching Program,MARTIN MARIETTA MATERIALS
Public Works,Construc Costs-Streets/Roadway,01/13/2022,202.86,Capital Improvement Fund,Overlay and Patching Program,MARTIN MARIETTA MATERIALS
Public Works,Construc Costs-Streets/Roadway,01/13/2022,83.30,Capital Improvement Fund,Overlay and Patching Program,MARTIN MARIETTA MATERIALS
Public Works,Construc Costs-Streets/Roadway,01/13/2022,1062.81,Capital Improvement Fund,Overlay and Patching Program,MARTIN MARIETTA MATERIALS
Public Works,Construc Costs-Streets/Roadway,01/13/2022,198.94,Capital Improvement Fund,Overlay and Patching Program,MARTIN MARIETTA MATERIALS
Public Works,Construc Costs-Streets/Roadway,01/13/2022,196.98,Capital Improvement Fund,Overlay and Patching Program,MARTIN MARIETTA MATERIALS
Public Works,Construc Costs-Streets/Roadway,01/13/2022,197.47,Capital Improvement Fund,Overlay and Patching Program,MARTIN MARIETTA MATERIALS
Public Works,Construc Costs-Streets/Roadway,01/13/2022,148.47,Capital Improvement Fund,Overlay and Patching Program,MARTIN MARIETTA MATERIALS
Public Works,Consulting Costs-Sidewalks,01/13/2022,2354.00,TABOR Fund,Material Testing -inv#339794,A G WASSENAAR INC
Public Works,Consulting Costs-Traffic Signa,01/13/2022,525.00,TABOR Fund,Material Testing -inv#336577,A G WASSENAAR INC
Public Works,Contractor services,01/13/2022,13340.00,General Fund,Annual Snow Removal Services,WEED WRANGLERS
Public Works,Other Charges-Sidewalks,01/13/2022,1487.00,Grants Fund,ADDITIONAL PAYMENT TCE & SOD,TIMOTHY J CARABELLO
City Attorney,Employee Benefits,01/14/2022,16954.90,General Fund,General Fund,Employee Benefits
City Attorney,Salaries and Wages,01/14/2022,46202.86,General Fund,General Fund,Salaries and Wages
City Clerk,Employee Benefits,01/14/2022,7895.10,General Fund,General Fund,Employee Benefits
City Clerk,Salaries and Wages,01/14/2022,19335.96,General Fund,General Fund,Salaries and Wages
City Manager,Employee Benefits,01/14/2022,3392.01,Economic Development Fund,Economic Development Fund,Employee Benefits
City Manager,Employee Benefits,01/14/2022,17456.91,General Fund,General Fund,Employee Benefits
City Manager,Salaries and Wages,01/14/2022,9928.00,Economic Development Fund,Economic Development Fund,Salaries and Wages
City Manager,Salaries and Wages,01/14/2022,40723.15,General Fund,General Fund,Salaries and Wages
Community Resources,Consulting services-Bldg Const,01/14/2022,619.50,Capital Improvement Fund,1060 Quail -Fleet Car Wash,HARRIS KOCHER SMITH
Community Resources,Employee Benefits,01/14/2022,22866.51,Golf Course Enterprise Fund,Golf Course Enterprise Fund,Employee Benefits
Community Resources,Employee Benefits,01/14/2022,28783.84,Open Space Fund,Open Space Fund,Employee Benefits
Community Resources,Employee Benefits,01/14/2022,17040.46,"Heritage, Culture & Arts Fund","Heritage, Culture & Arts Fund",Employee Benefits
Community Resources,Employee Benefits,01/14/2022,20824.81,Grants Fund,Grants Fund,Employee Benefits
Community Resources,Employee Benefits,01/14/2022,111469.51,General Fund,General Fund,Employee Benefits
Community Resources,Other property services,01/14/2022,554.54,General Fund,Quail St Roof Repairs,CRW INC
Community Resources,Repairs & maint - equipment,01/14/2022,58941.26,Capital Improvement Fund,Elevator Modernization Project,TK ELEVATOR CORPORATION
Community Resources,Salaries and Wages,01/14/2022,42511.75,Grants Fund,Grants Fund,Salaries and Wages
Community Resources,Salaries and Wages,01/14/2022,55209.01,"Heritage, Culture & Arts Fund","Heritage, Culture & Arts Fund",Salaries and Wages
Community Resources,Salaries and Wages,01/14/2022,74016.44,Open Space Fund,Open Space Fund,Salaries and Wages
Community Resources,Salaries and Wages,01/14/2022,64710.94,Golf Course Enterprise Fund,Golf Course Enterprise Fund,Salaries and Wages
Community Resources,Salaries and Wages,01/14/2022,310318.99,General Fund,General Fund,Salaries and Wages
Finance,Employee Benefits,01/14/2022,25984.94,General Fund,General Fund,Employee Benefits
Finance,Salaries and Wages,01/14/2022,74818.53,General Fund,General Fund,Salaries and Wages
Human Resources,Employee Benefits,01/14/2022,11030.57,General Fund,General Fund,Employee Benefits
Human Resources,Salaries and Wages,01/14/2022,32025.31,General Fund,General Fund,Salaries and Wages
Information Technology,Employee Benefits,01/14/2022,39375.54,General Fund,General Fund,Employee Benefits
Information Technology,Salaries and Wages,01/14/2022,109676.66,General Fund,General Fund,Salaries and Wages
Lkwd Reinvestment Authority,Employee Benefits,01/14/2022,462.02,Lakewood Reinvestment Auth CIF,Lakewood Reinvestment Auth CIF,Employee Benefits
Lkwd Reinvestment Authority,Salaries and Wages,01/14/2022,1724.40,Lakewood Reinvestment Auth CIF,Lakewood Reinvestment Auth CIF,Salaries and Wages
Mayor and City Council,Employee Benefits,01/14/2022,5690.74,General Fund,General Fund,Employee Benefits
Mayor and City Council,Salaries and Wages,01/14/2022,7437.12,General Fund,General Fund,Salaries and Wages
Municipal Court,Employee Benefits,01/14/2022,38751.38,General Fund,General Fund,Employee Benefits
Municipal Court,Salaries and Wages,01/14/2022,93922.59,General Fund,General Fund,Salaries and Wages
Non-Departmental,Employee Benefits,01/14/2022,4368.41,General Fund,General Fund,Employee Benefits
Non-Departmental,Employee Benefits,01/14/2022,9463.62,General Fund,General Fund,Employee Benefits
Non-Departmental,Salaries and Wages,01/14/2022,81223.07,General Fund,General Fund,Salaries and Wages
Planning,Board and commissions,01/14/2022,200.00,General Fund,Lakewood Speaks - PO 11175,PEOPLE SPEAK LLC
Planning,Employee Benefits,01/14/2022,25654.33,General Fund,General Fund,Employee Benefits
Planning,Employee Benefits,01/14/2022,1802.74,Grants Fund,Grants Fund,Employee Benefits
Planning,Salaries and Wages,01/14/2022,3692.00,Grants Fund,Grants Fund,Salaries and Wages
Planning,Salaries and Wages,01/14/2022,67633.16,General Fund,General Fund,Salaries and Wages
Police,Employee Benefits,01/14/2022,1740.40,General Fund,General Fund,Employee Benefits
Police,Employee Benefits,01/14/2022,478.34,Grants Fund,Grants Fund,Employee Benefits
Police,Employee Benefits,01/14/2022,480133.75,General Fund,General Fund,Employee Benefits
Police,Salaries and Wages,01/14/2022,2800.67,Grants Fund,Grants Fund,Salaries and Wages
Police,Salaries and Wages,01/14/2022,1370792.83,General Fund,General Fund,Salaries and Wages
Public Works,Employee Benefits,01/14/2022,92814.49,General Fund,General Fund,Employee Benefits
Public Works,Employee Benefits,01/14/2022,835.40,Grants Fund,Grants Fund,Employee Benefits
Public Works,Employee Benefits,01/14/2022,16498.85,Capital Improvement Fund,Capital Improvement Fund,Employee Benefits
Public Works,Employee Benefits,01/14/2022,7686.09,Sewer Enterprise Fund,Sewer Enterprise Fund,Employee Benefits
Public Works,Employee Benefits,01/14/2022,14855.86,Stormwater Enterprise Fund,Stormwater Enterprise Fund,Employee Benefits
Public Works,Employee Benefits,01/14/2022,1657.26,Water Enterprise Fund,Water Enterprise Fund,Employee Benefits
Public Works,Salaries and Wages,01/14/2022,2532.48,Grants Fund,Grants Fund,Salaries and Wages
Public Works,Salaries and Wages,01/14/2022,255031.94,General Fund,General Fund,Salaries and Wages
Public Works,Salaries and Wages,01/14/2022,47021.17,Capital Improvement Fund,Capital Improvement Fund,Salaries and Wages
Public Works,Salaries and Wages,01/14/2022,17099.22,Sewer Enterprise Fund,Sewer Enterprise Fund,Salaries and Wages
Public Works,Salaries and Wages,01/14/2022,45358.36,Stormwater Enterprise Fund,Stormwater Enterprise Fund,Salaries and Wages
Public Works,Salaries and Wages,01/14/2022,3940.34,Water Enterprise Fund,Water Enterprise Fund,Salaries and Wages
Community Resources,Bldg Construction Costs,01/18/2022,213458.89,Open Space Fund,Morse Park Satellite,CROSSLAND CONSTRUCTION COMPANY INC
Community Resources,Bldg Construction Costs,01/18/2022,1227.16,Open Space Fund,CO 4 Add'l Work + Credit,CROSSLAND CONSTRUCTION COMPANY INC
Community Resources,Bldg Construction Costs,01/18/2022,805.00,Capital Improvement Fund,Indoor Facility Asset,PATRICK ENGINEERING INC
Community Resources,Board and commissions,01/18/2022,59.30,"Heritage, Culture & Arts Fund",LCC Nametags,LASER IMAGING
Community Resources,Building material supplies,01/18/2022,1350.00,General Fund,memorial tree letters,W & E BAUM BRONZE TABLET CORP
Community Resources,Chem. & lab. supplies,01/18/2022,906.90,General Fund,Pool Treatment Chemicals,THE AQUEOUS SOLUTION INC.
Community Resources,Construc Costs-Site Improve,01/18/2022,116896.17,Conservation Trust Fund,Addenbrooke Park Pond and,EDGE CONTRACTING INC
Community Resources,Construction Costs-Other Impro,01/18/2022,16567.71,Conservation Trust Fund,Morse Park Pool Cover,AQUATIC CHEMICAL SOLUTIONS INC
Community Resources,Construction Costs-Other Impro,01/18/2022,434.41,Conservation Trust Fund,Shipping for Morse Park,AQUATIC CHEMICAL SOLUTIONS INC
Community Resources,Construction Costs-Other Impro,01/18/2022,141613.65,Open Space Fund,Construction Costs-Other Impro,WADSWORTH GOLF CONSTRUCTION COMPANY
Community Resources,Construction Costs-Other Impro,01/18/2022,44650.00,Golf Course Enterprise Fund,CO 7 Add'l Work,LEXICON
Community Resources,Consulting services-Bldg Const,01/18/2022,1000.00,Capital Improvement Fund,Fleet Car Wash Rehab per,WALKER CONSULTANTS INC
Community Resources,Consulting services-Bldg Const,01/18/2022,4928.00,Open Space Fund,Architectural Consulting,FORM+WORKS DESIGN GROUP LLC
Community Resources,Consulting services-Bldg Const,01/18/2022,862.50,Open Space Fund,CO 3 Add'l Const Svcs,HCL ENGINEERING & SURVEYING LLC
Community Resources,Contractor services,01/18/2022,2625.00,General Fund,Snow & Ice Control - Garage &,JPL CARES
Community Resources,Contractor services,01/18/2022,3606.25,General Fund,Snow & Ice Control - Garage &,JPL CARES
Community Resources,Contractor services,01/18/2022,3536.25,General Fund,Snow & Ice Control - Garage &,JPL CARES
Community Resources,Natural gas,01/18/2022,27562.40,General Fund,Add'l Funds ok per PB,SYMMETRY ENERGY SOLUTIONS LLC
Community Resources,Other profess & tech services,01/18/2022,2039.90,General Fund,Head Start Food Services,LITTLE ANGELS FOOD SERVICES
Community Resources,Other profess & tech services,01/18/2022,9200.00,Open Space Fund,O'Kane Farm Well- Site Design,FORM+WORKS DESIGN GROUP LLC
Community Resources,Recreational supplies,01/18/2022,45.00,General Fund,Trash Collection Services,WASTE MANAGEMENT OF DENVER
Community Resources,Repairs & maint - bldgs,01/18/2022,38189.73,Capital Improvement Fund,Fleet Maintenance Campus,ORC CONCRETE SOLUTIONS LLC
Community Resources,Repairs & maint - bldgs,01/18/2022,6812.00,Capital Improvement Fund,CO 1 Add'l Work,ORC CONCRETE SOLUTIONS LLC
Community Resources,Sanitation,01/18/2022,123.50,"Heritage, Culture & Arts Fund",Trash Collection Services,WASTE MANAGEMENT OF DENVER
Community Resources,Sanitation,01/18/2022,675.76,General Fund,Trash Collection Services,WASTE MANAGEMENT OF DENVER
Community Resources,Sanitation,01/18/2022,220.00,Golf Course Enterprise Fund,Trash Collection Services,WASTE MANAGEMENT OF DENVER
Community Resources,Sanitation,01/18/2022,142.50,Golf Course Enterprise Fund,Trash Collection Services,WASTE MANAGEMENT OF DENVER
Community Resources,Sanitation,01/18/2022,2723.78,General Fund,Trash Collection Services,WASTE MANAGEMENT OF DENVER
Community Resources,Sanitation,01/18/2022,120.00,Golf Course Enterprise Fund,Trash Collection Services,WASTE MANAGEMENT OF DENVER
Community Resources,Sanitation,01/18/2022,123.50,"Heritage, Culture & Arts Fund",Camp Christmas Extra Pick-Up,WASTE MANAGEMENT OF DENVER
Community Resources,Sanitation,01/18/2022,2006.25,Open Space Fund,Camp Christmas Extra Pick-Up,WASTE MANAGEMENT OF DENVER
Community Resources,Training,01/18/2022,128.00,Golf Course Enterprise Fund,TR 15720 Per Diem GCSAA,"LUNA, CHARLES DAVID"
Community Resources,Training,01/18/2022,128.00,Golf Course Enterprise Fund,TR 15720 Per Diem GCSAA,"LUNA, CHARLES DAVID"
Finance,Postage & delivery,01/18/2022,234.67,General Fund,Processing Charge,ROCKY MOUNTAIN MAIL SERVICES LLC
Information Technology,Computer software & supplies,01/18/2022,6900.00,General Fund,Citrix Workspace Renewal,CDW GOVERNMENT LLC
Information Technology,Other profess & tech services,01/18/2022,2287.50,Equipment Replacement Fund,IDR equipment Installation,COLORADO ELECTRIC AND POWER SYSTEMS
Information Technology,Other profess & tech services,01/18/2022,11750.00,General Fund,2021-067 City Radio Install,BEARCOM
Information Technology,Other profess & tech services,01/18/2022,650.00,General Fund,add'l amt - City radio install,BEARCOM
Lkwd Reinvestment Authority,Redevelopment Costs Reimbursed,01/18/2022,96408.15,Lakewood Reinvestment Auth CIF,Reimb 12/21 for 11/21 rtns,Walmart Stores Inc EFT
Police,Clothing & Uniforms,01/18/2022,150.00,General Fund,Boots-$150 Allowance,"SHAY, MATTHEW W"
Police,Other small tools & equipment,01/18/2022,60.00,General Fund,Correct Account #,WASTE MANAGEMENT OF DENVER
Police,Vehicle/Equipment Chargebacks,01/18/2022,4960.20,General Fund,2019 Toyota 4Runner - CMATT,AUTONATION TOYOTA ARAPAHOE
Public Works,Construc Costs-Sewer Lines,01/18/2022,243.14,Sewer Enterprise Fund,811 LOCATES,UTILITY NOTIFICATION CTR OF COLORADO
Public Works,Construc Costs-Water Lines,01/18/2022,243.15,Water Enterprise Fund,811 LOCATES,UTILITY NOTIFICATION CTR OF COLORADO
Public Works,Consulting Costs-Sidewalks,01/18/2022,174.47,Grants Fund,1st Ave. Sidewalk,PINYON ENVIRONMENTAL
Public Works,Consulting Costs-Sidewalks,01/18/2022,468.43,Grants Fund,add to 1st Ave Sidewalk,PINYON ENVIRONMENTAL
Public Works,Contractor services,01/18/2022,7000.00,General Fund,Annual Snow Removal Services,YETTI CONTRACTORS INC
Public Works,Contractor services,01/18/2022,5920.00,General Fund,Annual Snow Removal Services,YETTI CONTRACTORS INC
Public Works,Contractor services,01/18/2022,420.00,General Fund,exhibit prep,PRECISION SURVEY & MAPPING INC
Public Works,Contractor services,01/18/2022,1086.13,Stormwater Enterprise Fund,Homeless Camp Abattement add'l,KEESEN ENTERPRISES INC
Public Works,Contractor services,01/18/2022,763.87,Stormwater Enterprise Fund,CO 1 Add'l Location,KEESEN ENTERPRISES INC
Public Works,Motor Vehicles,01/18/2022,32000.00,Equipment Replacement Fund,2019 Toyota 4Runner - CMATT,AUTONATION TOYOTA ARAPAHOE
Public Works,Other services,01/18/2022,1945.15,Stormwater Enterprise Fund,811 LOCATES,UTILITY NOTIFICATION CTR OF COLORADO
City Attorney,Books & Publications,01/19/2022,450.00,General Fund,2021 November Lexis Use,LEXISNEXIS PAYMENT CTR
City Attorney,Books & Publications,01/19/2022,450.00,General Fund,2021 November Lexis Use,LEXISNEXIS PAYMENT CTR
City Attorney,Dues and memberships,01/19/2022,1460.00,General Fund,Membership,IMLA
City Attorney,Dues and memberships,01/19/2022,325.00,General Fund,Attorney Registration,STATE OF COLORADO RCLE
City Attorney,Dues and memberships,01/19/2022,325.00,General Fund,Attorney Registration,STATE OF COLORADO RCLE
City Attorney,Dues and memberships,01/19/2022,325.00,General Fund,Attorney Registration,STATE OF COLORADO RCLE
City Attorney,Dues and memberships,01/19/2022,325.00,General Fund,Attorney Registration,STATE OF COLORADO RCLE
City Attorney,Meal expense,01/19/2022,-192.00,General Fund,MCAA Refund,240 UNION RESTAURANT
City Attorney,Office furn & equip-non cap,01/19/2022,164.91,General Fund,Chairs - Dorotik,AMAZON.COM
City Attorney,Office furn & equip-non cap,01/19/2022,391.05,General Fund,VeriDesk,AMAZON.COM
City Attorney,Office supplies,01/19/2022,1204.59,General Fund,Glass Whiteboard,AMAZON.COM
City Attorney,Office supplies,01/19/2022,105.03,General Fund,"Cutlery, Pens, writing pads",OFFICE DEPOT #1080
City Attorney,Office supplies,01/19/2022,466.72,General Fund,"Glass whiteboard, portable mon",AMAZON.COM
City Attorney,Other services,01/19/2022,12.92,General Fund,ICCES Filing Fees,CO DORA LICENSING
City Attorney,Postage & delivery,01/19/2022,69.82,General Fund,FeEx - LJones CAO/ Frank Law,FEDEX OFFICE  00004200
City Clerk,Books & Publications,01/19/2022,9.69,General Fund,Book for training,AMAZON.COM
City Clerk,Books & Publications,01/19/2022,7.99,General Fund,Book for staff,AMAZON.COM
City Clerk,Consulting,01/19/2022,308.00,General Fund,CBI Civilian Fingerprint Proce,CBI-IDENTIFICATION UNIT
City Clerk,Contractor services,01/19/2022,25.00,General Fund,SAVE Program,BURLINGTON FINANCE CENTER
City Clerk,Dues and memberships,01/19/2022,240.00,General Fund,IIMC Membership Renewal-  one,VWR INTERNATIONAL INC
City Clerk,Dues and memberships,01/19/2022,225.00,General Fund,NAGARA Membership - one staff,INTERNATIONAL ASSOCIATION
City Clerk,Legal publications,01/19/2022,554.60,General Fund,2021 Legal publications ordina,DENVER POST ADV-DAILY DE
City Clerk,Meal expense,01/19/2022,203.50,General Fund,Staff working lunch,PF CHANGS #9979
City Clerk,Misc expenses,01/19/2022,54.95,General Fund,Miscellaneous - gift for offic,KING SOOPERS #0127
City Clerk,Office supplies,01/19/2022,44.88,General Fund,Office supplies - 2022 calenda,AMAZON.COM
City Clerk,Office supplies,01/19/2022,32.00,General Fund,Office supplies - machine rent,ROCKY MOUNTAIN BOTTLED WA
City Clerk,Training,01/19/2022,10.00,General Fund,Training one staff member,FSP MILE HIGH DENVER CHAP
City Manager,Books & Publications,01/19/2022,40.87,General Fund,Subscription,D J WALL STREET JOURNA
City Manager,Books & Publications,01/19/2022,17.00,General Fund,Subscription,NYTIMES NYTIMES
City Manager,Books & Publications,01/19/2022,40.87,General Fund,Subscription,D J WALL STREET JOURNA
City Manager,Books & Publications,01/19/2022,2.99,General Fund,Storage per IT (auto-billed; n,APL APPLE ONLINE STORE
City Manager,Computer software & supplies,01/19/2022,5.14,General Fund,1x Final Cut Pro plugin ""Readi,APL APPLE ONLINE STORE
City Manager,Computer software & supplies,01/19/2022,34.99,General Fund,Creative Cloud Licensing CMO/W,ADOBE  ACROPRO SUBS
City Manager,Computer software & supplies,01/19/2022,139.96,Economic Development Fund,Creative Cloud Licensing ED,ADOBE  ACROPRO SUBS
City Manager,Construction Costs-Other Impro,01/19/2022,-106.80,Economic Development Fund,Tax Credit For Sound Boots For,HERCULES INDUSTRIES IN
City Manager,Construction Costs-Other Impro,01/19/2022,1530.80,Economic Development Fund,Sound Boots For HVAC Returns-,HERCULES INDUSTRIES IN
City Manager,Construction Costs-Other Impro,01/19/2022,500.00,Economic Development Fund,Carpet Repairs- Economic Devel,LARKIN AND ASSOCIATES LLC
City Manager,Construction Costs-Other Impro,01/19/2022,5591.70,Economic Development Fund,Sound Insulating Ceiling Tiles,WESTERN INTERIOR SUPPLY
City Manager,Dues and memberships,01/19/2022,105.00,General Fund,Membership dues (BG),WPY CCCMA
City Manager,Dues and memberships,01/19/2022,145.00,General Fund,Membership dues (KH),WPY CCCMA
City Manager,Dues and memberships,01/19/2022,2255.00,General Fund,NATOA membership dues,IN  NATL ASSN OF TELECOMM
City Manager,Dues and memberships,01/19/2022,557.95,General Fund,MailChimp monthly subscription,MAILCHIMP
City Manager,Meal expense,01/19/2022,55.55,General Fund,City Council - ward 2,FIRST WATCH - 341
City Manager,Meal expense,01/19/2022,53.50,General Fund,Westminster City Manager,TEDS MONTANA GRILL
City Manager,Meal expense,01/19/2022,11.35,Economic Development Fund,Meeting meal,SQ  MINT & SERIF
City Manager,Meal expense,01/19/2022,182.38,Economic Development Fund,Meeting Meal,PANERA BREAD #202446 P
City Manager,Meal expense,01/19/2022,7.37,Economic Development Fund,Meeting meal,TST  THE FRENCH PRESS - L
City Manager,Meal expense,01/19/2022,42.86,Economic Development Fund,Meeting meal,T STREET ROADHOUSE
City Manager,Meal expense,01/19/2022,31.09,Economic Development Fund,Meeting meal,SQ  STACK SUBS - BELMAR
City Manager,Meal expense,01/19/2022,322.00,General Fund,CMO holiday  staff meeting (ta,THE DEN AT FOX HOLLOW
City Manager,Office supplies,01/19/2022,121.35,General Fund,Restock inventory,ROCKY MOUNTAIN BOTTLED WA
City Manager,Office supplies,01/19/2022,5.79,General Fund,Office Supplies,KING SOOPERS #0127
City Manager,Office supplies,01/19/2022,33.79,General Fund,Office Supplies,AMAZON.COM
City Manager,Office supplies,01/19/2022,12.50,General Fund,Office Supplies,AMAZON.COM
City Manager,Office supplies,01/19/2022,54.95,General Fund,Office Supplies,AMAZON.COM
City Manager,Office supplies,01/19/2022,71.09,Economic Development Fund,Office Supplies,AMAZON.COM
City Manager,Office supplies,01/19/2022,7.99,Economic Development Fund,Office Supplies,AMAZON.COM
City Manager,Office supplies,01/19/2022,200.94,Economic Development Fund,office supplies,STAPLES
City Manager,Office supplies,01/19/2022,17.76,Economic Development Fund,office supplies,STAPLES
City Manager,Other Economic Incentives,01/19/2022,10000.00,Economic Development Fund,2021 Purvis Façade Grant,8830 W COLFAX AVE LLC
City Manager,Other profess & tech services,01/19/2022,34.99,General Fund,Creative Cloud Licensing CMO/P,ADOBE  ACROPRO SUBS
City Manager,Other profess & tech services,01/19/2022,34.99,General Fund,Creative Cloud Licensing CMO/T,ADOBE  ACROPRO SUBS
City Manager,Other profess & tech services,01/19/2022,69.98,General Fund,Creative Cloud Licensing CMO/C,ADOBE  ACROPRO SUBS
City Manager,Other profess & tech services,01/19/2022,2925.00,Economic Development Fund,Yearly Salesforce Payment,SALESFORCE.COM SERVICE
City Manager,Other profess & tech services,01/19/2022,3809.97,Economic Development Fund,Costar payment,COSTAR GROUP INC
City Manager,Other profess & tech services,01/19/2022,349.99,General Fund,Identity security (KH),NORTON  AP1348374149
City Manager,Other profess & tech services,01/19/2022,63.30,General Fund,City-wide enterprise account,ZOOM.US
City Manager,"Printing, copying & binding",01/19/2022,105.70,General Fund,Copy paper,LEWIS PAPER PLACE#3
City Manager,"Printing, copying & binding",01/19/2022,188.10,General Fund,Copy paper,LEWIS PAPER PLACE#3
City Manager,"Printing, copying & binding",01/19/2022,242.60,General Fund,Copy paper,LEWIS PAPER PLACE#3
City Manager,"Printing, copying & binding",01/19/2022,258.72,General Fund,Foam core board,ULINE   SHIP SUPPLIES
City Manager,"Printing, copying & binding",01/19/2022,61.26,General Fund,Laminating material,STAPLES
City Manager,"Printing, copying & binding",01/19/2022,361.87,General Fund,Banner stands and Copy paper,LEWIS PAPER PLACE#3
City Manager,"Printing, copying & binding",01/19/2022,1684.35,General Fund,Drum kits & toner for envelope,"RICOH USA, INC"
City Manager,"Printing, copying & binding",01/19/2022,146.08,General Fund,Copy paper,STAPLES
City Manager,"Printing, copying & binding",01/19/2022,249.40,General Fund,Envelopes,LEWIS PAPER PLACE#3
City Manager,"Printing, copying & binding",01/19/2022,215.94,General Fund,Plotter roll paper,LEWIS PAPER PLACE#3
City Manager,"Printing, copying & binding",01/19/2022,56.40,General Fund,Tabs for Budget document,CUSTOMIZED TABS INC
City Manager,"Printing, copying & binding",01/19/2022,15.60,General Fund,Large format laminating,STAPLES
City Manager,Promotional expense,01/19/2022,25.00,Economic Development Fund,News  Letter promotion,SQ  MINT & SERIF
City Manager,Radio & communications equip,01/19/2022,264.80,Equipment Replacement Fund,1x Camera Cage for Sony FX3,SQ  TILTA INC.
City Manager,Radio & communications equip,01/19/2022,919.98,Equipment Replacement Fund,1x Atomos HDMI monitor for Son,"B&H PHOTO, 800-606-6969"
City Manager,Radio & communications equip,01/19/2022,489.91,Equipment Replacement Fund,1x Watson battery charger for,"B&H PHOTO, 800-606-6969"
City Manager,Radio & communications equip,01/19/2022,128.00,Equipment Replacement Fund,1x SmallRig Rotating Handle fo,SMALLRIG TECHNOLOGY (H
City Manager,Radio & communications equip,01/19/2022,399.99,Equipment Replacement Fund,1x Nomatic camera backpack,AMAZON.COM
City Manager,Radio & communications equip,01/19/2022,449.99,Equipment Replacement Fund,1x PolarPro Variable ND Filter,POLAR PRO FILTERS
City Manager,Radio & communications equip,01/19/2022,204.88,Equipment Replacement Fund,1x VisibleDust sensor cleaning,"B&H PHOTO, 800-606-6969"
City Manager,Radio & communications equip,01/19/2022,899.00,Equipment Replacement Fund,1x Tamron 28-75 Lens for Sony,ADORAMA INC.
City Manager,Radio & communications equip,01/19/2022,3899.99,Equipment Replacement Fund,1x Sony FX3 Camera,ADORAMA INC.
City Manager,Training,01/19/2022,700.00,General Fund,Early-bird registration for an,IN  NATL ASSN OF TELECOMM
City Manager,Travel - other,01/19/2022,-139.46,Economic Development Fund,ICSC Travel Hotel Travel Refun,MGM-SIG -ADV SALES
City Manager,Travel - other,01/19/2022,172.37,General Fund,TR# 20220209BG:  (BG to CCCMA,GLENWOOD SPRINGS
City Manager,Travel - other,01/19/2022,172.37,General Fund,TR# 20220209KH:  (KH to CCCMA,GLENWOOD SPRINGS
Community Resources,Advertising,01/19/2022,91.10,General Fund,LCC promotion,FACEBOOK.COM ADS
Community Resources,Advertising,01/19/2022,9.00,"Heritage, Culture & Arts Fund",holiday sale fb ad,FACEBOOK.COM ADS
Community Resources,Advertising,01/19/2022,25.00,"Heritage, Culture & Arts Fund",Holiday sale FB ad,FACEBOOK.COM ADS
Community Resources,Advertising,01/19/2022,748.00,"Heritage, Culture & Arts Fund",CPR Classical ad - LCC Present,COLORADO PUBLIC RADIO OPE
Community Resources,Advertising,01/19/2022,1950.00,"Heritage, Culture & Arts Fund",Newman Center ad - LCC Present,THE PUBLISHING HOUSE
Community Resources,Advertising,01/19/2022,59.00,General Fund,Annual Plan - Social media mar,LINKTREE  LINKTREE
Community Resources,Advertising,01/19/2022,59.00,General Fund,Annual Plan - Social media mar,LINKTREE  LINKTREE
Community Resources,Advertising,01/19/2022,59.80,General Fund,Annual Plan - Social media mar,LINKTREE  LINKTREE
Community Resources,Advertising,01/19/2022,59.80,General Fund,Annual Plan - Social media mar,LINKTREE  LINKTREE
Community Resources,Advertising,01/19/2022,59.80,General Fund,Annual Plan - Social media mar,LINKTREE  LINKTREE
Community Resources,Advertising,01/19/2022,304.84,General Fund,2021 Invoice 120745 LCC Elevat,MILE HIGH GRAPHICS
Community Resources,Advertising,01/19/2022,264.84,"Heritage, Culture & Arts Fund",2021 Invoice 120745 LCC Elevat,MILE HIGH GRAPHICS
Community Resources,Agricultural supplies,01/19/2022,132.50,Open Space Fund,Triathlawn Seed mix for Cotton,ARKANSAS VALLEY SEED
Community Resources,Agricultural supplies,01/19/2022,837.94,General Fund,Grass seed for ROW areas,PAWNEE BUTTES SEED
Community Resources,Agricultural supplies,01/19/2022,1638.00,Open Space Fund,Jute netting for Bear Creek La,CORE & MAIN LP - CO054
Community Resources,Agricultural supplies,01/19/2022,788.38,Open Space Fund,Playground Mulch,PIONEER SAND CO HQ
Community Resources,Agricultural supplies,01/19/2022,1576.76,Open Space Fund,Playground mulch,PIONEER SAND CO HQ
Community Resources,Agricultural supplies,01/19/2022,1162.50,Open Space Fund,Playground Mulch,PIONEER SAND CO HQ
Community Resources,Agricultural supplies,01/19/2022,1162.50,Open Space Fund,Playground Mulch,PIONEER SAND CO HQ
Community Resources,Agricultural supplies,01/19/2022,993.90,General Fund,Christmas trees for rec center,NICKS GARDEN CENTER INC
Community Resources,Agricultural supplies,01/19/2022,112.50,General Fund,Wild flower seed for Kipling &,APPLEWOOD SEED CO
Community Resources,Agricultural supplies,01/19/2022,200.28,Open Space Fund,New Chipper Blades,VERMEER SALES & SVCS OF C
Community Resources,Agricultural supplies,01/19/2022,9.66,Open Space Fund,JB Weld for repair on Chaps,AMAZON.COM
Community Resources,Agricultural supplies,01/19/2022,6.99,Open Space Fund,Part for Chainsaw,AMAZON.COM
Community Resources,Agricultural supplies,01/19/2022,89.90,Open Space Fund,Head Lamps,AMAZON.COM
Community Resources,Board and commissions,01/19/2022,26.85,Grants Fund,food for parent meetings,KING SOOPERS #0127
Community Resources,Board and commissions,01/19/2022,62.71,Grants Fund,Parent Activity,KING SOOPERS #0127
Community Resources,Board and commissions,01/19/2022,148.92,Grants Fund,Policy Council,PAPA JOHNS 130-21
Community Resources,Building material supplies,01/19/2022,88.44,General Fund,"Shops Break room-Tea, Coffee ,",KING SOOPERS #0127
Community Resources,Building material supplies,01/19/2022,123.33,Open Space Fund,Punch Kit and step bits; tools,THE HOME DEPOT 1514
Community Resources,Building material supplies,01/19/2022,13.38,General Fund,CIVIC south       1qty.  high,WW GRAINGER
Community Resources,Building material supplies,01/19/2022,415.80,General Fund,CAR    60qty.  various size pl,AIR FORCE FILTER
Community Resources,Building material supplies,01/19/2022,314.86,General Fund,STOCK      1qty. box plug fuse,WW GRAINGER
Community Resources,Building material supplies,01/19/2022,1025.74,General Fund,PSC     204qty.     various si,AIR FORCE FILTER
Community Resources,Building material supplies,01/19/2022,36.38,Open Space Fund,6x6 treated lumber for horsesh,LOWES #01903
Community Resources,Building material supplies,01/19/2022,140.38,General Fund,WALRATH     1qty. condenser mo,WW GRAINGER
Community Resources,Building material supplies,01/19/2022,28.56,General Fund,CIVIC south       2qty.  insul,WW GRAINGER
Community Resources,Building material supplies,01/19/2022,78.29,General Fund,HSGC      1qty. unit heater mo,WW GRAINGER
Community Resources,Building material supplies,01/19/2022,193.12,General Fund,GLHI      2qty. unit heater mo,WW GRAINGER
Community Resources,Building material supplies,01/19/2022,-532.22,Open Space Fund,ice melt credit,CPS DISTRIBUTORS #18
Community Resources,Building material supplies,01/19/2022,2698.62,Open Space Fund,ice melt,CPS DISTRIBUTORS #18
Community Resources,Building material supplies,01/19/2022,349.00,"Heritage, Culture & Arts Fund",Mic/Audio Storage,LOWES #01903
Community Resources,Building material supplies,01/19/2022,1688.41,General Fund,PSC     1qty. down blast vent,WW GRAINGER
Community Resources,Building material supplies,01/19/2022,1137.14,General Fund,GLHI      2qty. electric unit,WW GRAINGER
Community Resources,Building material supplies,01/19/2022,435.98,"Heritage, Culture & Arts Fund",Riser Carts,AMAZON.COM
Community Resources,Building material supplies,01/19/2022,243.96,"Heritage, Culture & Arts Fund",Cable Storage Racks,AMAZON.COM
Community Resources,Building material supplies,01/19/2022,551.12,General Fund,HSGC     1qty. electric unit h,WW GRAINGER
Community Resources,Building material supplies,01/19/2022,60.94,General Fund,"Daniels - Thermostat guard,  s",LOWES #01903
Community Resources,Building material supplies,01/19/2022,181.03,General Fund,"Shop - grinder discs, ear plug",AMAZON.COM
Community Resources,Building material supplies,01/19/2022,20.88,General Fund,Rivet nut tool for Kraig,AMAZON.COM
Community Resources,Building material supplies,01/19/2022,8.99,General Fund,Ring bell sign for Kraig,AMAZON.COM
Community Resources,Building material supplies,01/19/2022,25.69,General Fund,Drywall anchors and chalk box,THE HOME DEPOT 1514
Community Resources,Building material supplies,01/19/2022,44.68,General Fund,OKane house -  paint for vanda,ACE HDWE OF JEWELL SQ
Community Resources,Building material supplies,01/19/2022,318.00,General Fund,Dewalt Batteries - Shop,THE HOME DEPOT 1514
Community Resources,Building material supplies,01/19/2022,171.07,General Fund,City Facilities - Water filter,AMAZON.COM
Community Resources,Building material supplies,01/19/2022,671.50,Open Space Fund,Water Equipment Repair,HACH COMPANY
Community Resources,Building material supplies,01/19/2022,257.50,Open Space Fund,Water Delivery,MILE HIGH WATER
Community Resources,Building material supplies,01/19/2022,46.00,Open Space Fund,Water Lab fees,COLORADO ANALYTICAL
Community Resources,Building material supplies,01/19/2022,149.99,Open Space Fund,Vacuum for cabins,BED BATH & BEYOND #137
Community Resources,Building material supplies,01/19/2022,31.47,Open Space Fund,Light for cabin,THE HOME DEPOT 1514
Community Resources,Building material supplies,01/19/2022,2535.37,Open Space Fund,Plumbing parts,CORE & MAIN LP - CO054
Community Resources,Building material supplies,01/19/2022,462.06,Open Space Fund,Wood for Jackson Park backstop,THE HOME DEPOT 1514
Community Resources,Building material supplies,01/19/2022,195.31,Open Space Fund,Wood and Stain for Jackson boa,THE HOME DEPOT 1514
Community Resources,Building material supplies,01/19/2022,450.40,Open Space Fund,Wood for Jackson Park backstop,THE HOME DEPOT 1514
Community Resources,Building material supplies,01/19/2022,79.96,Open Space Fund,WH - Sprayed for bugs on outsi,ACE HDWE OF JEWELL SQ
Community Resources,Building material supplies,01/19/2022,14.99,"Heritage, Culture & Arts Fund",monthly cost for acrobat pro,ADOBE  ACROPRO SUBS
Community Resources,Building material supplies,01/19/2022,27.76,Golf Course Enterprise Fund,plywood for homestead sand box,LOWES #01903
Community Resources,Building material supplies,01/19/2022,132.67,Golf Course Enterprise Fund,supplies for fox hollow water,LOWES #01903
Community Resources,Building material supplies,01/19/2022,71.15,Golf Course Enterprise Fund,water cooler parts,LOWES #01903
Community Resources,Building material supplies,01/19/2022,85.18,Open Space Fund,Wood for Jackson Park playgrou,THE HOME DEPOT 1514
Community Resources,Building material supplies,01/19/2022,271.25,"Heritage, Culture & Arts Fund",Dishwasher repair,HOBART ESTORE
Community Resources,Building material supplies,01/19/2022,849.00,"Heritage, Culture & Arts Fund",snow blower,LOWES #01903
Community Resources,Building material supplies,01/19/2022,149.97,"Heritage, Culture & Arts Fund",Three shelving units for sale,COSTCO WHSE #650
Community Resources,Building material supplies,01/19/2022,999.09,"Heritage, Culture & Arts Fund",assorted building needs. drill,THE HOME DEPOT 1514
Community Resources,Building material supplies,01/19/2022,14.98,General Fund,Truckstock     tubing bender,LOWES #01903
Community Resources,Building material supplies,01/19/2022,947.01,General Fund,Carmody            Disconnect,AAP AUTOMATION INC
Community Resources,Building material supplies,01/19/2022,136.87,Open Space Fund,Lumber/hardware for Belmar Doc,THE HOME DEPOT 1514
Community Resources,Building material supplies,01/19/2022,190.61,Open Space Fund,Lumber for handrail on the Bel,THE HOME DEPOT 1514
Community Resources,Building material supplies,01/19/2022,33.60,Open Space Fund,Hardware for handrail on the B,THE HOME DEPOT 1514
Community Resources,Building material supplies,01/19/2022,120.28,Open Space Fund,Lumber for fence repairs at Ri,LOWES #01903
Community Resources,Building material supplies,01/19/2022,1330.50,Open Space Fund,top soil for swim beach,PIONEER SAND CO HQ
Community Resources,Building material supplies,01/19/2022,48.76,Open Space Fund,mouse and rodent traps,THE HOME DEPOT 1514
Community Resources,Building material supplies,01/19/2022,409.54,Open Space Fund,replacement tools  from unit #,HARBOR FREIGHT TOOLS 230
Community Resources,Building material supplies,01/19/2022,109.99,Open Space Fund,replacement 4.5 in. battery gr,AMAZON.COM
Community Resources,Building material supplies,01/19/2022,137.72,Open Space Fund,replacement tools for maintena,AMAZON.COM
Community Resources,Building material supplies,01/19/2022,193.98,Open Space Fund,replacement tools,AMAZON.COM
Community Resources,Building material supplies,01/19/2022,13.80,Open Space Fund,cleaning caddy's,AMAZON.COM
Community Resources,Building material supplies,01/19/2022,299.00,Open Space Fund,cordless drill / replacement t,AMAZON.COM
Community Resources,Building material supplies,01/19/2022,66.97,Open Space Fund,cleaning caddy's,AMAZON.COM
Community Resources,Building material supplies,01/19/2022,99.99,Open Space Fund,metal detector / replacement t,AMAZON.COM
Community Resources,Building material supplies,01/19/2022,93.95,Open Space Fund,plug kit and drill bits/ repla,AMAZON.COM
Community Resources,Building material supplies,01/19/2022,75.78,Open Space Fund,repair kit / replacement tools,AMAZON.COM
Community Resources,Building material supplies,01/19/2022,15.74,Open Space Fund,nut drivers/ replacement tools,AMAZON.COM
Community Resources,Building material supplies,01/19/2022,232.97,Open Space Fund,"replacement tools/drill bits,",THE HOME DEPOT 1514
Community Resources,Building material supplies,01/19/2022,69.86,Open Space Fund,"replacement tools, binoculars",AMAZON.COM
Community Resources,Building material supplies,01/19/2022,-10.97,Open Space Fund,phone cord return,THE HOME DEPOT 1514
Community Resources,Building material supplies,01/19/2022,50.19,Open Space Fund,"paint supplies,",THE HOME DEPOT 1514
Community Resources,Building material supplies,01/19/2022,171.70,Open Space Fund,6x6 posts for fence repairs at,THE HOME DEPOT 1514
Community Resources,Building material supplies,01/19/2022,94.88,General Fund,"Tape measure, sawzaw blades, c",THE HOME DEPOT 1514
Community Resources,Building material supplies,01/19/2022,110.94,Golf Course Enterprise Fund,wood for fox hollow water cool,LOWES #01903
Community Resources,Building material supplies,01/19/2022,29.38,Open Space Fund,WHAC- tools for sound panels,THE HOME DEPOT 1514
Community Resources,Building material supplies,01/19/2022,60.29,General Fund,Urban Parks- crankcase heater,CHARLES D JONES/DENVER
Community Resources,Building material supplies,01/19/2022,159.45,General Fund,LHC- Zone Valve,CHARLES D JONES/DENVER
Community Resources,Building material supplies,01/19/2022,932.27,Open Space Fund,"Carmody- Gas Valves, cable tie",JOHNSTONE SUPPLY OF DENVE
Community Resources,Building material supplies,01/19/2022,-42.71,General Fund,Refund for transaction that ha,THE HOME DEPOT 1514
Community Resources,Building material supplies,01/19/2022,42.71,Open Space Fund,WHAC- laser level,THE HOME DEPOT 1514
Community Resources,Building material supplies,01/19/2022,39.73,Open Space Fund,WHAC- laser level,THE HOME DEPOT 1514
Community Resources,Building material supplies,01/19/2022,31.41,Open Space Fund,Whitlock- misc hardware to sec,LOWES #01903
Community Resources,Building material supplies,01/19/2022,21.99,Open Space Fund,WHAC- fasteners for sound pane,GREEN MOUNTAIN ACE HDW
Community Resources,Building material supplies,01/19/2022,1008.00,General Fund,Civic South - Ceiling tiles,WESTERN INTERIOR SUPPLY
Community Resources,Building material supplies,01/19/2022,565.50,Golf Course Enterprise Fund,Fox Hollow Maint - Corrugated,STOCKYARDS RANCH SUPPL
Community Resources,Building material supplies,01/19/2022,377.00,Golf Course Enterprise Fund,Fox Hollow Maint - Corrugated,STOCKYARDS RANCH SUPPL
Community Resources,Building material supplies,01/19/2022,64.15,Golf Course Enterprise Fund,Fox Hollow Maint - Trim boards,THE HOME DEPOT 1514
Community Resources,Building material supplies,01/19/2022,42.77,Golf Course Enterprise Fund,Fox Hollow Maint - Trim boards,THE HOME DEPOT 1514
Community Resources,Building material supplies,01/19/2022,276.85,General Fund,PSC - Paint for new Iron,SHERWIN WILLIAMS 701642
Community Resources,Building material supplies,01/19/2022,74.97,General Fund,Civic South - Economic Dev. -,THE HOME DEPOT 1514
Community Resources,Building material supplies,01/19/2022,92.91,General Fund,Patterson Cottage - Gloves/Cut,THE HOME DEPOT 1514
Community Resources,Building material supplies,01/19/2022,11.63,General Fund,Patterson Cottage - Ready mix,THE HOME DEPOT 1514
Community Resources,Building material supplies,01/19/2022,49.94,General Fund,Patterson Cottage - Chisel,THE HOME DEPOT 1514
Community Resources,Building material supplies,01/19/2022,19.94,General Fund,Patterson Cottage - VCT Adhesi,THE HOME DEPOT 1514
Community Resources,Building material supplies,01/19/2022,35.55,General Fund,Patterson Cottage - Tile,THE HOME DEPOT 1514
Community Resources,Building material supplies,01/19/2022,2186.69,General Fund,2021 Service 480 S. Allison Pk,BEACON COMMUNICATIONS
Community Resources,Building material supplies,01/19/2022,416.96,General Fund,Air Care Program,STATE CHEMIC STATE CHE
Community Resources,Building material supplies,01/19/2022,3606.00,"Heritage, Culture & Arts Fund",2021 Item Wash. Heights Access,IMLSS COLORADO
Community Resources,Building material supplies,01/19/2022,4680.00,General Fund,2021 Service Records Departmen,SQ  BEVERLY HILLS GLASS R
Community Resources,Building material supplies,01/19/2022,4.47,General Fund,Truck 389 - Stock Clevis Pin,THE HOME DEPOT 1514
Community Resources,Building material supplies,01/19/2022,2233.00,General Fund,Fleet - Frame and Door,VORTEX COLORADO INC
Community Resources,Building material supplies,01/19/2022,3471.00,General Fund,Fleet - Door 8 - New Sections,DHPACE/ANKMAR-DENVER
Community Resources,Chem. & lab. supplies,01/19/2022,168.00,General Fund,2021 Supply  Bulk Co2 For Pool,GREEN CO2 SYSTEMS
Community Resources,Chem. & lab. supplies,01/19/2022,194.40,General Fund,2021 Supply Bulk Co2 For Pools,GREEN CO2 SYSTEMS
Community Resources,Chem. & lab. supplies,01/19/2022,331.32,General Fund,2021 Supply  Bulk Co2 For Pool,GREEN CO2 SYSTEMS
Community Resources,Chem. & lab. supplies,01/19/2022,482.88,General Fund,2021 Supply  Bulk Co2 For Pool,GREEN CO2 SYSTEMS
Community Resources,Chem. & lab. supplies,01/19/2022,159.57,"Heritage, Culture & Arts Fund",Glaze and clay for pottery stu,STONE LEAF POTTERY INC
Community Resources,Chem. & lab. supplies,01/19/2022,104.78,General Fund,Reagents for Link pool chem te,"IN  CEM SALES & SERVICE,"
Community Resources,Cleaning & janitorial services,01/19/2022,368.31,"Heritage, Culture & Arts Fund",HLBP VC kitchen dishwasher det,HILLYARD INC DENVER
Community Resources,Cleaning & janitorial services,01/19/2022,69.88,"Heritage, Culture & Arts Fund",Toilet paper,HILLYARD INC DENVER
Community Resources,Cleaning & janitorial services,01/19/2022,608.64,"Heritage, Culture & Arts Fund",Paper towels-HLBP bathrooms-Ca,HILLYARD INC DENVER
Community Resources,Cleaning & janitorial services,01/19/2022,91.12,"Heritage, Culture & Arts Fund",Bathroom hand soap-Camp Christ,HILLYARD INC DENVER
Community Resources,Cleaning & janitorial services,01/19/2022,133.98,"Heritage, Culture & Arts Fund",Repair and service of 2 HLBP v,VACUUM WORLD
Community Resources,Cleaning & janitorial services,01/19/2022,51.88,"Heritage, Culture & Arts Fund",Gloves for cleaning  HLBP -Cam,THE HOME DEPOT 1514
Community Resources,Cleaning & janitorial services,01/19/2022,532.84,"Heritage, Culture & Arts Fund",Indoor and Outdoor HLBP trash,HILLYARD INC DENVER
Community Resources,Cleaning & janitorial services,01/19/2022,1200.00,"Heritage, Culture & Arts Fund",2021 Service ""Camp Christmas "",SQ  BEVERLY HILLS GLASS R
Community Resources,Cleaning & janitorial services,01/19/2022,1200.00,"Heritage, Culture & Arts Fund",2021 Service ""Camp Christmas "",SQ  BEVERLY HILLS GLASS R
Community Resources,Cleaning & janitorial services,01/19/2022,1200.00,"Heritage, Culture & Arts Fund",2021 Service ""Camp Christmas "",SQ  BEVERLY HILLS GLASS R
Community Resources,Cleaning supplies,01/19/2022,278.96,General Fund,Air Care Program,STATE CHEMIC STATE CHE
Community Resources,Cleaning supplies,01/19/2022,315.90,Golf Course Enterprise Fund,CLUBHOUSE CLEANING,ALSCO INC.
Community Resources,Cleaning supplies,01/19/2022,15.32,General Fund,Air Fragrance,WAL-MART
Community Resources,Cleaning supplies,01/19/2022,778.14,Open Space Fund,trash liners,HILLYARD INC DENVER
Community Resources,Cleaning supplies,01/19/2022,3537.00,Open Space Fund,trash liners,HILLYARD INC DENVER
Community Resources,Cleaning supplies,01/19/2022,52.48,General Fund,Mop heads,AMAZON.COM
Community Resources,Cleaning supplies,01/19/2022,82.24,Golf Course Enterprise Fund,CLEANING SUPPLIES,COLUMBINE PAPER
Community Resources,Cleaning supplies,01/19/2022,98.55,Golf Course Enterprise Fund,TP AND TOILET TISSUE,COLUMBINE PAPER
Community Resources,Cleaning supplies,01/19/2022,314.99,Golf Course Enterprise Fund,SOAP/TOWELS/SUPPLIES,COLUMBINE PAPER
Community Resources,Cleaning supplies,01/19/2022,345.57,Golf Course Enterprise Fund,CLEANING SUPPLIES,COLUMBINE PAPER
Community Resources,Cleaning supplies,01/19/2022,76.83,Golf Course Enterprise Fund,HAND SOAP,COLUMBINE PAPER
Community Resources,Cleaning supplies,01/19/2022,185.55,Golf Course Enterprise Fund,CUPS-LID-TISSUE,COLUMBINE PAPER
Community Resources,Cleaning supplies,01/19/2022,230.49,Golf Course Enterprise Fund,HAND SOAP,COLUMBINE PAPER
Community Resources,Cleaning supplies,01/19/2022,230.49,Golf Course Enterprise Fund,HAND SOAP,COLUMBINE PAPER
Community Resources,Cleaning supplies,01/19/2022,190.46,Golf Course Enterprise Fund,SOAP PAPER LINERS,COLUMBINE PAPER
Community Resources,Cleaning supplies,01/19/2022,584.22,Golf Course Enterprise Fund,SUPPLIES,COLUMBINE PAPER
Community Resources,Cleaning supplies,01/19/2022,269.59,Golf Course Enterprise Fund,RAGS/TOWELS,ALSCO INC.
Community Resources,Cleaning supplies,01/19/2022,651.90,Golf Course Enterprise Fund,RAGS/TOWELS,ALSCO INC.
Community Resources,Clothing & Uniforms,01/19/2022,225.55,Open Space Fund,Cold weather gear for Dan Nied,INTERMOUNTAIN SAFETY SHOE
Community Resources,Clothing & Uniforms,01/19/2022,88.22,Open Space Fund,staff shirts,LL BEAN MAILORDER
Community Resources,Clothing & Uniforms,01/19/2022,778.40,General Fund,Staff Shirts,SUPER TEES
Community Resources,Clothing & Uniforms,01/19/2022,143.95,Open Space Fund,Winter coat and boot laces.,INTERMOUNTAIN SAFETY SHOE
Community Resources,Clothing & Uniforms,01/19/2022,36.51,General Fund,WRC staff shirts,LANDS END BUS OUTFITTERS
Community Resources,Clothing & Uniforms,01/19/2022,26.83,General Fund,WRC staff shirts,LANDS END BUS OUTFITTERS
Community Resources,Clothing & Uniforms,01/19/2022,-4.40,General Fund,Tax credit,LANDS END BUS OUTFITTERS
Community Resources,Clothing & Uniforms,01/19/2022,968.28,"Heritage, Culture & Arts Fund",HCA work apparel,LL BEAN MAILORDER
Community Resources,Clothing & Uniforms,01/19/2022,1121.25,General Fund,Staff Shirts,IN  A ONE STOP PRINT SHOP
Community Resources,Clothing & Uniforms,01/19/2022,158.28,"Heritage, Culture & Arts Fund",uniforms,BASS PRO CATALOG U.S.
Community Resources,Clothing & Uniforms,01/19/2022,158.28,"Heritage, Culture & Arts Fund",Uniforms,BASS PRO CATALOG U.S.
Community Resources,Clothing & Uniforms,01/19/2022,1783.02,"Heritage, Culture & Arts Fund",HCA apparel order,LL BEAN MAILORDER
Community Resources,Clothing & Uniforms,01/19/2022,13.50,"Heritage, Culture & Arts Fund",Embroidery for event jackets,CHOICE IMAGE INC
Community Resources,Clothing & Uniforms,01/19/2022,156.68,Open Space Fund,unifroms,CINTAS CORP # 060A
Community Resources,Collection & Exhibit Supplies,01/19/2022,55.98,"Heritage, Culture & Arts Fund",Cleaning supplies for historic,AMAZON.COM
Community Resources,Collection & Exhibit Supplies,01/19/2022,24.64,"Heritage, Culture & Arts Fund",Cleaning supplies for historic,GAYLORD BROS INC
Community Resources,Collection & Exhibit Supplies,01/19/2022,6.99,"Heritage, Culture & Arts Fund",Cleaning supplies for historic,AMAZON.COM
Community Resources,Collection & Exhibit Supplies,01/19/2022,307.40,"Heritage, Culture & Arts Fund",Table and chairs for research,IKEA.COM 402065443
Community Resources,Collection & Exhibit Supplies,01/19/2022,100.01,"Heritage, Culture & Arts Fund",Cleaning and photography suppl,AMAZON.COM
Community Resources,Collection & Exhibit Supplies,01/19/2022,349.00,"Heritage, Culture & Arts Fund",Archives training resource (re,SOCIETY OF AMERICAN ARCH
Community Resources,Collection & Exhibit Supplies,01/19/2022,515.00,"Heritage, Culture & Arts Fund",Archives training resource,NORTHEASTDOCUMENT
Community Resources,Collection & Exhibit Supplies,01/19/2022,-19.40,"Heritage, Culture & Arts Fund",Return of taxes from purchase,IKEA.COM 402065443
Community Resources,Collection & Exhibit Supplies,01/19/2022,116.56,"Heritage, Culture & Arts Fund",Numbering and storage supplies,GAYLORD BROS INC
Community Resources,Computer equipment-non cap,01/19/2022,3588.00,"Heritage, Culture & Arts Fund",2021 HCA iPads,APL APPLE ONLINE STORE
Community Resources,Computer hardware,01/19/2022,1579.97,"Heritage, Culture & Arts Fund",Lobby TV Replacements,MICRO CENTER #181 RETAIL
Community Resources,Computer software & supplies,01/19/2022,293.53,General Fund,Creative Cloud Licensing CR/AD,ADOBE  ACROPRO SUBS
Community Resources,Computer software & supplies,01/19/2022,14.99,"Heritage, Culture & Arts Fund",Creative Cloud Licensing CR/PR,ADOBE  ACROPRO SUBS
Community Resources,Computer software & supplies,01/19/2022,34.99,"Heritage, Culture & Arts Fund",Creative Cloud Licensing CR/HC,ADOBE  ACROPRO SUBS
Community Resources,Computer software & supplies,01/19/2022,34.99,Open Space Fund,Creative Cloud Licensing CR,ADOBE  ACROPRO SUBS
Community Resources,Computer software & supplies,01/19/2022,14.99,"Heritage, Culture & Arts Fund",Creative Cloud Licensing CR/HE,ADOBE  ACROPRO SUBS
Community Resources,Computer software & supplies,01/19/2022,196.32,"Heritage, Culture & Arts Fund",City Cell Phones,ATT BILL PAYMENT
Community Resources,Computer software & supplies,01/19/2022,119.88,General Fund,Presentation Software,MENTIMETER
Community Resources,Construc Costs-Site Improve,01/19/2022,130.00,Open Space Fund,Quail St Park,EXTREME TOWING
Community Resources,Construction Costs-Other Impro,01/19/2022,194529.66,Golf Course Enterprise Fund,Corrected Account #,LEXICON
Community Resources,Consulting Costs-Other Improve,01/19/2022,3500.00,Open Space Fund,2021 Peakview Park pavement St,A G WASSENAAR INC
Community Resources,Contractor services,01/19/2022,800.00,General Fund,Monthly Patrol Services,FRONT RANGE SECURITY SERVICES
Community Resources,Contractor services,01/19/2022,3983.00,General Fund,Contract work at Morrison road,ENVIRONMENTAL TREE CARE L
Community Resources,Contractor services,01/19/2022,1400.00,General Fund,Contract work at Kendrick park,PAYPAL INC
Community Resources,Contractor services,01/19/2022,3980.00,General Fund,Contract work at 777 Yarrow,AUTUMN TREE
Community Resources,Contractor services,01/19/2022,2390.00,General Fund,Contract work at Holbrook park,SQ  SCHULHOFF TREE& LAWN
Community Resources,Dues and memberships,01/19/2022,65.00,General Fund,Professional Certification Ren,NRPA OPERATING
Community Resources,Dues and memberships,01/19/2022,65.00,Open Space Fund,CPRP Renewal Fees,NRPA OPERATING
Community Resources,Dues and memberships,01/19/2022,2375.00,General Fund,Membership Renewal,NRPA OPERATING
Community Resources,Dues and memberships,01/19/2022,150.00,Golf Course Enterprise Fund,GCSAA Fdtn. Annual Facility Do,GOLF COURSE SUPERINTENDEN
Community Resources,Dues and memberships,01/19/2022,100.00,Golf Course Enterprise Fund,GCSAA Fdtn. Annual Facility Do,GOLF COURSE SUPERINTENDEN
Community Resources,Dues and memberships,01/19/2022,200.00,"Heritage, Culture & Arts Fund",Membership Renewal,AMERICANS FOR THE ARTS
Community Resources,Dues and memberships,01/19/2022,150.00,Golf Course Enterprise Fund,USGA 2022 CLUB MEMBERSHIP,USGA MEMBERSHIP
Community Resources,Dues and memberships,01/19/2022,200.00,General Fund,ACA Membership,AMERICAN CAMPING ASSOCIAT
Community Resources,Dues and memberships,01/19/2022,200.00,General Fund,American Camp Association Memb,AMERICAN CAMPING ASSOCIAT
Community Resources,Dues and memberships,01/19/2022,10.74,"Heritage, Culture & Arts Fund",Music for Community events & L,SPOTIFY USA
Community Resources,Food purchased for programs,01/19/2022,54.42,General Fund,SAS Program Winter Break Suppl,WAL-MART
Community Resources,Food purchased for programs,01/19/2022,22.54,General Fund,Supplies for meal site program,KING SOOPERS #0127
Community Resources,"Fuel, oil, lubricants",01/19/2022,19.99,Golf Course Enterprise Fund,TOOLS,ACE HDWE OF JEWELL SQ
Community Resources,"Fuel, oil, lubricants",01/19/2022,6.99,Golf Course Enterprise Fund,DUCT TAPE,ACE HDWE OF JEWELL SQ
Community Resources,"Fuel, oil, lubricants",01/19/2022,1593.28,Golf Course Enterprise Fund,fuel for maintenance operation,HILL PETROLEUM
Community Resources,"Fuel, oil, lubricants",01/19/2022,1062.19,Golf Course Enterprise Fund,fuel for maintenance operation,HILL PETROLEUM
Community Resources,Irrigation supplies,01/19/2022,351.00,Open Space Fund,Jute netting for Cottonwood Pa,CORE & MAIN LP - CO054
Community Resources,Irrigation supplies,01/19/2022,3055.00,Open Space Fund,ICC PRO upgrade and four year,CENTRAL CONTROL SYSTEMS
Community Resources,Irrigation supplies,01/19/2022,168.60,Open Space Fund,Turf staples for BCLP,CPS DISTRIBUTORS #18
Community Resources,Irrigation supplies,01/19/2022,286.58,Golf Course Enterprise Fund,homestead irrigation repair pa,DBC IRRIGATION SUPPLY
Community Resources,Irrigation supplies,01/19/2022,23.84,Golf Course Enterprise Fund,homestead irrigation repair pa,THE HOME DEPOT 1514
Community Resources,Irrigation supplies,01/19/2022,3055.00,Open Space Fund,ICC PRO upgrade and four year,CENTRAL CONTROL SYSTEMS
Community Resources,Meal expense,01/19/2022,86.97,"Heritage, Culture & Arts Fund",LCCP artist hospitality,KING SOOPERS #0127
Community Resources,Meal expense,01/19/2022,34.98,"Heritage, Culture & Arts Fund",WHAC holiday sale volunteer ho,EINSTEIN BAGELS 1356
Community Resources,Meal expense,01/19/2022,121.15,"Heritage, Culture & Arts Fund",WHAC holiday  sale volunteer h,KING SOOPERS #0127
Community Resources,Meal expense,01/19/2022,47.54,"Heritage, Culture & Arts Fund",Museum Store Volunteer  Invent,PANERA BREAD #202446 P
Community Resources,Meal expense,01/19/2022,206.95,Open Space Fund,Food for end of year employee,COSTCO WHSE #650
Community Resources,Meal expense,01/19/2022,35.19,General Fund,Staff Appreciation,WHOLEFDS BMR 10218
Community Resources,Meal expense,01/19/2022,1493.40,General Fund,Department Staff Appreciation,JASONS DELI #602
Community Resources,Med. & phar. supplies,01/19/2022,327.00,Open Space Fund,first aid supplies,CINTAS CORP # 060A
Community Resources,Med. & phar. supplies,01/19/2022,125.38,Golf Course Enterprise Fund,MEDICAL SUPPLIES,CINTAS CORP # 060A
Community Resources,Med. & phar. supplies,01/19/2022,167.84,Golf Course Enterprise Fund,MEDICAL SUPPLIES,CINTAS CORP # 060A
Community Resources,Misc expenses,01/19/2022,144.92,General Fund,Staff lunch for limb drop off,JOHNNYS NY PIZZA
Community Resources,Misc expenses,01/19/2022,145.17,General Fund,Staff lunch for contracted pro,JETS PIZZA - CO-005
Community Resources,Misc expenses,01/19/2022,42.92,Open Space Fund,Lunch room supplies,WAL-MART
Community Resources,Misc expenses,01/19/2022,1961.20,General Fund,Parks Division end of the year,THE DEN AT FOX HOLLOW
Community Resources,Misc expenses,01/19/2022,171.46,Open Space Fund,Drinks for the Lakewood CR Chr,KING SOOPERS #0127
Community Resources,Office furn & equip-non cap,01/19/2022,2418.60,"Heritage, Culture & Arts Fund",new chairs for Kim Husted grou,CONTRACT FURNISHINGS
Community Resources,Office furn & equip-non cap,01/19/2022,150.66,"Heritage, Culture & Arts Fund",Desk reference & acrylic sign,AMAZON.COM
Community Resources,Office furn & equip-non cap,01/19/2022,148.95,"Heritage, Culture & Arts Fund",Replacement linens,AMAZON.COM
Community Resources,Office furn & equip-non cap,01/19/2022,156.66,"Heritage, Culture & Arts Fund",Wall rack for rack cards,AMAZON.COM
Community Resources,Office furn & equip-non cap,01/19/2022,291.50,"Heritage, Culture & Arts Fund",Replacement linens,LA LINEN
Community Resources,Office furn & equip-non cap,01/19/2022,315.60,"Heritage, Culture & Arts Fund",Small conference table,AMAZON.COM
Community Resources,Office furn & equip-non cap,01/19/2022,-315.60,"Heritage, Culture & Arts Fund",Refund - Small conference tabl,AMAZON.COM
Community Resources,Office furn & equip-non cap,01/19/2022,204.98,"Heritage, Culture & Arts Fund",Office Furniture & Equipment,TARGET        00027177
Community Resources,Office supplies,01/19/2022,110.42,Golf Course Enterprise Fund,OFFICE SUPPLIES,OFFICE DEPOT #1080
Community Resources,Office supplies,01/19/2022,983.76,Golf Course Enterprise Fund,SHOPPING BAGS,INNOVATIVE PACKAGING GROU
Community Resources,Office supplies,01/19/2022,491.88,Golf Course Enterprise Fund,SHOPPING BAGS,INNOVATIVE PACKAGING GROU
Community Resources,Office supplies,01/19/2022,683.40,Golf Course Enterprise Fund,CHRISTMAS TREE,AMAZON.COM
Community Resources,Office supplies,01/19/2022,106.90,Golf Course Enterprise Fund,FACE MASKS,AMAZON.COM
Community Resources,Office supplies,01/19/2022,106.89,Golf Course Enterprise Fund,FACE MASKS,AMAZON.COM
Community Resources,Office supplies,01/19/2022,23.59,General Fund,2021 Supplies Office Supplies,AMAZON.COM
Community Resources,Office supplies,01/19/2022,103.92,General Fund,2021 Supplies Office Supplies,AMAZON.COM
Community Resources,Office supplies,01/19/2022,14.88,General Fund,2021 Supplies Office Supplies,AMAZON.COM
Community Resources,Office supplies,01/19/2022,15.60,General Fund,2021 Supplies Office Supplies,AMAZON.COM
Community Resources,Office supplies,01/19/2022,69.00,General Fund,WRC office supply,AMAZON.COM
Community Resources,Office supplies,01/19/2022,4.97,General Fund,2021 Supplies Office Supplies,AMAZON.COM
Community Resources,Office supplies,01/19/2022,8.99,Open Space Fund,2021 Supply Office Supplies Fo,AMAZON.COM
Community Resources,Office supplies,01/19/2022,7.99,General Fund,2021 Supply Office Supplies Fo,AMAZON.COM
Community Resources,Office supplies,01/19/2022,27.09,General Fund,2021 Supply Office Supplies Fo,AMAZON.COM
Community Resources,Office supplies,01/19/2022,13.90,General Fund,2021 Supplies Office Supplies,AMAZON.COM
Community Resources,Office supplies,01/19/2022,38.71,General Fund,2021 Supply Office Supplies Fo,AMAZON.COM
Community Resources,Office supplies,01/19/2022,91.43,General Fund,2021 Supply Office Supplies Fo,AMAZON.COM
Community Resources,Office supplies,01/19/2022,18.52,General Fund,2021 Supply Office Supplies Fo,AMAZON.COM
Community Resources,Office supplies,01/19/2022,20.18,General Fund,2021 Supplies Office Supplies,AMAZON.COM
Community Resources,Office supplies,01/19/2022,23.57,General Fund,2021 Supply Office Supplies Fo,AMAZON.COM
Community Resources,Office supplies,01/19/2022,96.00,"Heritage, Culture & Arts Fund",Coffee Service,ROCKY MOUNTAIN BOTTLED WA
Community Resources,Office supplies,01/19/2022,173.65,General Fund,WRC supplies,STAPLES
Community Resources,Office supplies,01/19/2022,19.99,General Fund,2021 Supplies Office Supplies,AMAZON.COM
Community Resources,Office supplies,01/19/2022,19.79,General Fund,2021  Supplies Office Supplies,AMAZON.COM
Community Resources,Office supplies,01/19/2022,10.20,General Fund,2021 Supplies  Office Supplies,AMAZON.COM
Community Resources,Office supplies,01/19/2022,7.99,General Fund,2021 Supplies Office Supplies,AMAZON.COM
Community Resources,Office supplies,01/19/2022,21.76,"Heritage, Culture & Arts Fund",scotch tape for office,AMAZON.COM
Community Resources,Office supplies,01/19/2022,77.64,"Heritage, Culture & Arts Fund","Tape, tape dispensers, file fo",OFFICE DEPOT #1080
Community Resources,Office supplies,01/19/2022,39.52,"Heritage, Culture & Arts Fund",Name A Seat donor plaque,THE PERSONAL TOUCH
Community Resources,Office supplies,01/19/2022,98.82,"Heritage, Culture & Arts Fund","Calendar, Phone Care,",OFFICE DEPOT #1080
Community Resources,Office supplies,01/19/2022,-16.49,"Heritage, Culture & Arts Fund",Rtrn - Wrong Size Phone Case,OFFICE DEPOT #1080
Community Resources,Office supplies,01/19/2022,45.43,Open Space Fund,Coffee/Creamer for staff-Adden,KING SOOPERS #0127
Community Resources,Office supplies,01/19/2022,36.78,"Heritage, Culture & Arts Fund",Supplies for box office,AMAZON.COM
Community Resources,Office supplies,01/19/2022,28.59,"Heritage, Culture & Arts Fund",Box office supplies,STAPLES
Community Resources,Office supplies,01/19/2022,39.07,Open Space Fund,Office supplies for Visitor Ce,STAPLES
Community Resources,Office supplies,01/19/2022,12.99,General Fund,USB Cord for lifeguard class,AMAZON.COM
Community Resources,Office supplies,01/19/2022,95.53,General Fund,Staff Recognition,TARGET        00027177
Community Resources,Office supplies,01/19/2022,96.00,General Fund,Staff Supplies,TARGET        00027177
Community Resources,Office supplies,01/19/2022,10.99,"Heritage, Culture & Arts Fund",Clorox wipes for front desk-HL,KING SOOPERS #0127
Community Resources,Office supplies,01/19/2022,35.41,General Fund,Office supplies,AMAZON.COM
Community Resources,Office supplies,01/19/2022,14.99,General Fund,Office supplies,AMAZON.COM
Community Resources,Office supplies,01/19/2022,31.98,General Fund,SAS supplies,AMAZON.COM
Community Resources,Office supplies,01/19/2022,338.85,General Fund,"binders,gluesticks,markers",STAPLES
Community Resources,Office supplies,01/19/2022,15.11,General Fund,wall calendars,STAPLES
Community Resources,Office supplies,01/19/2022,116.99,General Fund,face masks,STAPLES
Community Resources,Office supplies,01/19/2022,29.69,General Fund,face masks,STAPLES
Community Resources,Office supplies,01/19/2022,14.72,General Fund,hole punch,STAPLES
Community Resources,Office supplies,01/19/2022,199.33,General Fund,"planner, bandages, sticky note",STAPLES
Community Resources,Office supplies,01/19/2022,68.40,General Fund,"project jackets, command strip",STAPLES
Community Resources,Office supplies,01/19/2022,14.90,General Fund,Binder Tabs,AMAZON.COM
Community Resources,Office supplies,01/19/2022,25.72,General Fund,Legal Pad 3 hole punched loose,AMAZON.COM
Community Resources,Office supplies,01/19/2022,10.43,General Fund,Binder Tabs,AMAZON.COM
Community Resources,Office supplies,01/19/2022,10.89,General Fund,Double Side Tape,AMAZON.COM
Community Resources,Office supplies,01/19/2022,5.52,General Fund,2021 - Hole punchers,STAPLES
Community Resources,Office supplies,01/19/2022,37.49,General Fund,2021 - Notepads and pen restoc,STAPLES
Community Resources,Office supplies,01/19/2022,42.62,General Fund,2021 - Sticky note restocking,STAPLES
Community Resources,Office supplies,01/19/2022,170.99,General Fund,2021 - Replacement microwave,STAPLES
Community Resources,Office supplies,01/19/2022,69.99,General Fund,Keyboard,AMAZON.COM
Community Resources,Office supplies,01/19/2022,4.88,General Fund,Mouse Pad,WAL-MART
Community Resources,Office supplies,01/19/2022,38.35,Golf Course Enterprise Fund,DAYTIMER FOR 2022,FRANKLIN PLANNER
Community Resources,Office supplies,01/19/2022,10.00,Golf Course Enterprise Fund,COFFEE MACHINE RENTAL,WATER - COFFEE DELIVERY
Community Resources,Office supplies,01/19/2022,36.79,"Heritage, Culture & Arts Fund",Labels,OFFICE DEPOT #1080
Community Resources,Office supplies,01/19/2022,236.44,"Heritage, Culture & Arts Fund",Shopping Bags for Store,ULINE   SHIP SUPPLIES
Community Resources,Office supplies,01/19/2022,167.96,Golf Course Enterprise Fund,printer cartridges for cirrus,OFFICE DEPOT #1080
Community Resources,Office supplies,01/19/2022,42.60,Golf Course Enterprise Fund,"day timer for Robert Butzen, S",DAY-TIMER US
Community Resources,Office supplies,01/19/2022,31.48,Golf Course Enterprise Fund,calendar and marker for Steve,OFFICE DEPOT #1080
Community Resources,Office supplies,01/19/2022,51.49,Golf Course Enterprise Fund,toner for doug's irrigation pr,OFFICE DEPOT #1080
Community Resources,Office supplies,01/19/2022,14.40,Golf Course Enterprise Fund,monthly fee for coffee machine,ROCKY MOUNTAIN BOTTLED WA
Community Resources,Office supplies,01/19/2022,9.60,Golf Course Enterprise Fund,monthly fee for coffee machine,ROCKY MOUNTAIN BOTTLED WA
Community Resources,Office supplies,01/19/2022,93.00,Golf Course Enterprise Fund,COFFEE,ROCKY MOUNTAIN BOTTLED WA
Community Resources,Office supplies,01/19/2022,38.85,"Heritage, Culture & Arts Fund",Labels for Museum Store,AMAZON.COM
Community Resources,Office supplies,01/19/2022,184.49,General Fund,2021 deposit bags,AMAZON.COM
Community Resources,Office supplies,01/19/2022,30.44,General Fund,2021 Light Bulbs,AMAZON.COM
Community Resources,Office supplies,01/19/2022,4.29,General Fund,This has been cancelled and re,AMAZON MUSIC WO0HC5W03
Community Resources,Office supplies,01/19/2022,40.49,General Fund,2021 deposit Bags,AMAZON.COM
Community Resources,Operating supplies,01/19/2022,3.61,Grants Fund,classroom supplies 11th,AMAZON.COM
Community Resources,Operating supplies,01/19/2022,5.02,Grants Fund,classroom supplies 11th,AMAZON.COM
Community Resources,Operating supplies,01/19/2022,15.95,Grants Fund,classroom supplies 11th,AMAZON.COM
Community Resources,Operating supplies,01/19/2022,126.11,Grants Fund,Classroom supplies 11th,AMAZON.COM
Community Resources,Operating supplies,01/19/2022,70.55,Grants Fund,classroom supplies 11th,AMAZON.COM
Community Resources,Operating supplies,01/19/2022,8.95,Grants Fund,classroom supplies PHS,AMAZON.COM
Community Resources,Operating supplies,01/19/2022,146.20,Grants Fund,Classroom Supplies Daniels,SAMSCLUB #6635
Community Resources,Operating supplies,01/19/2022,253.06,Grants Fund,Classroom supplies Lasley,SAMSCLUB #6635
Community Resources,Operating supplies,01/19/2022,27.38,Grants Fund,classroom supplies PHS,AMAZON.COM
Community Resources,Operating supplies,01/19/2022,105.68,Grants Fund,classroom supplies  Lasley,SAMSCLUB #6635
Community Resources,Operating supplies,01/19/2022,14.36,Grants Fund,classroom supplies,WAL-MART
Community Resources,Operating supplies,01/19/2022,12.44,Grants Fund,DanHS cooking project,KING SOOPERS #0127
Community Resources,Operating supplies,01/19/2022,18.00,Grants Fund,Group visit open gym,THE LKWOOD LINK REC CTR
Community Resources,Operating supplies,01/19/2022,111.11,Grants Fund,New classroom materials,#24 LAKESHORE LEARNING
Community Resources,Operating supplies,01/19/2022,10.00,Grants Fund,"Pajama Day supplies: cups, bag","DOLLAR TREE, INC."
Community Resources,Operating supplies,01/19/2022,17.86,Grants Fund,consumable materials for unit,WAL-MART
Community Resources,Operating supplies,01/19/2022,19.29,Grants Fund,classroom supplies,WAL-MART
Community Resources,Operating supplies,01/19/2022,30.92,General Fund,Supplies for training,SAMSCLUB #6635
Community Resources,Operating supplies,01/19/2022,49.90,Grants Fund,Child size masks for classroom,STAPLES
Community Resources,Operating supplies,01/19/2022,26.43,General Fund,Supplies for training,KING SOOPERS #0127
Community Resources,Operating supplies,01/19/2022,17.98,Grants Fund,playdough toys- Daniels,AMAZON.COM
Community Resources,Other general supplies,01/19/2022,1748.38,General Fund,BCLP- Camping and archery gear,AMAZON.COM
Community Resources,Other general supplies,01/19/2022,70.34,General Fund,Holiday Decorations,WAL-MART
Community Resources,Other general supplies,01/19/2022,65.94,General Fund,"Batteries, Timer Cord",THE HOME DEPOT 1514
Community Resources,Other general supplies,01/19/2022,142.91,General Fund,Intercom and masks,AMAZON.COM
Community Resources,Other general supplies,01/19/2022,35.90,General Fund,2021 Cleaning cloths,AMAZON.COM
Community Resources,Other general supplies,01/19/2022,159.89,General Fund,2021 Furniture Dollies,GIH GLOBALINDUSTRIALEQ
Community Resources,Other general supplies,01/19/2022,19.99,General Fund,2021 gym equipment,AMAZON.COM
Community Resources,Other profess & tech services,01/19/2022,840.00,General Fund,Fire Extinguishers,PYE BARKER - DENVER
Community Resources,Other profess & tech services,01/19/2022,31.50,Open Space Fund,Re-Testing fee for Certified O,METROINSTITUTE CPPA
Community Resources,Other profess & tech services,01/19/2022,94.50,Open Space Fund,Testing fees for Certified Ope,METROINSTITUTE CPPA
Community Resources,Other profess & tech services,01/19/2022,168.53,General Fund,PSC - Monthly Pest Control,WWP SPRAGUE PEST SOLUTION
Community Resources,Other profess & tech services,01/19/2022,54.50,General Fund,Fingerprints K. Hamdan,IDENTOGO - CO FINGERPRINT
Community Resources,Other profess & tech services,01/19/2022,461.00,General Fund,Les Mills contract fees,LES MILLS US TRADING
Community Resources,Other profess & tech services,01/19/2022,14.99,"Heritage, Culture & Arts Fund",Creative Cloud Licensing CR/WA,ADOBE  ACROPRO SUBS
Community Resources,Other profess & tech services,01/19/2022,103.02,Open Space Fund,Pesticide applicators renewal,CO DORA LICENSING
Community Resources,Other profess & tech services,01/19/2022,187.00,Open Space Fund,ISA renewal fee,ISA
Community Resources,Other profess & tech services,01/19/2022,104.00,Golf Course Enterprise Fund,PEST CONTROL OCTOBER,TMX TERMINIX INTL
Community Resources,Other profess & tech services,01/19/2022,104.00,Golf Course Enterprise Fund,PEST CONTROL NOVEMBER,TMX TERMINIX INTL
Community Resources,Other profess & tech services,01/19/2022,351.00,Golf Course Enterprise Fund,PEST CONTORL SEPT-OCT-NOV,TMX TERMINIX INTL
Community Resources,Other profess & tech services,01/19/2022,117.00,Golf Course Enterprise Fund,november office cleaning,THE KEY PEOPLE COMPANY
Community Resources,Other profess & tech services,01/19/2022,78.00,Golf Course Enterprise Fund,november office cleaning,THE KEY PEOPLE COMPANY
Community Resources,Other profess & tech services,01/19/2022,103.90,Golf Course Enterprise Fund,parts washer service,GFL ENVIRONMENTAL SERVICE
Community Resources,Other profess & tech services,01/19/2022,69.27,Golf Course Enterprise Fund,parts washer service,GFL ENVIRONMENTAL SERVICE
Community Resources,Other profess & tech services,01/19/2022,22.86,Golf Course Enterprise Fund,"two months rug rental (nov, de",ALSCO INC.
Community Resources,Other profess & tech services,01/19/2022,15.24,Golf Course Enterprise Fund,"two months rug rental (nov, de",ALSCO INC.
Community Resources,Other profess & tech services,01/19/2022,73.80,Golf Course Enterprise Fund,monthly pest service for Novem,TMX TERMINIX INTL
Community Resources,Other profess & tech services,01/19/2022,49.20,Golf Course Enterprise Fund,monthly pest service for Novem,TMX TERMINIX INTL
Community Resources,Other profess & tech services,01/19/2022,123.00,General Fund,Volunteer Mgmt Software,VOLGISTICS INC
Community Resources,Other profess & tech services,01/19/2022,532.92,Golf Course Enterprise Fund,DEN-GREASAE TRAP CLEANING,LIQUID ENVIRONMENTAL SOLU
Community Resources,Other profess & tech services,01/19/2022,230.00,Golf Course Enterprise Fund,TOILET CLEAN OUT,2 STEVE'S HANDYMAN & D
Community Resources,Other profess & tech services,01/19/2022,99.65,Open Space Fund,water for shop,WATER - COFFEE DELIVERY
Community Resources,Other profess & tech services,01/19/2022,353.00,General Fund,portolet(s),UNITED SITE SERVICES O
Community Resources,Other profess & tech services,01/19/2022,163.07,General Fund,portolet(s),UNITED SITE SERVICES O
Community Resources,Other profess & tech services,01/19/2022,247.88,Open Space Fund,ice for shop,BTS REDDY ICE
Community Resources,Other profess & tech services,01/19/2022,65.91,General Fund,Hardware supplies,THE HOME DEPOT 1514
Community Resources,Other profess & tech services,01/19/2022,107.00,Open Space Fund,Pest Control,WWP SPRAGUE PEST SOLUTION
Community Resources,Other profess & tech services,01/19/2022,13.43,General Fund,Hardware supplies,THE HOME DEPOT 1514
Community Resources,Other profess & tech services,01/19/2022,20.98,General Fund,Equipment knobs,LIFE FITNESS LLC
Community Resources,Other profess & tech services,01/19/2022,4.76,General Fund,Bolts,ACE HDWE OF JEWELL SQ
Community Resources,Other profess & tech services,01/19/2022,865.38,General Fund,Bars,PUSH PEDAL PULL
Community Resources,Other profess & tech services,01/19/2022,958.57,General Fund,Bench,PUSH PEDAL PULL
Community Resources,Other profess & tech services,01/19/2022,250.00,"Heritage, Culture & Arts Fund",annual membership,CHAMBER MUSIC AMERICA
Community Resources,Other profess & tech services,01/19/2022,2425.00,"Heritage, Culture & Arts Fund",Historical Plaster Analysis- 1,SQ  ATKINSON-NOLAND & ASS
Community Resources,Other profess & tech services,01/19/2022,253.02,General Fund,2021 Service HLBP Pest Control,ECOLAB INC
Community Resources,Other profess & tech services,01/19/2022,408.25,General Fund,Interpreter for rec league act,ROSE SIGN LANGUAGE
Community Resources,Other property services,01/19/2022,320.00,General Fund,2021 Service 1050 Quail St. Un,SQ  REUNION SEWER & DRAIN
Community Resources,Other property services,01/19/2022,460.00,General Fund,2021 Service 1050/1060 Quail D,SQ  REUNION SEWER & DRAIN
Community Resources,Other property services,01/19/2022,995.72,General Fund,15 Yard Roll-Off Dumpster- Tra,WASTE MGMT WM EZPAY
Community Resources,Other property services,01/19/2022,208.56,General Fund,pest control - 2mo,WWP SPRAGUE PEST SOLUTION
Community Resources,Other property services,01/19/2022,208.56,General Fund,pest control - 2mo,WWP SPRAGUE PEST SOLUTION
Community Resources,Other property services,01/19/2022,208.56,General Fund,pest control - 2mo,WWP SPRAGUE PEST SOLUTION
Community Resources,Other property services,01/19/2022,208.56,General Fund,pest control - 2mo,WWP SPRAGUE PEST SOLUTION
Community Resources,Other property services,01/19/2022,287.00,General Fund,Fox Hollow Golf Course - Fire,AEGIS LIFE AND FIRE SAFET
Community Resources,Other property services,01/19/2022,352.00,General Fund,Fox Hollow Main - Fire Sprinkl,AEGIS LIFE AND FIRE SAFET
Community Resources,Other property services,01/19/2022,480.00,General Fund,Civic South Parking Structure,AEGIS LIFE AND FIRE SAFET
Community Resources,Other property services,01/19/2022,310.00,Open Space Fund,CARMODY REC CENTER,"BACK FLOW TECH., INC."
Community Resources,Other property services,01/19/2022,85.00,Open Space Fund,STONE HOUSE,"BACK FLOW TECH., INC."
Community Resources,Other property services,01/19/2022,160.00,General Fund,DEVINNEY COTTAGE,"BACK FLOW TECH., INC."
Community Resources,Other property services,01/19/2022,160.00,General Fund,WILBUR ROGERS CENTER,"BACK FLOW TECH., INC."
Community Resources,Other property services,01/19/2022,85.00,General Fund,DEVINNEY COTTAGE,"BACK FLOW TECH., INC."
Community Resources,Other property services,01/19/2022,85.00,General Fund,FOX HOLLOW GOLF COURSE,"BACK FLOW TECH., INC."
Community Resources,Other property services,01/19/2022,85.00,General Fund,SOUTH SHERIDAN PARK,"BACK FLOW TECH., INC."
Community Resources,Other property services,01/19/2022,85.00,Open Space Fund,COMM BUILDING-OHIO AVE,"BACK FLOW TECH., INC."
Community Resources,Other property services,01/19/2022,85.00,Open Space Fund,RAY ROSS CONCESSION STAND,"BACK FLOW TECH., INC."
Community Resources,Other property services,01/19/2022,85.00,Open Space Fund,LINK REC CENTER,"BACK FLOW TECH., INC."
Community Resources,Other property services,01/19/2022,85.00,General Fund,WALRATH BUILDING,"BACK FLOW TECH., INC."
Community Resources,Other property services,01/19/2022,85.00,General Fund,STARR CENTER,"BACK FLOW TECH., INC."
Community Resources,Other services,01/19/2022,24.00,General Fund,Dec. water service,IN  AQUA SERVE
Community Resources,Other services,01/19/2022,54.50,Grants Fund,Fingerprints S. Anderson,IDENTOGO - CO FINGERPRINT
Community Resources,Other services,01/19/2022,54.50,Grants Fund,Fingerprints- M Rueda,IDENTOGO - CO FINGERPRINT
Community Resources,Other services,01/19/2022,120.00,Grants Fund,Life Safety Inspection- 11th A,W METRO FIRE RESCUE
Community Resources,Other services,01/19/2022,6.95,Grants Fund,Life Safety Inspection- 11th A,TYL WEST METRO SRV FEE
Community Resources,Other small tools & equipment,01/19/2022,26.91,General Fund,Pruning blades for cutbacks,THE HOME DEPOT 1514
Community Resources,Other small tools & equipment,01/19/2022,102.75,"Heritage, Culture & Arts Fund",tools,THE HOME DEPOT 1514
Community Resources,Other small tools & equipment,01/19/2022,366.00,"Heritage, Culture & Arts Fund",tools,THE HOME DEPOT 1514
Community Resources,Other small tools & equipment,01/19/2022,599.00,"Heritage, Culture & Arts Fund",tool replacement,THE HOME DEPOT 1514
Community Resources,Other small tools & equipment,01/19/2022,44.74,Open Space Fund,large cable cutters for batter,AMAZON.COM
Community Resources,Other small tools & equipment,01/19/2022,67.35,Open Space Fund,adjustable wrench pliers for h,AMAZON.COM
Community Resources,Other small tools & equipment,01/19/2022,24.91,Open Space Fund,fuel line hoses and hex driver,AMAZON.COM
Community Resources,Other small tools & equipment,01/19/2022,33.76,Open Space Fund,spring tool for attaching exha,AMAZON.COM
Community Resources,Other small tools & equipment,01/19/2022,209.28,Open Space Fund,Tools/supplies,THE HOME DEPOT 1514
Community Resources,Other small tools & equipment,01/19/2022,264.88,"Heritage, Culture & Arts Fund",A/V Adaptors,AMAZON.COM
Community Resources,Other small tools & equipment,01/19/2022,30.55,"Heritage, Culture & Arts Fund",Moving Light Maintenance Parts,TL PRO
Community Resources,Other small tools & equipment,01/19/2022,59.94,Open Space Fund,Two utility heaters for Addenb,THE HOME DEPOT 1514
Community Resources,Photo supplies,01/19/2022,42.00,Golf Course Enterprise Fund,Holiday cards for seasonal cre,WALGREENS #13968
Community Resources,Plant equipment,01/19/2022,119.97,Capital Improvement Fund,"Camp Christmas, Cords, plug st",THE HOME DEPOT 1514
Community Resources,Plumb. and elect. supplies,01/19/2022,324.29,General Fund,"BCLP- electrical repair, Under",INTER-MOUNTAIN DISTR
Community Resources,Plumb. and elect. supplies,01/19/2022,377.48,Golf Course Enterprise Fund,BATHROOM SUPPLIES/ TOILET,THE HOME DEPOT 1514
Community Resources,Plumb. and elect. supplies,01/19/2022,750.00,Golf Course Enterprise Fund,GRILL-ENZYMES FOR GREASE TRAP,UNITED LABORATORIES INC
Community Resources,Plumb. and elect. supplies,01/19/2022,1125.00,Golf Course Enterprise Fund,DEN-ENZYMES FOR GREASE TRAP 3,UNITED LABORATORIES INC
Community Resources,Plumb. and elect. supplies,01/19/2022,258.84,General Fund,Devinnie cottage-outside light,CONSERVE-A-WATT LIGHTI
Community Resources,Plumb. and elect. supplies,01/19/2022,400.00,General Fund,Link- bulbs,CONSERVE-A-WATT LIGHTI
Community Resources,Plumb. and elect. supplies,01/19/2022,915.74,General Fund,Public safety center-step ligh,CONSERVE-A-WATT LIGHTI
Community Resources,Plumb. and elect. supplies,01/19/2022,1035.36,General Fund,Devinnie outage- outside light,CONSERVE-A-WATT LIGHTI
Community Resources,Plumb. and elect. supplies,01/19/2022,1500.00,General Fund,Stock- LED t-8 light bulbs,CONSERVE-A-WATT LIGHTI
Community Resources,Plumb. and elect. supplies,01/19/2022,1615.60,General Fund,Fleet- wall packs,CONSERVE-A-WATT LIGHTI
Community Resources,Plumb. and elect. supplies,01/19/2022,150.15,General Fund,Fleet—breaker,WW GRAINGER
Community Resources,Plumb. and elect. supplies,01/19/2022,1000.00,General Fund,Devinnie cottage- LED  t-8 lig,CONSERVE-A-WATT LIGHTI
Community Resources,Plumb. and elect. supplies,01/19/2022,1025.00,General Fund,"Fleet- wire , panel, breaker a",1872 CED
Community Resources,Plumb. and elect. supplies,01/19/2022,146.65,General Fund,Finance-dimmer and switches,1872 CED
Community Resources,Plumb. and elect. supplies,01/19/2022,178.86,General Fund,Belmar-light bulbs,CONSERVE-A-WATT LIGHTI
Community Resources,Plumb. and elect. supplies,01/19/2022,1146.27,General Fund,Belmar- pole,CONSERVE-A-WATT LIGHTI
Community Resources,Plumb. and elect. supplies,01/19/2022,79.99,General Fund,PSC-   Garbage disposal for se,ACE HDWE OF JEWELL SQ
Community Resources,Plumb. and elect. supplies,01/19/2022,98.50,General Fund,Green MTN rec-   Pool pump tea,BOBS ELECTRIC MOTOR SE
Community Resources,Plumb. and elect. supplies,01/19/2022,1572.90,General Fund,Homestead-   New bottle fill d,"RAMPART SUPPLY, INC"
Community Resources,Plumb. and elect. supplies,01/19/2022,19.98,General Fund,11th ave head start-   toilet,THE HOME DEPOT 1514
Community Resources,Promotional expense,01/19/2022,146.40,Golf Course Enterprise Fund,CHRISTMAS TREE SETUP,THE HOMESTEAD GRILL
Community Resources,Promotional expense,01/19/2022,78.06,Golf Course Enterprise Fund,IT & FINANCE LUNCH,OLIVE GARDEN 0021486
Community Resources,Recreation equipment-non cap,01/19/2022,119.10,"Heritage, Culture & Arts Fund",Storage boxes and replacement,TARGET        00027177
Community Resources,Recreation equipment-non cap,01/19/2022,379.00,"Heritage, Culture & Arts Fund",charging cart for ipads,AMAZON.COM
Community Resources,Recreation equipment-non cap,01/19/2022,1057.05,"Heritage, Culture & Arts Fund",frames for rug tufting fibers,SP   TUFT THE WORLD
Community Resources,Recreation equipment-non cap,01/19/2022,198.15,"Heritage, Culture & Arts Fund",Replacement utility cart,AMAZON.COM
Community Resources,Recreation equipment-non cap,01/19/2022,938.60,"Heritage, Culture & Arts Fund",Sewing machines for fibers cla,AMAZON.COM
Community Resources,Recreation equipment-non cap,01/19/2022,48.55,"Heritage, Culture & Arts Fund",Performance Assistant Uniform,UNIFORMAL WEARHOUSE
Community Resources,Recreational supplies,01/19/2022,140.00,General Fund,BCLP storage containers,HAULAWAY STORAGE CONTAINE
Community Resources,Recreational supplies,01/19/2022,74.98,Golf Course Enterprise Fund,DEN-REAL CHRISTMAS TREE,THE HOME DEPOT 1514
Community Resources,Recreational supplies,01/19/2022,323.98,"Heritage, Culture & Arts Fund",Program equipment: room track,SP   ROOMDIVIDERSNOW
Community Resources,Recreational supplies,01/19/2022,52.93,"Heritage, Culture & Arts Fund",Art class supply: hot glue sti,AMAZON.COM
Community Resources,Recreational supplies,01/19/2022,32.80,"Heritage, Culture & Arts Fund",Art class supply: coffee filte,AMAZON.COM
Community Resources,Recreational supplies,01/19/2022,479.71,"Heritage, Culture & Arts Fund",Art class supply: brush cleane,AMAZON.COM
Community Resources,Recreational supplies,01/19/2022,833.75,"Heritage, Culture & Arts Fund","Art class supply: paint, brush",DBC BLICK ART MATERIAL
Community Resources,Recreational supplies,01/19/2022,332.83,"Heritage, Culture & Arts Fund","Art class supply: brushes, rul",AMAZON.COM
Community Resources,Recreational supplies,01/19/2022,95.75,"Heritage, Culture & Arts Fund",Art class supply: plastic craf,MICHAELS #2104
Community Resources,Recreational supplies,01/19/2022,104.94,"Heritage, Culture & Arts Fund",Art class supply: craft wire,DBC BLICK ART MATERIAL
Community Resources,Recreational supplies,01/19/2022,61.39,"Heritage, Culture & Arts Fund",Art class supply: plastic craf,MICHAELS #2104
Community Resources,Recreational supplies,01/19/2022,458.95,"Heritage, Culture & Arts Fund",Program equipment: button make,AMZ BADGEAMINIT
Community Resources,Recreational supplies,01/19/2022,1175.62,"Heritage, Culture & Arts Fund",Program equipment: book cart,AMZ SCHOOL OUTFITTER
Community Resources,Recreational supplies,01/19/2022,815.02,"Heritage, Culture & Arts Fund",Gallery equipment: lift cart,ULINE   SHIP SUPPLIES
Community Resources,Recreational supplies,01/19/2022,693.00,"Heritage, Culture & Arts Fund",Program equipment: Apple pens,APPLE STORE R228
Community Resources,Recreational supplies,01/19/2022,792.00,"Heritage, Culture & Arts Fund",Program equipment: Apple pens,APPLE STORE R228
Community Resources,Recreational supplies,01/19/2022,288.60,"Heritage, Culture & Arts Fund",Outreach class supply: portabl,AMAZON.COM
Community Resources,Recreational supplies,01/19/2022,91.94,"Heritage, Culture & Arts Fund","Art class supply: felt, pens s",AMAZON.COM
Community Resources,Recreational supplies,01/19/2022,12.82,"Heritage, Culture & Arts Fund",Art class supply: scotch tape,AMAZON.COM
Community Resources,Recreational supplies,01/19/2022,287.92,General Fund,bio drain gel,AMAZON.COM
Community Resources,Recreational supplies,01/19/2022,1385.79,General Fund,flooring,THE HOME DEPOT 1514
Community Resources,Recreational supplies,01/19/2022,1433.75,General Fund,"plastic, flooring",THE HOME DEPOT 1514
Community Resources,Recreational supplies,01/19/2022,280.00,General Fund,plyo boxes,AMAZON.COM
Community Resources,Recreational supplies,01/19/2022,265.48,General Fund,weight bars,AMAZON.COM
Community Resources,Recreational supplies,01/19/2022,124.59,General Fund,"floor scraper, great stuff, sh",THE HOME DEPOT 1514
Community Resources,Recreational supplies,01/19/2022,55.92,General Fund,"duct tape, plastic sheeting",THE HOME DEPOT 1514
Community Resources,Recreational supplies,01/19/2022,29.95,General Fund,weight bar accessory,AMAZON.COM
Community Resources,Recreational supplies,01/19/2022,119.16,General Fund,2x4,THE HOME DEPOT 1514
Community Resources,Recreational supplies,01/19/2022,19.97,General Fund,socket set,THE HOME DEPOT 1514
Community Resources,Recreational supplies,01/19/2022,29.49,General Fund,remote control outlet,AMAZON.COM
Community Resources,Recreational supplies,01/19/2022,2978.00,General Fund,6' tables,MITY LITE
Community Resources,Recreational supplies,01/19/2022,25.32,General Fund,SAS  supplies,AMAZON.COM
Community Resources,Recreational supplies,01/19/2022,61.51,General Fund,"2x4, screws, plywood",THE HOME DEPOT 1514
Community Resources,Recreational supplies,01/19/2022,628.20,General Fund,Fall/Winter Youth Basketball M,CROWN TROPHY AURORA
Community Resources,Recreational supplies,01/19/2022,4433.06,General Fund,Nustep equipment,PUSH PEDAL PULL
Community Resources,Recreational supplies,01/19/2022,1107.00,General Fund,GMRC pool timing system,COLORADO TIME SYSTEMS
Community Resources,Recreational supplies,01/19/2022,37.98,General Fund,2021 lights,AMAZON.COM
Community Resources,Recreational supplies,01/19/2022,12.36,"Heritage, Culture & Arts Fund",Snacks for Craft-Tea,KING SOOPERS #0127
Community Resources,Recreational supplies,01/19/2022,12.37,"Heritage, Culture & Arts Fund",Snacks for History Happy Hour,KING SOOPERS #0127
Community Resources,Recreational supplies,01/19/2022,-17.72,General Fund,Refund for tax charged,SCP DISTRIBUTORS - 29
Community Resources,Recreational supplies,01/19/2022,427.38,General Fund,Remotes for Link lift,"IN  CEM SALES & SERVICE,"
Community Resources,Recreational supplies,01/19/2022,35.35,General Fund,Hole punchers for Winter Welln,AMAZON.COM
Community Resources,Recreational supplies,01/19/2022,340.00,"Heritage, Culture & Arts Fund",WH Repairs,MARK'S KILN REPAIR
Community Resources,Recreational supplies,01/19/2022,93.45,"Heritage, Culture & Arts Fund",Felting kits for fibers classe,AMAZON.COM
Community Resources,Recreational supplies,01/19/2022,170.25,"Heritage, Culture & Arts Fund",holiday sale displays and pack,AMAZON.COM
Community Resources,Recreational supplies,01/19/2022,1907.25,"Heritage, Culture & Arts Fund","Shelves, posts, and misc kiln",LAGUNA CLAY  COMPANY
Community Resources,Recreational supplies,01/19/2022,387.99,"Heritage, Culture & Arts Fund",Tapestry looms for Fibers stud,AMAZON.COM
Community Resources,Recreational supplies,01/19/2022,3177.00,General Fund,Freedom Trax,IN  TOUR ENGINEERING LLC
Community Resources,Recreational supplies,01/19/2022,907.49,"Heritage, Culture & Arts Fund",materials for future fibers cl,AMAZON.COM
Community Resources,Recreational supplies,01/19/2022,763.24,"Heritage, Culture & Arts Fund",restock materials for oil pain,DBC BLICK ART MATERIAL
Community Resources,Recreational supplies,01/19/2022,23.99,"Heritage, Culture & Arts Fund",yarn winder for fibers classes,AMAZON.COM
Community Resources,Recreational supplies,01/19/2022,39.59,"Heritage, Culture & Arts Fund",duck cloth for rug tufting cla,AMAZON.COM
Community Resources,Recreational supplies,01/19/2022,829.00,"Heritage, Culture & Arts Fund",Air filtration system for glaz,BAILEIGH INDUSTRIAL HOLD
Community Resources,Recreational supplies,01/19/2022,81.02,"Heritage, Culture & Arts Fund","Paint, mini roller tray, foam",THE HOME DEPOT 1514
Community Resources,Recreational supplies,01/19/2022,74.97,"Heritage, Culture & Arts Fund",Shop vacuum for pottery studio,THE HOME DEPOT 1514
Community Resources,Recreational supplies,01/19/2022,529.10,"Heritage, Culture & Arts Fund",Precious metal silver and poli,RIO GRANDE INC
Community Resources,Recreational supplies,01/19/2022,372.66,Open Space Fund,Park events string lights,THE HOME DEPOT 1514
Community Resources,Recreational supplies,01/19/2022,556.00,Open Space Fund,"4, 50 gallon trash lids",AMAZON.COM
Community Resources,Recreational supplies,01/19/2022,-25.00,Open Space Fund,refund from ASP (baton trainin,NASP INC
Community Resources,Recreational supplies,01/19/2022,83.52,"Heritage, Culture & Arts Fund",Cargo Mats for flat bed,AMAZON.COM
Community Resources,Recreational supplies,01/19/2022,295.00,General Fund,Fitness bands,SP   CROSSOVER SYMMETR
Community Resources,Recreational supplies,01/19/2022,29.91,"Heritage, Culture & Arts Fund",Event Tools: Wire Cutters,THE HOME DEPOT 1514
Community Resources,Recreational supplies,01/19/2022,83.52,"Heritage, Culture & Arts Fund",Cargo Mats for flat bed,AMAZON.COM
Community Resources,Recreational supplies,01/19/2022,-15.25,"Heritage, Culture & Arts Fund",Hinges for front desk (refund),THE HOME DEPOT 1514
Community Resources,Recreational supplies,01/19/2022,7055.70,Golf Course Enterprise Fund,RANGE BALLS,WILSON SPORTING GOLF
Community Resources,Recreational supplies,01/19/2022,2341.58,Golf Course Enterprise Fund,RANGE BALLS,WILSON SPORTING GOLF
Community Resources,Recreational supplies,01/19/2022,8.83,General Fund,Cooking Class Supplies,KING SOOPERS #0127
Community Resources,Recreational supplies,01/19/2022,1282.67,General Fund,Mats and Pilates Rings,"BALANCED BODY, INC"
Community Resources,Recreational supplies,01/19/2022,54.00,General Fund,Pilates bins,TARGET  00017764
Community Resources,Recreational supplies,01/19/2022,27.77,General Fund,Wristbands for Basketball leag,AMAZON.COM
Community Resources,Recreational supplies,01/19/2022,270.79,General Fund,Therabands,AMAZON.COM
Community Resources,Recreational supplies,01/19/2022,1462.81,General Fund,Equipment for personal trainin,REP FITNESS LLC
Community Resources,Recreational supplies,01/19/2022,149.90,General Fund,Yoga blocks,AMAZON.COM
Community Resources,Recreational supplies,01/19/2022,17.99,General Fund,SAS Winter Break supplies,AMAZON.COM
Community Resources,Recreational supplies,01/19/2022,6.99,General Fund,SAS disposable masks for staff,AMAZON.COM
Community Resources,Recreational supplies,01/19/2022,151.51,General Fund,SAS winter break supplies,AMAZON.COM
Community Resources,Recreational supplies,01/19/2022,1200.00,"Heritage, Culture & Arts Fund",2021 Service Wash. Heights Rep,SQ  COOPERWORKS
Community Resources,Recreational supplies,01/19/2022,10.00,General Fund,SAS Winter Break supplies,AMAZON.COM
Community Resources,Recreational supplies,01/19/2022,5.12,General Fund,SAS Program Winter Break Suppl,WAL-MART
Community Resources,Rent - land & buildings,01/19/2022,1200.00,General Fund,2021 Invoice 51378 HLBP Camp C,SQ  BEVERLY HILLS GLASS R
Community Resources,Rent - land & buildings,01/19/2022,397.00,General Fund,Car # 25 January Payment,GSA-FINANCE DIVISON
Community Resources,Rental of equipment & vehicles,01/19/2022,1657.39,Golf Course Enterprise Fund,Blowout compressor rental Holl,"WAGNER EXCHANGE, LLC"
Community Resources,Rental of equipment & vehicles,01/19/2022,710.31,Golf Course Enterprise Fund,Blowout compressor rental Home,"WAGNER EXCHANGE, LLC"
Community Resources,Rental of equipment & vehicles,01/19/2022,9180.15,Golf Course Enterprise Fund,1/15-2/14 Golf Cart Lease,PNC Equip Finance EFT
Community Resources,Rental of equipment & vehicles,01/19/2022,5899.67,Golf Course Enterprise Fund,1/15-2/14 Golf Cart Lease,PNC Equip Finance EFT
Community Resources,Rental of equipment & vehicles,01/19/2022,1302.94,Golf Course Enterprise Fund,12/15-1/14 Golf Haulers Lease,PNC Equip Finance EFT
Community Resources,Rental of equipment & vehicles,01/19/2022,868.63,Golf Course Enterprise Fund,12/15-1/14 Golf Haulers Lease,PNC Equip Finance EFT
Community Resources,Repair & maintenance supplies,01/19/2022,30.18,General Fund,Replacement parts for Carm ste,AMAZON.COM
Community Resources,Repair & maintenance supplies,01/19/2022,49.52,Open Space Fund,Push brooms and zip-ties for p,LOWES #01903
Community Resources,Repair & maintenance supplies,01/19/2022,23.98,Open Space Fund,Colored rope to close two pavi,GREEN MOUNTAIN ACE HDW
Community Resources,Repair & maintenance supplies,01/19/2022,209.00,Open Space Fund,Fibar Poured in place repair k,SP   FIBARMAT WEAR MAT
Community Resources,Repair & maintenance supplies,01/19/2022,230.29,General Fund,Forestry supplies,THE HOME DEPOT 1514
Community Resources,Repair & maintenance supplies,01/19/2022,707.95,Open Space Fund,Replacement playground parts,GAMETIME
Community Resources,Repair & maintenance supplies,01/19/2022,64.69,General Fund,Tubing Replacement,GREEN MOUNTAIN ACE HDW
Community Resources,Repair & maintenance supplies,01/19/2022,63.96,Open Space Fund,Greenhouse supplies,JENSONS FLOWER AND GARDEN
Community Resources,Repair & maintenance supplies,01/19/2022,79.50,Open Space Fund,Greenhouse supplies,BENEFICIAL INSECTARY INC
Community Resources,Repair & maintenance supplies,01/19/2022,57.56,Open Space Fund,Greenhouse supplies,ACE HDWE OF JEWELL SQ
Community Resources,Repair & maintenance supplies,01/19/2022,82.97,Open Space Fund,Ice spreader,GREEN MOUNTAIN ACE HDW
Community Resources,Repair & maintenance supplies,01/19/2022,180.85,General Fund,Forestry supplies,TREE STUFF.COM
Community Resources,Repair & maintenance supplies,01/19/2022,15.30,Open Space Fund,9v batteries.,THE HOME DEPOT 1514
Community Resources,Repair & maintenance supplies,01/19/2022,2275.00,Open Space Fund,Playground mulch for the playg,PIONEER SAND CO HQ
Community Resources,Repair & maintenance supplies,01/19/2022,525.00,Open Space Fund,ProGreen registration for Shaw,PROGREEN EXPO22
Community Resources,Repair & maintenance supplies,01/19/2022,2987.49,Open Space Fund,Playground mulch for the playg,PIONEER SAND CO HQ
Community Resources,Repair & maintenance supplies,01/19/2022,97.63,Open Space Fund,Paint/Supplies for Jackson Par,THE HOME DEPOT 1514
Community Resources,Repair & maintenance supplies,01/19/2022,66.64,Open Space Fund,"Paint, wood filler, putty kniv",ACE HDWE OF JEWELL SQ
Community Resources,Repair & maintenance supplies,01/19/2022,25.98,Open Space Fund,Paint supplies,ACE HDWE OF JEWELL SQ
Community Resources,Repair & maintenance supplies,01/19/2022,26.97,Open Space Fund,Push broom for truck  334.,THE HOME DEPOT 1514
Community Resources,Repair & maintenance supplies,01/19/2022,37.06,Open Space Fund,Torx bits-Ray Ross Park,THE HOME DEPOT 1514
Community Resources,Repair & maintenance supplies,01/19/2022,499.98,Open Space Fund,Graffiti remover for the Parks,AIS SPECIALTY PRODUCTS
Community Resources,Repair & maintenance supplies,01/19/2022,499.98,Open Space Fund,Graffiti remover for the Parks,AIS SPECIALTY PRODUCTS
Community Resources,Repair & maintenance supplies,01/19/2022,34.44,Open Space Fund,Wood stain for Jackson boards,THE HOME DEPOT 1514
Community Resources,Repair & maintenance supplies,01/19/2022,46.64,Golf Course Enterprise Fund,FABRIC FOR SHUTTLE SEATS,JOANN STORES #2234
Community Resources,Repair & maintenance supplies,01/19/2022,696.24,Golf Course Enterprise Fund,SPIKE CLEANERS FOR ALL ENTRANC,WITTEK GOLF SUPPLY
Community Resources,Repair & maintenance supplies,01/19/2022,15.97,Open Space Fund,"Impact Torx bits, car charger",ACE HDWE OF JEWELL SQ
Community Resources,Repair & maintenance supplies,01/19/2022,91.56,Open Space Fund,Lakewood Park garage storage i,THE HOME DEPOT 1514
Community Resources,Repair & maintenance supplies,01/19/2022,53.96,Open Space Fund,Storage tubs for Lakewood Park,GREEN MOUNTAIN ACE HDW
Community Resources,Repair & maintenance supplies,01/19/2022,103.02,Open Space Fund,Fee for pesticide license.,CO DORA LICENSING
Community Resources,Repair & maintenance supplies,01/19/2022,182.54,Open Space Fund,Paint supplies for Daniels Par,THE HOME DEPOT 1514
Community Resources,Repair & maintenance supplies,01/19/2022,103.02,Open Space Fund,Fee for his pesticide license.,CO DORA LICENSING
Community Resources,Repair & maintenance supplies,01/19/2022,254.11,Golf Course Enterprise Fund,fox hollow golf target rings,WITTEK GOLF SUPPLY
Community Resources,Repair & maintenance supplies,01/19/2022,195.50,General Fund,Forestry tools,R&M SALES COMPANY INC
Community Resources,Repair & maintenance supplies,01/19/2022,40.80,Golf Course Enterprise Fund,marking flags for fox hollow,LL JOHNSON DISTRIBUTING CO
Community Resources,Repair & maintenance supplies,01/19/2022,-17.99,Golf Course Enterprise Fund,light bulb return,LOWES #01903
Community Resources,Repair & maintenance supplies,01/19/2022,179.86,Golf Course Enterprise Fund,"tax on report, not on receipt.",CPS DISTRIBUTORS #18
Community Resources,Repair & maintenance supplies,01/19/2022,-11.99,Golf Course Enterprise Fund,light bulb return,LOWES #01903
Community Resources,Repair & maintenance supplies,01/19/2022,11.97,Golf Course Enterprise Fund,light bulbs,LOWES #01903
Community Resources,Repair & maintenance supplies,01/19/2022,7.99,Golf Course Enterprise Fund,light bulbs,LOWES #01903
Community Resources,Repair & maintenance supplies,01/19/2022,17.98,Golf Course Enterprise Fund,light bulbs,LOWES #01903
Community Resources,Repair & maintenance supplies,01/19/2022,12.00,Golf Course Enterprise Fund,light bulbs,LOWES #01903
Community Resources,Repair & maintenance supplies,01/19/2022,37.80,Golf Course Enterprise Fund,nails,LOWES #01903
Community Resources,Repair & maintenance supplies,01/19/2022,25.20,Golf Course Enterprise Fund,nails,LOWES #01903
Community Resources,Repair & maintenance supplies,01/19/2022,50.58,Golf Course Enterprise Fund,"tax on report, not on receipt.",CPS DISTRIBUTORS #18
Community Resources,Repair & maintenance supplies,01/19/2022,33.72,Golf Course Enterprise Fund,"tax on report, not on receipt.",CPS DISTRIBUTORS #18
Community Resources,Repair & maintenance supplies,01/19/2022,10.20,Golf Course Enterprise Fund,red marking flags for fox holl,LL JOHNSON DISTRIBUTING CO
Community Resources,Repair & maintenance supplies,01/19/2022,22.29,Golf Course Enterprise Fund,cup covers,LL JOHNSON DISTRIBUTING CO
Community Resources,Repair & maintenance supplies,01/19/2022,14.86,Golf Course Enterprise Fund,cup covers,LL JOHNSON DISTRIBUTING CO
Community Resources,Repair & maintenance supplies,01/19/2022,14.98,Open Space Fund,Hardware for dumpster enclosur,THE HOME DEPOT 1514
Community Resources,Repair & maintenance supplies,01/19/2022,6.48,Open Space Fund,Batteries.,THE HOME DEPOT 1514
Community Resources,Repair & maintenance supplies,01/19/2022,446.30,Open Space Fund,chemicals for diesel and gas e,KENZ & LESLIE DISTRIBU
Community Resources,Repair & maintenance supplies,01/19/2022,250.50,Open Space Fund,tires for unit 440 mower (Ray,LITTLE TIRES AND WHEEL
Community Resources,Repair & maintenance supplies,01/19/2022,12.66,Open Space Fund,25 amp fuses for stock,AMAZON.COM
Community Resources,Repair & maintenance supplies,01/19/2022,45.54,Open Space Fund,piston ring clamps for use on,AMAZON.COM
Community Resources,Repair & maintenance supplies,01/19/2022,228.67,Open Space Fund,Orange fence to close two pavi,CPS DISTRIBUTORS #18
Community Resources,Repair & maintenance supplies,01/19/2022,35.88,Open Space Fund,Zip-ties.,THE HOME DEPOT 1514
Community Resources,Repair & maintenance supplies,01/19/2022,43.21,Open Space Fund,Batteries.,THE HOME DEPOT 1514
Community Resources,Repair & maintenance supplies,01/19/2022,15.98,Open Space Fund,Hardware to repair hose reel @,ACE HDWE OF JEWELL SQ
Community Resources,Repair & maintenance supplies,01/19/2022,5.75,Open Space Fund,Hardware to repair hose reel @,THE HOME DEPOT 1514
Community Resources,Repair & maintenance supplies,01/19/2022,11.00,Open Space Fund,5 amp fuses for stock,AMAZON.COM
Community Resources,Repair & maintenance supplies,01/19/2022,36.52,Open Space Fund,"30 amp, 20amp and 10 amp fuses",AMAZON.COM
Community Resources,Repair & maintenance supplies,01/19/2022,62.62,Open Space Fund,"Shims for Belmar Dock, Torx bi",THE HOME DEPOT 1514
Community Resources,Repair & maintenance supplies,01/19/2022,19.36,Open Space Fund,Bungees and Velcro for Dan Nie,THE HOME DEPOT 1514
Community Resources,Repair & maintenance supplies,01/19/2022,37.06,Open Space Fund,Concrete for Belmar memorial b,THE HOME DEPOT 1514
Community Resources,Repair & maintenance supplies,01/19/2022,-350.50,Open Space Fund,Credit for return on playgroun,STAR PLAYGROUNDS
Community Resources,Repair & maintenance supplies,01/19/2022,47.94,Open Space Fund,Carbide reciprocating saw blad,THE HOME DEPOT 1514
Community Resources,Repair & maintenance supplies,01/19/2022,115.00,Open Space Fund,Replacement memorial plaque fo,FORUM ENGRAVING COMPANY
Community Resources,Repairs & maint - bldgs,01/19/2022,65.00,General Fund,Storage Rental Container- Patt,COMPLETE CONTAINER SERVIC
Community Resources,Repairs & maint - bldgs,01/19/2022,52.91,Golf Course Enterprise Fund,SUPP;LIES FOR BATHROOM REDO,THE HOME DEPOT 1514
Community Resources,Repairs & maint - bldgs,01/19/2022,45.98,Golf Course Enterprise Fund,VACUUM PARTS,VACUUM WORLD
Community Resources,Repairs & maint - bldgs,01/19/2022,42.73,Golf Course Enterprise Fund,PAINT FORDA BATHROOM,THE HOME DEPOT 1514
Community Resources,Repairs & maint - bldgs,01/19/2022,40.55,Capital Improvement Fund,Fleet Car Was Signage,FASTSIGNS OF ARVADA
Community Resources,Repairs & maint - equipment,01/19/2022,190.47,Golf Course Enterprise Fund,PARTS,EZGO CUSTOMER PORTAL
Community Resources,Repairs & maint - equipment,01/19/2022,147.92,Golf Course Enterprise Fund,BEVERAGE CART BELTS,GTI GOLF CARS
Community Resources,Repairs & maint - equipment,01/19/2022,190.47,Golf Course Enterprise Fund,PARTS,EZGO CUSTOMER PORTAL
Community Resources,Repairs & maint - equipment,01/19/2022,890.00,General Fund,Pool Table refelt,SHOWCASE BILLIARD SERVICE
Community Resources,Repairs & maint - equipment,01/19/2022,3119.50,Golf Course Enterprise Fund,2021 Service Fox Hollow Golf C,HAWKINS COMMERCIAL APPLIANCE SERV
Community Resources,Repairs & maint-motor vehicles,01/19/2022,138.05,Golf Course Enterprise Fund,bobcat loader tire replacement,BOBCAT GOLDEN
Community Resources,Repairs & maint-motor vehicles,01/19/2022,92.04,Golf Course Enterprise Fund,bobcat loader tire replacement,BOBCAT GOLDEN
Community Resources,Repairs & maint-motor vehicles,01/19/2022,14.94,Golf Course Enterprise Fund,shop batteries,LOWES #01903
Community Resources,Repairs & maint-motor vehicles,01/19/2022,90.69,Golf Course Enterprise Fund,greensmower repair parts,LL JOHNSON DISTRIBUTING CO
Community Resources,Repairs & maint-motor vehicles,01/19/2022,60.46,Golf Course Enterprise Fund,greensmower repair parts,LL JOHNSON DISTRIBUTING CO
Community Resources,Repairs & maint-motor vehicles,01/19/2022,38.48,Golf Course Enterprise Fund,"tax on report, not on receipt.",WHISLER BEARING CO
Community Resources,Repairs & maint-motor vehicles,01/19/2022,17.49,Golf Course Enterprise Fund,bolts for tractor repairs,AAA METRIC SUPPLY LLC
Community Resources,Repairs & maint-motor vehicles,01/19/2022,11.67,Golf Course Enterprise Fund,bolts for tractor repairs,AAA METRIC SUPPLY LLC
Community Resources,Repairs & maint-motor vehicles,01/19/2022,4.32,Golf Course Enterprise Fund,bolts for tractor repairs,AAA METRIC SUPPLY LLC
Community Resources,Repairs & maint-motor vehicles,01/19/2022,2.88,Golf Course Enterprise Fund,bolts for tractor repairs,AAA METRIC SUPPLY LLC
Community Resources,Repairs & maint-motor vehicles,01/19/2022,57.70,Golf Course Enterprise Fund,"tax on report, not on receipt.",WHISLER BEARING CO
Community Resources,Repairs & maint-motor vehicles,01/19/2022,307.65,Golf Course Enterprise Fund,homestead cart repair parts,COLORADO GOLF AND TURF IN
Community Resources,Repairs & maint-motor vehicles,01/19/2022,55.90,Golf Course Enterprise Fund,"tax on report, not on receipt.",WHISLER BEARING CO
Community Resources,Repairs & maint-motor vehicles,01/19/2022,37.28,Golf Course Enterprise Fund,"tax on report, not on receipt.",WHISLER BEARING CO
Community Resources,Repairs & maint-motor vehicles,01/19/2022,340.35,Golf Course Enterprise Fund,greensmower parts,LL JOHNSON DISTRIBUTING CO
Community Resources,Repairs & maint-motor vehicles,01/19/2022,226.91,Golf Course Enterprise Fund,greensmower parts,LL JOHNSON DISTRIBUTING CO
Community Resources,Repairs & maint-motor vehicles,01/19/2022,189.72,Golf Course Enterprise Fund,tires for stock.  tax on repor,GSH SALES LLC
Community Resources,Repairs & maint-motor vehicles,01/19/2022,126.48,Golf Course Enterprise Fund,tires for stock.  tax on repor,GSH SALES LLC
Community Resources,Repairs & maint-motor vehicles,01/19/2022,2867.59,"Heritage, Culture & Arts Fund",2021 Invoice 147001418,GENERATOR SOURCE LLC
Community Resources,Repairs & maint-motor vehicles,01/19/2022,79.26,Golf Course Enterprise Fund,brake parts,OREILLY AUTO  00027128
Community Resources,Repairs & maint-motor vehicles,01/19/2022,-79.26,Golf Course Enterprise Fund,brake parts returned,OREILLY AUTO  00027128
Community Resources,Repairs & maint-motor vehicles,01/19/2022,74.98,Golf Course Enterprise Fund,jumper kit and parts,OREILLY AUTO  00027128
Community Resources,Repairs & maint-motor vehicles,01/19/2022,50.00,Golf Course Enterprise Fund,jumper kit and parts,OREILLY AUTO  00027128
Community Resources,Repairs & maint-motor vehicles,01/19/2022,156.04,Golf Course Enterprise Fund,side closure plates for toro g,LL JOHNSON DISTRIBUTING CO
Community Resources,Repairs & maint-motor vehicles,01/19/2022,104.04,Golf Course Enterprise Fund,side closure plates for toro g,LL JOHNSON DISTRIBUTING CO
Community Resources,Sanitation,01/19/2022,684.76,Golf Course Enterprise Fund,compost dumpster service,GFL ENVIRONMENTAL SERVICE
Community Resources,Sanitation,01/19/2022,456.52,Golf Course Enterprise Fund,compost dumpster service,GFL ENVIRONMENTAL SERVICE
Community Resources,Sanitation,01/19/2022,96.00,"Heritage, Culture & Arts Fund",portolet(s),UNITED SITE SERVICES O
Community Resources,Sanitation,01/19/2022,3021.00,Open Space Fund,portolet(s),UNITED SITE SERVICES O
Community Resources,Sanitation,01/19/2022,9022.25,Open Space Fund,portolet(s),UNITED SITE SERVICES O
Community Resources,Sanitation,01/19/2022,8.30,General Fund,12258 W. Wisconsin Dr.,GREEN MOUNTAIN WATER
Community Resources,Sanitation,01/19/2022,8.30,Open Space Fund,600 S. Kipling St.,GREEN MOUNTAIN WATER
Community Resources,Sanitation,01/19/2022,8.30,General Fund,12268 W. Wisconsin Dr,GREEN MOUNTAIN WATER
Community Resources,Sanitation,01/19/2022,12.45,Open Space Fund,12100 W. Alameda Pkwy,GREEN MOUNTAIN WATER
Community Resources,Sanitation,01/19/2022,8.30,Open Space Fund,10600 W. Virginia Ave,GREEN MOUNTAIN WATER
Community Resources,Sanitation,01/19/2022,323.70,General Fund,13198 W. Green Mtn. Dr.,GREEN MOUNTAIN WATER
Community Resources,Sanitation,01/19/2022,8.30,General Fund,12266 W. Wisconsin Dr.,GREEN MOUNTAIN WATER
Community Resources,Telecommunications,01/19/2022,110.06,Grants Fund,City Cell Phones,ATT BILL PAYMENT
Community Resources,Telecommunications,01/19/2022,182.39,Golf Course Enterprise Fund,City Cell Phones,ATT BILL PAYMENT
Community Resources,Telecommunications,01/19/2022,67.06,Golf Course Enterprise Fund,City Cell Phones,ATT BILL PAYMENT
Community Resources,Telecommunications,01/19/2022,302.97,Golf Course Enterprise Fund,City Cell Phones,ATT BILL PAYMENT
Community Resources,Telecommunications,01/19/2022,12.03,Golf Course Enterprise Fund,City Cell Phones,ATT BILL PAYMENT
Community Resources,Telecommunications,01/19/2022,448.07,Open Space Fund,City Cell Phones,ATT BILL PAYMENT
Community Resources,Telecommunications,01/19/2022,220.12,Open Space Fund,City Cell Phones,ATT BILL PAYMENT
Community Resources,Telecommunications,01/19/2022,55.03,General Fund,City Cell Phones,ATT BILL PAYMENT
Community Resources,Telecommunications,01/19/2022,98.26,General Fund,City Cell Phones,ATT BILL PAYMENT
Community Resources,Telecommunications,01/19/2022,647.02,General Fund,City Cell Phones,ATT BILL PAYMENT
Community Resources,Telecommunications,01/19/2022,586.63,Grants Fund,City Cell Phones,ATT BILL PAYMENT
Community Resources,Telecommunications,01/19/2022,110.06,"Heritage, Culture & Arts Fund",City Cell Phones,ATT BILL PAYMENT
Community Resources,Telecommunications,01/19/2022,275.15,"Heritage, Culture & Arts Fund",City Cell Phones,ATT BILL PAYMENT
Community Resources,Telecommunications,01/19/2022,0.99,General Fund,Storage,APL APPLE ONLINE STORE
Community Resources,Telecommunications,01/19/2022,125.20,"Heritage, Culture & Arts Fund",Ear pieces for event radios,AMAZON.COM
Community Resources,Telecommunications,01/19/2022,124.31,"Heritage, Culture & Arts Fund",Ear pieces for event radios,AMAZON.COM
Community Resources,Telecommunications,01/19/2022,300.00,"Heritage, Culture & Arts Fund",Radio rental for Cider Days,RADIO RESOURCE INC
Community Resources,Telecommunications,01/19/2022,0.99,"Heritage, Culture & Arts Fund",Data Space,APL APPLE ONLINE STORE
Community Resources,Telecommunications,01/19/2022,128.40,"Heritage, Culture & Arts Fund",Comcast Services,COMCAST DENVER CS 1X
Community Resources,Telecommunications,01/19/2022,670.00,Golf Course Enterprise Fund,Comcast Services,COMCAST DENVER CS 1X
Community Resources,Telecommunications,01/19/2022,546.65,Golf Course Enterprise Fund,Comcast Services,COMCAST DENVER CS 1X
Community Resources,Telecommunications,01/19/2022,169.80,General Fund,Comcast Services,COMCAST DENVER CS 1X
Community Resources,Telecommunications,01/19/2022,40.01,Open Space Fund,PD Aircards,VERIZON WIRELESS
Community Resources,Telecommunications,01/19/2022,98.26,"Heritage, Culture & Arts Fund",City Cell Phones,ATT BILL PAYMENT
Community Resources,Telecommunications,01/19/2022,55.03,"Heritage, Culture & Arts Fund",City Cell Phones,ATT BILL PAYMENT
Community Resources,Telecommunications,01/19/2022,55.03,"Heritage, Culture & Arts Fund",City Cell Phones,ATT BILL PAYMENT
Community Resources,Telecommunications,01/19/2022,161.89,"Heritage, Culture & Arts Fund",City Cell Phones,ATT BILL PAYMENT
Community Resources,Telecommunications,01/19/2022,306.58,Open Space Fund,City Cell Phones,ATT BILL PAYMENT
Community Resources,Telecommunications,01/19/2022,81.29,Open Space Fund,City Cell Phones,ATT BILL PAYMENT
Community Resources,Telecommunications,01/19/2022,10.28,General Fund,City Cell Phones,ATT BILL PAYMENT
Community Resources,Telecommunications,01/19/2022,55.03,General Fund,City Cell Phones,ATT BILL PAYMENT
Community Resources,Telecommunications,01/19/2022,-54.50,Golf Course Enterprise Fund,credit for tax charged on cell,QUEBEC SQUARE RETAIL
Community Resources,Telecommunications,01/19/2022,50.00,Golf Course Enterprise Fund,charge for cell phone cover. t,QUEBEC SQUARE RETAIL
Community Resources,Telecommunications,01/19/2022,0.99,Golf Course Enterprise Fund,Telecommunications: 5G to 50G,APL APPLE ONLINE STORE
Community Resources,Telecommunications,01/19/2022,326.09,Golf Course Enterprise Fund,056-2021 Golf radio batteries,POWER PRODUCTS HOLDING C
Community Resources,Telecommunications,01/19/2022,168.46,Golf Course Enterprise Fund,056-2021 Golf radio batteries,POWER PRODUCTS HOLDING C
Community Resources,Telecommunications,01/19/2022,0.99,Golf Course Enterprise Fund,Telecommunications: 5G to 50G,APL APPLE ONLINE STORE
Community Resources,Training,01/19/2022,190.00,Open Space Fund,Nestor Fedak-Registration,PROGREEN EXPO22
Community Resources,Training,01/19/2022,999.00,General Fund,virtual training academy,HOMELESS TRAINING
Community Resources,Training,01/19/2022,65.00,General Fund,CARA 2022 Showcase Enrollment,COLORADO PARKS AND REC
Community Resources,Training,01/19/2022,81.96,Grants Fund,training materials,AMAZON.COM
Community Resources,Training,01/19/2022,106.09,General Fund,Lodging for CWMA conference,HILTON FORT COLLINS
Community Resources,Training,01/19/2022,-10.87,General Fund,refund for parking,HILTON FORT COLLINS
Community Resources,Training,01/19/2022,103.02,Open Space Fund,Renewal of my QS Pesticide app,CO DORA LICENSING
Community Resources,Training,01/19/2022,155.00,Open Space Fund,Conference Registration,PROGREEN EXPO22
Community Resources,Training,01/19/2022,115.00,Golf Course Enterprise Fund,Pesticide certification classe,PESTEDCOMLL
Community Resources,Training,01/19/2022,31.50,Open Space Fund,Pesticide exam.,METROINSTITUTE CPPA
Community Resources,Training,01/19/2022,31.50,Open Space Fund,Pesticide exam.,METROINSTITUTE CPPA
Community Resources,Training,01/19/2022,100.00,Open Space Fund,Colorado Greenhouse Grower onl,COLORADO NURSERY & GREENH
Community Resources,Training,01/19/2022,160.00,Open Space Fund,Colorado Certified Nursery Pro,COLORADO NURSERY & GREENH
Community Resources,Training,01/19/2022,180.00,"Heritage, Culture & Arts Fund",Professional Development,EVENT  SAVING PLACES 2
Community Resources,Training,01/19/2022,9.00,Grants Fund,Food Handler Safety Training,STATEFOODSAFETY.COM
Community Resources,Training,01/19/2022,160.00,General Fund,Thanksgiving break Lifeguardin,AMERICAN RED CROSS/WOR
Community Resources,Training,01/19/2022,273.00,General Fund,Lifeguard Instructors Certs,AMERICAN RED CROSS/WOR
Community Resources,Training,01/19/2022,120.00,General Fund,Dec Lifeguard Certs,AMERICAN RED CROSS/WOR
Community Resources,Training,01/19/2022,10.00,Golf Course Enterprise Fund,trade show pass for Joe Mc Bur,"ROCKY MOUNTAIN REAGENTS,"
Community Resources,Training,01/19/2022,390.00,General Fund,Continuing Education resources,AMERICAN COLLEGE OF SPRT
Community Resources,Training,01/19/2022,1832.00,Grants Fund,Resilient Leadership Training-,THE DEVEREUX FOUNDATION
Community Resources,Training,01/19/2022,57.00,Grants Fund,Food Safety Training vouchers,STATEFOODSAFETY.COM
Community Resources,Training,01/19/2022,37.00,Open Space Fund,Pesticide applicator online co,ONLINE TRAINING
Community Resources,Training,01/19/2022,133.49,General Fund,TCIA Crew Leader Manual for co,TREE CARE INDUSTRY ASSOC
Community Resources,Travel - auto expense,01/19/2022,3.00,Open Space Fund,Parking for Tabor Closing Meet,ALAMO PLAZA GARAGE AM
Community Resources,Travel - auto expense,01/19/2022,5.00,General Fund,Credit Card processing fee app,OPC COMMRCECTYPHOTOTKT SF
Community Resources,Travel - auto expense,01/19/2022,75.00,General Fund,Traffic Ticket,OPC COMMERCECTYPHOTOTICKT
Community Resources,Vehicle/Equipment Chargebacks,01/19/2022,87.55,Open Space Fund,New pintle hitch for truck 302,VITAL PARTS
Community Resources,Vehicle/Equipment Chargebacks,01/19/2022,84.81,General Fund,3/8 pipe to 1/2 hose fittings,MCCOY SALES CORPORATION
Community Resources,Vehicle/Equipment Chargebacks,01/19/2022,205.72,General Fund,wheels for toro vac,LITTLE TIRES AND WHEEL
Community Resources,Vehicle/Equipment Chargebacks,01/19/2022,441.95,General Fund,filters for unit 556 bobcat sk,BOBCAT GOLDEN
Community Resources,Vehicle/Equipment Chargebacks,01/19/2022,578.43,General Fund,pistons and rings for BCLP pol,G-FORCE POWERSPORTS
Community Resources,Vehicle/Equipment Chargebacks,01/19/2022,491.59,General Fund,plow Lights for truck 3009,MASTERCRAFT TRUCK EQUI
Community Resources,Vehicle/Equipment Chargebacks,01/19/2022,515.76,General Fund,remotes for truck plows,MASTERCRAFT TRUCK EQUI
Community Resources,Vehicle/Equipment Chargebacks,01/19/2022,392.37,General Fund,"oil, air, hydraulic filters an",WWW.ADVANCEAUTOPARTS
Community Resources,Vehicle/Equipment Chargebacks,01/19/2022,260.74,General Fund,filters for unit 528 50 hour s,UNIVERSAL TRACTOR CO
Community Resources,Vehicle/Equipment Chargebacks,01/19/2022,75.36,General Fund,cross over relief valve for tr,MASTERCRAFT TRUCK EQUI
Community Resources,Vehicle/Equipment Chargebacks,01/19/2022,329.71,Open Space Fund,Snow plow deflector for unit 3,MASTERCRAFT TRUCK EQUI
Community Resources,Water,01/19/2022,200.00,Open Space Fund,Public drinking water,A1 DISCOUNT WATER
Community Resources,Water,01/19/2022,193.30,Open Space Fund,600 S. Kipling St.,GREEN MOUNTAIN WATER
Community Resources,Water,01/19/2022,15.85,General Fund,12276 W. Wisonsin Dr.,GREEN MOUNTAIN WATER
Community Resources,Water,01/19/2022,49.28,Open Space Fund,12100 W. Alameda Pkwy,GREEN MOUNTAIN WATER
Community Resources,Water,01/19/2022,132.05,Open Space Fund,10600 W. Virginia Ave,GREEN MOUNTAIN WATER
Community Resources,Water,01/19/2022,290.55,Open Space Fund,150 S. Kipling St,GREEN MOUNTAIN WATER
Community Resources,Water,01/19/2022,62.73,General Fund,12268 W. Wisconsin Dr,GREEN MOUNTAIN WATER
Community Resources,Water,01/19/2022,62.73,General Fund,12266 W. Wisconsin Dr.,GREEN MOUNTAIN WATER
Community Resources,Water,01/19/2022,21.71,General Fund,12258 W. Wisconsin Dr.,GREEN MOUNTAIN WATER
Community Resources,Water,01/19/2022,1214.10,General Fund,13198 W. Green Mtn. Dr.,GREEN MOUNTAIN WATER
Community Resources,Water,01/19/2022,15.85,Open Space Fund,12686 W. Hawaii Ave,GREEN MOUNTAIN WATER
Community Resources,Water,01/19/2022,15.85,Open Space Fund,13628 W. Utah Ave,GREEN MOUNTAIN WATER
Community Resources,Water,01/19/2022,15.85,Open Space Fund,13687 W. Utah Ave,GREEN MOUNTAIN WATER
Community Resources,Water,01/19/2022,15.85,Open Space Fund,13158 W. Utah Ave,GREEN MOUNTAIN WATER
Community Resources,Water,01/19/2022,1272.10,Open Space Fund,2501 S. Gladiola Way,GREEN MOUNTAIN WATER
Community Resources,Water,01/19/2022,15.85,Open Space Fund,10090 W. Alameda Ave,GREEN MOUNTAIN WATER
Community Resources,Water,01/19/2022,15.85,Open Space Fund,1468 S. Wright St.,GREEN MOUNTAIN WATER
Community Resources,Water,01/19/2022,15.85,Open Space Fund,1374 S Yank St,GREEN MOUNTAIN WATER
Community Resources,Water,01/19/2022,31.70,Open Space Fund,14353 W. Yale Pl,GREEN MOUNTAIN WATER
Community Resources,Water,01/19/2022,31.70,Open Space Fund,1950 S. Bear Creek Blvd,GREEN MOUNTAIN WATER
Community Resources,Water,01/19/2022,31.70,Open Space Fund,2300 S. Bear Creek Blvd,GREEN MOUNTAIN WATER
Community Resources,Water,01/19/2022,63.40,Open Space Fund,10600 W. Kentucky Dr,GREEN MOUNTAIN WATER
Community Resources,Water,01/19/2022,132.05,Open Space Fund,12201 W. Green Mountain Dr,GREEN MOUNTAIN WATER
Community Resources,Water,01/19/2022,84.40,Open Space Fund,13200 W. Jewell Ave,GREEN MOUNTAIN WATER
Community Resources,Water,01/19/2022,221.54,Open Space Fund,704 S. Kipling St,GREEN MOUNTAIN WATER
Community Resources,Water,01/19/2022,126.80,Open Space Fund,544 S Simms St,GREEN MOUNTAIN WATER
Community Resources,Water,01/19/2022,137.30,Open Space Fund,9815 W. Cedar Ave,GREEN MOUNTAIN WATER
Community Resources,Water,01/19/2022,126.80,Open Space Fund,764 S Hoyt St,GREEN MOUNTAIN WATER
Community Resources,Water,01/19/2022,215.68,Open Space Fund,702 S. Kipling St,GREEN MOUNTAIN WATER
Community Resources,Water,01/19/2022,15.85,Open Space Fund,197 S. Union Blvd,GREEN MOUNTAIN WATER
Community Resources,Water,01/19/2022,15.85,Open Space Fund,12312. W. Fourth Ave,GREEN MOUNTAIN WATER
Community Resources,Water,01/19/2022,491.46,Open Space Fund,500 Zang St,GREEN MOUNTAIN WATER
Community Resources,Water,01/19/2022,63.40,Open Space Fund,202 Union Blvd,GREEN MOUNTAIN WATER
Community Resources,Water,01/19/2022,63.40,Open Space Fund,400 Union Blvd,GREEN MOUNTAIN WATER
Community Resources,Water,01/19/2022,63.40,Open Space Fund,500 Wright St,GREEN MOUNTAIN WATER
Community Resources,Water,01/19/2022,517.70,Open Space Fund,190 Ward Ct,GREEN MOUNTAIN WATER
Community Resources,Water,01/19/2022,63.40,Open Space Fund,12142 W. Nevada Dr,GREEN MOUNTAIN WATER
Community Resources,Water,01/19/2022,126.80,Open Space Fund,1682 S. Beech St,GREEN MOUNTAIN WATER
Community Resources,Water,01/19/2022,15.85,Open Space Fund,14050 W. Yale Pl,GREEN MOUNTAIN WATER
Community Resources,Water,01/19/2022,25.41,General Fund,731 TABOR ST,HIGH VIEW WATER DISTRICT
Community Resources,Water,01/19/2022,236.89,Golf Course Enterprise Fund,13410 MORRISON RD,DENVER WATER DEPARTMENT
Community Resources,Water,01/19/2022,69.93,Open Space Fund,9400 MORRIOSN RD,DENVER WATER DEPARTMENT
Community Resources,Water,01/19/2022,26.55,General Fund,9556 W YALE AVE,DENVER WATER DEPARTMENT
Community Resources,Water,01/19/2022,39.55,General Fund,2775 S ESTES ST,DENVER WATER DEPARTMENT
Community Resources,Water,01/19/2022,23.20,General Fund,2900 S ESTES ST,DENVER WATER DEPARTMENT
Community Resources,Water,01/19/2022,124.06,General Fund,8480 W VASSAR DR,DENVER WATER DEPARTMENT
Community Resources,Water,01/19/2022,86.15,General Fund,2805 S ESTES ST,DENVER WATER DEPARTMENT
Community Resources,Water,01/19/2022,69.93,General Fund,2800 S ESTES ST,DENVER WATER DEPARTMENT
Community Resources,Water,01/19/2022,52.42,Golf Course Enterprise Fund,13414  MORRISON RD,DENVER WATER DEPARTMENT
Community Resources,Water,01/19/2022,26.55,Golf Course Enterprise Fund,13412 MORRISON RD,DENVER WATER DEPARTMENT
Community Resources,Water,01/19/2022,50.70,General Fund,1900 TELLER ST,CONSOLIDATED MUTUAL WATER
Community Resources,Water,01/19/2022,74.70,General Fund,8180 W 20TH AVE,CONSOLIDATED MUTUAL WATER
Community Resources,Water,01/19/2022,74.70,General Fund,8180 W 20TH AVE LAWN,CONSOLIDATED MUTUAL WATER
Community Resources,Water,01/19/2022,50.70,General Fund,1301 CARR ST RICHEY PARK,CONSOLIDATED MUTUAL WATER
Community Resources,Water,01/19/2022,50.70,General Fund,10300 W 14H PL,CONSOLIDATED MUTUAL WATER
Community Resources,Water,01/19/2022,22.70,General Fund,7955 W COLFAX AVE,CONSOLIDATED MUTUAL WATER
Community Resources,Water,01/19/2022,22.70,General Fund,7457 W COLFAX AVE,CONSOLIDATED MUTUAL WATER
Community Resources,Water,01/19/2022,22.70,General Fund,1575 TELLER ST,CONSOLIDATED MUTUAL WATER
Community Resources,Water,01/19/2022,22.70,General Fund,1680 WADSWORTH BLVD,CONSOLIDATED MUTUAL WATER
Community Resources,Water,01/19/2022,22.70,General Fund,7187 W COLFAX AVE,CONSOLIDATED MUTUAL WATER
Community Resources,Water,01/19/2022,88.50,General Fund,1580 YARROW ST,CONSOLIDATED MUTUAL WATER
Community Resources,Water,01/19/2022,24.10,General Fund,7835-45 W 16TH AVE,CONSOLIDATED MUTUAL WATER
Community Resources,Water,01/19/2022,18.70,General Fund,7815 W 16TH AVE 25,CONSOLIDATED MUTUAL WATER
Community Resources,Water,01/19/2022,30.70,General Fund,7801 W 16TH AVE 11,CONSOLIDATED MUTUAL WATER
Community Resources,Water,01/19/2022,22.70,General Fund,1901 ALLISON ST,CONSOLIDATED MUTUAL WATER
Finance,Clothing & Uniforms,01/19/2022,1112.79,General Fund,Finance Personnel  Business Or,LANDS END BUS OUTFITTERS
Finance,Data processing,01/19/2022,150.00,General Fund,Collections Software,LEXNEX RISK DATA EOM
Finance,Office furn & equip-non cap,01/19/2022,696.00,General Fund,Order #4209 - Hollon Through t,GARAGE GIANT
Finance,Office supplies,01/19/2022,51.00,General Fund,Order No. 113-5631513-2647445,AMAZON.COM
Finance,Office supplies,01/19/2022,22.42,General Fund,RY22 AAG PLANAMTH MTH 12/27 -,STAPLES
Finance,Office supplies,01/19/2022,12.08,General Fund,RY22 ATAGLINC DESKPD MNTH - 1,STAPLES
Finance,Office supplies,01/19/2022,5.17,General Fund,STPLS PAD PERF LTR WH 12 PK -,STAPLES
Finance,Office supplies,01/19/2022,16.18,General Fund,POST IT FLAGS 1 PORT PACK - 2,STAPLES
Finance,Office supplies,01/19/2022,6.22,General Fund,SPLS FLGS W/DSP .T ASST 14 OCT,STAPLES
Finance,Office supplies,01/19/2022,17.54,General Fund,SCOTCH MAGIC GREENER TAPE 3/4,STAPLES
Finance,Office supplies,01/19/2022,70.50,General Fund,FIN Coffee Supplies - Inv#s 02,ROCKY MOUNTAIN BOTTLED WA
Finance,Office supplies,01/19/2022,18.50,General Fund,Office Supplies - Reported Tax,PEPPERDINES MARKING
Finance,Other profess & tech services,01/19/2022,124.99,General Fund,Norton LifeLock - Service Rene,NORTON  AP1348374149
Finance,Other profess & tech services,01/19/2022,-124.99,General Fund,Norton LifeLock - Service Refu,NORTON  AP1348374149
Finance,"Printing, copying & binding",01/19/2022,12.33,General Fund,BIC ROUNDSTIC BP MED BLK 60,STAPLES
Finance,Repairs & maint - equipment,01/19/2022,321.00,General Fund,Inv 1019418691 Rental Invoice,PITNEY BOWES SUPPLY
Finance,Training,01/19/2022,2407.00,General Fund,Continuing Professional Educat,WESTERN CPE LLC
Human Resources,Advertising,01/19/2022,395.00,General Fund,Job Posting Principal Planner,AMERICAN PLANNING ASSOC
Human Resources,Advertising,01/19/2022,150.00,General Fund,Job Posting Neighborhood Suppo,PR JOBS LIST LLC
Human Resources,Advertising,01/19/2022,150.00,General Fund,Job Posting Accountant I,GOVERNMENT FINANCE OFFIC
Human Resources,Advertising,01/19/2022,45.00,General Fund,Advertising,CRAIGSLIST.ORG
Human Resources,Dues and memberships,01/19/2022,80.00,General Fund,Membership Dues,IPMA-HR COLORADO
Human Resources,Meal expense,01/19/2022,77.95,General Fund,Coffee and Water Filtration Su,ROCKY MOUNTAIN BOTTLED WA
Human Resources,Meal expense,01/19/2022,25.97,General Fund,Lunch for Meeting,KING SOOPERS #0127
Human Resources,Meal expense,01/19/2022,60.00,General Fund,Annual membership renewal for,WWW COSTCO COM
Human Resources,Meal expense,01/19/2022,211.40,General Fund,Off Site Meeting,THE DEN AT FOX HOLLOW
Human Resources,Office supplies,01/19/2022,12.96,General Fund,Supplies,AMAZON.COM
Human Resources,Office supplies,01/19/2022,12.96,General Fund,Supplies,AMAZON.COM
Human Resources,Office supplies,01/19/2022,13.60,General Fund,Supplies,AMAZON.COM
Human Resources,Office supplies,01/19/2022,42.22,General Fund,Office,AMAZON.COM
Human Resources,Office supplies,01/19/2022,15.40,General Fund,Supplies,AMAZON.COM
Human Resources,Office supplies,01/19/2022,12.99,General Fund,Supplies,AMAZON.COM
Information Technology,Computer equipment-non cap,01/19/2022,12.45,General Fund,2021-057 Pottery Sale SD Expen,THE HOME DEPOT 1514
Information Technology,Computer equipment-non cap,01/19/2022,209.00,Equipment Replacement Fund,2021-092 Desktop Printer Golf,AMAZON.COM
Information Technology,Computer software & supplies,01/19/2022,899.98,General Fund,2021-102 SSL Renewal,DNH GODADDY.COM
Information Technology,Computer software & supplies,01/19/2022,14.99,General Fund,2021-062 Creative Cloud Licens,ADOBE  ACROPRO SUBS
Information Technology,Computer software & supplies,01/19/2022,29.98,General Fund,2021-058 Domain Renewals,WEB NETWORKSOLUTIONS
Information Technology,Computer software & supplies,01/19/2022,89.94,General Fund,2021-058 Domain Renewals,WEB NETWORKSOLUTIONS
Information Technology,Computer software & supplies,01/19/2022,99.00,General Fund,2021-053 Web Form Tools,SMK WUFOO.COM CHARGE
Information Technology,Office supplies,01/19/2022,9.35,General Fund,2021-055 Office Supplies,STAPLES
Information Technology,Office supplies,01/19/2022,97.95,General Fund,2021-055 Employee Appreciation,STEMS FLOWER SHOP
Information Technology,Office supplies,01/19/2022,42.96,General Fund,2021-055 Office Supplies,STAPLES
Information Technology,Office supplies,01/19/2022,39.98,General Fund,2021-055 Office Supplies,STAPLES
Information Technology,Other profess & tech services,01/19/2022,15.66,General Fund,2021-009 Kallcents,KALLCENTS
Information Technology,Other profess & tech services,01/19/2022,1920.54,General Fund,2021-109 Electronics Recycling,TECHNO RESCUE
Information Technology,Other profess & tech services,01/19/2022,63960.00,General Fund,2022-006 Gartner Renewal,GARTNER
Information Technology,Repairs & maint - equipment,01/19/2022,234.98,General Fund,056-2021 Surveillance Kits,IN  THE EARPHONE CONNECTI
Information Technology,Telecommunications,01/19/2022,57.48,General Fund,2021-061 City Pagers,AMERICAN MESSAGING
Information Technology,Telecommunications,01/19/2022,527.21,General Fund,SIU Phones,VERIZON WIRELESS
Information Technology,Telecommunications,01/19/2022,228.23,General Fund,2021-014 GUS Global,GUS GLOBALSTAR USA
Information Technology,Telecommunications,01/19/2022,19611.30,General Fund,2021-011 City Cell Phones,ATT BILL PAYMENT
Information Technology,Telecommunications,01/19/2022,60.17,General Fund,2021-061 City Pagers,AMERICAN MESSAGING
Information Technology,Telecommunications,01/19/2022,17602.72,General Fund,2021-011 PD Cell Phones,ATT BILL PAYMENT
Information Technology,Telecommunications,01/19/2022,13122.23,General Fund,2021-016 PD Aircards,VERIZON WIRELESS
Information Technology,Telecommunications,01/19/2022,1491.59,General Fund,2021-013 Comcast Services,COMCAST DENVER CS 1X
Information Technology,Training,01/19/2022,7995.00,General Fund,2021-213 training skillsets,SKILLSETS ONLINE CORP
Information Technology,Training,01/19/2022,60.00,General Fund,2021-130 - PMI Renewal,PROJECT MGMT INSTITUTE
Mayor and City Council,Computer software & supplies,01/19/2022,2000.00,General Fund,LakewoodSpeaks.org Software,PEOPLE SPEAK LLC
Mayor and City Council,Office supplies,01/19/2022,7.98,General Fund,Office Supplies,KING SOOPERS #0127
Mayor and City Council,Office supplies,01/19/2022,15.00,General Fund,Supplies for new council membe,PEPPERDINES MARKING
Mayor and City Council,Promotional expense,01/19/2022,12.99,General Fund,Council Swearing-In Ceremony,KING SOOPERS #0127
Municipal Court,Clothing & Uniforms,01/19/2022,98.91,General Fund,New Uniform for JR,ADAMSON POLICE PRODUCTS
Municipal Court,Clothing & Uniforms,01/19/2022,143.94,General Fund,New Uniform for MD,ADAMSON POLICE PRODUCTS
Municipal Court,Contractor services,01/19/2022,80.00,General Fund,UA's - A. Vigil,WIZ-QUIZ LAKEWOOD
Municipal Court,Contractor services,01/19/2022,180.00,General Fund,Interpreter,SQ  MILE HIGH MULTILINGUA
Municipal Court,Dues and memberships,01/19/2022,10.00,General Fund,Volunteer Mgmt Software,VOLGISTICS INC
Municipal Court,Meal expense,01/19/2022,-4.43,General Fund,Tax Charge Returned to Card,JOHNNYS NY PIZZA
Municipal Court,Meal expense,01/19/2022,78.78,General Fund,Food for Court Jury for extend,JOHNNYS NY PIZZA
Municipal Court,Misc expenses,01/19/2022,130.00,General Fund,Polygraph - Court Marshal,AMICH AND JENKS INC
Municipal Court,Office supplies,01/19/2022,43.17,General Fund,Calendars,OFFICE DEPOT #1080
Municipal Court,Office supplies,01/19/2022,25.75,General Fund,Calendar,OFFICE DEPOT #1080
Municipal Court,Office supplies,01/19/2022,39.76,General Fund,Deposit Bags,AMAZON.COM
Municipal Court,Other profess & tech services,01/19/2022,200.00,Grants Fund,UA's - Most Grant,WIZ-QUIZ LAKEWOOD
Municipal Court,Other small tools & equipment,01/19/2022,1600.00,General Fund,2 Ballistic Vests for CW/PK,ADAMSON POLICE PRODUCTS
Municipal Court,Promotional expense,01/19/2022,78.74,General Fund,Employee Support SH,EDIBLE ARRANGEMENTS 223
Planning,Board and commissions,01/19/2022,2400.00,General Fund,LakwewoodSpeaks.org Software,PEOPLE SPEAK LLC
Planning,Computer software & supplies,01/19/2022,69.98,General Fund,Creative Cloud Licensing PL,ADOBE  ACROPRO SUBS
Planning,Computer software & supplies,01/19/2022,174.95,General Fund,Creative Cloud Licensing PL/LO,ADOBE  ACROPRO SUBS
Planning,Computer software & supplies,01/19/2022,174.95,General Fund,Creative Cloud Licensing PL/SU,ADOBE  ACROPRO SUBS
Planning,Computer software & supplies,01/19/2022,-10.39,General Fund,Refund of sales tax for ArtLin,SQUARESPACE INC.
Planning,Computer software & supplies,01/19/2022,1232.56,General Fund,AutoCAD Subscription Renewal -,DLT SOLUTIONS
Planning,Computer software & supplies,01/19/2022,1199.00,General Fund,Bluebeam Software Renewal - Pl,APPLIED SOFTWARE
Planning,Dues and memberships,01/19/2022,90.00,General Fund,CPR DUES & MEMBERSHIPS (SUBSCR,THE BUSINESS JOURNALS
Planning,Dues and memberships,01/19/2022,446.00,General Fund,CPR DUES &MEMBERSHIPS (SUBSCRI,AMERICAN PLANNING ASSOC
Planning,Dues and memberships,01/19/2022,252.00,General Fund,DEVELOPMENT ASSISTANCE DUES &,INTERNATIONAL RIGHT OF WA
Planning,Dues and memberships,01/19/2022,650.00,General Fund,Membership renewal for Caitlin,AMERICAN PLANNING ASSOC
Planning,Office supplies,01/19/2022,3.98,General Fund,CPR OFFICE SUPPLIES,AMAZON.COM
Planning,Office supplies,01/19/2022,25.98,General Fund,CPR OFFICE SUPPLIES,AMAZON.COM
Planning,Office supplies,01/19/2022,225.44,General Fund,CPR OFFICE SUPPLIES,AMAZON.COM
Planning,Office supplies,01/19/2022,12.00,General Fund,CPR OFFICE SUPPLIES,STAPLES
Planning,Office supplies,01/19/2022,98.93,General Fund,CPR OFFICE SUPPLIES,AMAZON.COM
Planning,Office supplies,01/19/2022,18.22,General Fund,CPR OFFICE SUPPLIES,AMAZON.COM
Planning,Office supplies,01/19/2022,16.69,General Fund,CPR OFFICE SUPPLIES,AMAZON.COM
Planning,Office supplies,01/19/2022,9.96,General Fund,CPR OFFICE SUPPLIES,AMAZON.COM
Planning,Office supplies,01/19/2022,32.86,General Fund,COFFEE SERVICE,ROCKY MOUNTAIN BOTTLED WA
Planning,Office supplies,01/19/2022,40.07,General Fund,COFFEE SERVICE,ROCKY MOUNTAIN BOTTLED WA
Planning,Other general supplies,01/19/2022,62.98,General Fund,SUSTAINABILITY AWARD SUPPLIES,AMAZON.COM
Planning,Other general supplies,01/19/2022,24.95,General Fund,SUSTAINABILITY AWARD SUPPLIES,HOBBY-LOBBY # 425
Planning,Other general supplies,01/19/2022,35.03,General Fund,SUSTAINABILITY AWARD SUPPLIES,HOBBY-LOBBY #0030
Planning,Other general supplies,01/19/2022,326.43,General Fund,Sustainable Neighborhoods Prog,SIGNSONTHECHEAP.COM
Planning,Other profess & tech services,01/19/2022,55.03,General Fund,City Cell Phones,ATT BILL PAYMENT
Planning,Telecommunications,01/19/2022,83.02,Grants Fund,City Cell Phones,ATT BILL PAYMENT
Police,Advertising,01/19/2022,372.11,General Fund,Recruitment advertising,LINKEDIN-734 8246544
Police,Advertising,01/19/2022,240.25,General Fund,Recruitment advertising,FACEBOOK.COM ADS
Police,Advertising,01/19/2022,26.33,General Fund,Recruitment advertising,LINKEDIN-734 8246544
Police,Advertising,01/19/2022,1750.00,General Fund,Police Advertising,NEXSTAR
Police,Books & Publications,01/19/2022,139.65,General Fund,Pilot Test Prep Books,PILOT STUFF ONLINE
Police,Books & Publications,01/19/2022,3316.50,General Fund,2022-1 CRA - Peace Officer Han,BLUE 360 MEDIA
Police,Books & Publications,01/19/2022,41.75,General Fund,CRA - Colorado Criminal Code B,BLUE 360 MEDIA
Police,Books & Publications,01/19/2022,1138.86,General Fund,2022 CRS Updates (PDF) Copies,POCKETPRESS
Police,Books & Publications,01/19/2022,5625.00,General Fund,Colorado Peace Offices Handboo,BLUE 360 MEDIA
Police,Books & Publications,01/19/2022,106.90,General Fund,2 drug ID Books,"IN  AMERA-CHEM, INC."
Police,Books & Publications,01/19/2022,74.75,General Fund,Colorado Peace Officers Blue B,BLUE 360 MEDIA
Police,Chem. & lab. supplies,01/19/2022,29.98,General Fund,2021 - Equipment for call out,AMAZON.COM
Police,Chem. & lab. supplies,01/19/2022,78.12,General Fund,Swabs for Lab -2021,VWR INTERNATIONAL INC
Police,Clothing & Uniforms,01/19/2022,342.07,General Fund,Uniform Shirts,LANDS END BUS OUTFITTERS
Police,Clothing & Uniforms,01/19/2022,72.95,General Fund,Detective Sergeant Badge for K,V AND V MANUFACTURING IN
Police,Clothing & Uniforms,01/19/2022,53.99,General Fund,CRA - pants,ADAMSON POLICE PRODUCTS
Police,Clothing & Uniforms,01/19/2022,760.50,General Fund,2021-2 LPD Recruits,ADAMSON POLICE PRODUCTS
Police,Clothing & Uniforms,01/19/2022,479.70,General Fund,2021-2 CRA clothing,RYDERS PUBLIC SAFE
Police,Clothing & Uniforms,01/19/2022,51.96,General Fund,Shirts,US RECOGNITION
Police,Clothing & Uniforms,01/19/2022,361.00,General Fund,SWAT Patches,ANYTIME SIGN
Police,Clothing & Uniforms,01/19/2022,77.00,General Fund,Uniform Patches and Install,RYDERS PUBLIC SAFE
Police,Clothing & Uniforms,01/19/2022,91.95,General Fund,Uniform Shirt,RYDERS PUBLIC SAFE
Police,Clothing & Uniforms,01/19/2022,183.90,General Fund,Uniform Shirts,RYDERS PUBLIC SAFE
Police,Clothing & Uniforms,01/19/2022,207.20,General Fund,CIT & FTA Pins,RYDERS PUBLIC SAFE
Police,Clothing & Uniforms,01/19/2022,18.00,General Fund,Uniform Patch Install,RYDERS PUBLIC SAFE
Police,Clothing & Uniforms,01/19/2022,183.90,General Fund,Uniform Shirt,RYDERS PUBLIC SAFE
Police,Clothing & Uniforms,01/19/2022,126.00,General Fund,Uniform Patches and Install,RYDERS PUBLIC SAFE
Police,Clothing & Uniforms,01/19/2022,134.95,General Fund,Uniform Boots,RYDERS PUBLIC SAFE
Police,Clothing & Uniforms,01/19/2022,134.95,General Fund,Uniform Boots,RYDERS PUBLIC SAFE
Police,Clothing & Uniforms,01/19/2022,183.90,General Fund,Uniform Shirts,RYDERS PUBLIC SAFE
Police,Clothing & Uniforms,01/19/2022,68.00,General Fund,Acrylic Award for C. Janson.,US RECOGNITION
Police,Clothing & Uniforms,01/19/2022,230.85,General Fund,"Sergeant Badges for J. Larson,",V AND V MANUFACTURING IN
Police,Clothing & Uniforms,01/19/2022,24.99,General Fund,Clothing for Crime Lab.,COSTCO WHSE #650
Police,Clothing & Uniforms,01/19/2022,134.95,General Fund,Uniform Boots,ADAMSON POLICE PRODUCTS
Police,Clothing & Uniforms,01/19/2022,380.00,General Fund,Badge Shrouds,RYDERS PUBLIC SAFE
Police,Clothing & Uniforms,01/19/2022,156.90,General Fund,Uniform shirts and pants,ADAMSON POLICE PRODUCTS
Police,Clothing & Uniforms,01/19/2022,50.00,General Fund,Membership-K9,COLORADO POLICE K9 ASSOC
Police,Clothing & Uniforms,01/19/2022,50.00,General Fund,Membership-K9,COLORADO POLICE K9 ASSOC
Police,Clothing & Uniforms,01/19/2022,75.00,General Fund,Badge Shroud,RYDERS PUBLIC SAFE
Police,Clothing & Uniforms,01/19/2022,15.00,General Fund,Patches,RYDERS PUBLIC SAFE
Police,Clothing & Uniforms,01/19/2022,150.00,General Fund,Uniform Jacket,RYDERS PUBLIC SAFE
Police,Clothing & Uniforms,01/19/2022,3230.00,General Fund,SWAT Gear,TACTICAL NIGHT VISION CO
Police,Clothing & Uniforms,01/19/2022,17.64,General Fund,SWAT Shirt,HALO BRANDED SOLUTIONS
Police,Clothing & Uniforms,01/19/2022,116.99,General Fund,SWAT Pants,AMAZON.COM
Police,Clothing & Uniforms,01/19/2022,168.46,General Fund,Partial Order-SWAT Pants,AMAZON.COM
Police,Clothing & Uniforms,01/19/2022,19.75,General Fund,Nameplate for G. Boyd.,CALEA INC.
Police,Clothing & Uniforms,01/19/2022,811.20,General Fund,"Replacement body vest, #5828",RYDERS PUBLIC SAFE
Police,Clothing & Uniforms,01/19/2022,811.20,General Fund,"Replacement body vest, #6020",RYDERS PUBLIC SAFE
Police,Community Action Team,01/19/2022,36.98,General Fund,H/M - Tape for Inspections,THE HOME DEPOT 1514
Police,Community Action Team,01/19/2022,5.23,General Fund,H/M - Arlo Cam Monthly Fee,ARLO TECHNOLOGIES INC
Police,Computer software & supplies,01/19/2022,299.00,General Fund,Acrobat Standard 2020.,ADOBE  ACROPRO SUBS
Police,Computer software & supplies,01/19/2022,79.00,General Fund,Monthly Software Subscription,VOLGISTICS INC
Police,Computer software & supplies,01/19/2022,400.10,General Fund,PD Aircards,VERIZON WIRELESS
Police,Contractor services,01/19/2022,3241.74,General Fund,"Emergency Response, Transport",CUSTOM ENVIRONMENTAL SERV
Police,Dues and memberships,01/19/2022,190.00,General Fund,2022 Membership Dues for M. Re,IACP
Police,Dues and memberships,01/19/2022,289.00,General Fund,2021  Re-certification for CCO,CELLEBRITE INC.
Police,Dues and memberships,01/19/2022,190.00,General Fund,IACP Membership-Maestas,IACP
Police,Dues and memberships,01/19/2022,190.00,General Fund,2022 IACP Membership - J. Pick,IACP
Police,Dues and memberships,01/19/2022,45.00,General Fund,Dues State Bonilla-Acosta,FSP CACEO
Police,Dues and memberships,01/19/2022,45.00,General Fund,Dues State Dawson,FSP CACEO
Police,Dues and memberships,01/19/2022,45.00,General Fund,Dues State Holmes,FSP CACEO
Police,Dues and memberships,01/19/2022,75.00,General Fund,Dues National Spencer,AMERICAN ASSOC OF00 OF 00
Police,Dues and memberships,01/19/2022,45.00,General Fund,Dues State Spencer,FSP CACEO
Police,Dues and memberships,01/19/2022,45.00,General Fund,Membership dues to the Colorad,COLORADO EMERGENCY MANAG
Police,Dues and memberships,01/19/2022,45.00,General Fund,Dues State Barnes,FSP CACEO
Police,Dues and memberships,01/19/2022,10.00,General Fund,Notary renewal,SOS REGISTRATION FEE
Police,Dues and memberships,01/19/2022,200.00,General Fund,Annual membership to Animal We,COLORADOFED
Police,Dues and memberships,01/19/2022,240.00,General Fund,Annual membership dues for Chi,IACP
Police,Food purchased for programs,01/19/2022,98.11,General Fund,Lunch for Chaplain presentatio,SAMSCLUB #6635
Police,Food purchased for programs,01/19/2022,17.97,General Fund,Food supplies for Citizen Poli,AMAZON.COM
Police,Food purchased for programs,01/19/2022,32.97,General Fund,Food supplies for Citizen Poli,AMAZON.COM
Police,Insurance premiums,01/19/2022,26.90,General Fund,Notary Stamp (Holloway),AMER ASSOC NOTARIES
Police,Meal expense,01/19/2022,60.00,General Fund,Farewell - Lindsey Bravdica,WHOLEFDS BMR 10218
Police,Meal expense,01/19/2022,133.88,General Fund,Food for Volunteer Holiday Mee,SAMSCLUB #6635
Police,Meal expense,01/19/2022,33.94,General Fund,2021  homicide case meals,MCDONALD'S F31101
Police,Meal expense,01/19/2022,240.33,General Fund,Food Provided for Officer Invo,BLACKJACK PIZZA
Police,Meal expense,01/19/2022,42.45,General Fund,Food Provided for Officer Invo,KING SOOPERS #0127
Police,Meal expense,01/19/2022,111.92,General Fund,Food Provided for Officer Invo,DOMINO'S 6220
Police,Meal expense,01/19/2022,66.45,General Fund,Bottled Water,ROCKY MOUNTAIN BOTTLED WA
Police,Meal expense,01/19/2022,69.98,General Fund,Cake and Flowers for A. Reicha,KING SOOPERS #0127
Police,Meal expense,01/19/2022,43.97,General Fund,Cupcakes & Decoration,KING SOOPERS #0127
Police,Meal expense,01/19/2022,306.00,General Fund,Christmas Eve Patrol,JIMMY JOHNS - 1412
Police,Meal expense,01/19/2022,55.93,General Fund,2021-2 CRA Graduation (bottled,SAFEWAY #0892
Police,Meal expense,01/19/2022,157.08,General Fund,Retirement Reception - Sergean,CRUMBL LAKEWOOD
Police,Meal expense,01/19/2022,148.97,General Fund,2021-2 CRA Graduation,KING SOOPERS #0127
Police,Meal expense,01/19/2022,29.99,General Fund,Bereavement flowers for employ,KING SOOPERS #0127
Police,Meal expense,01/19/2022,34.99,General Fund,Bereavement flowers for employ,KING SOOPERS #0127
Police,Meal expense,01/19/2022,163.48,General Fund,Annual Recog. Team Luncheon,CHUYS BELMAR
Police,Misc expenses,01/19/2022,3387.93,General Fund,Peer Support Bags,IN  COX RANCH ORIGINALS
Police,Office furn & equip-non cap,01/19/2022,310.00,General Fund,Relocate sit/stands and new in,CONTRACT FURNISHINGS
Police,Office supplies,01/19/2022,73.82,General Fund,Office Supplies for the Invest,AMAZON.COM
Police,Office supplies,01/19/2022,23.45,General Fund,Office Supplies for the Invest,AMAZON.COM
Police,Office supplies,01/19/2022,27.87,General Fund,Coffee Supplies for the EOC.,AMAZON.COM
Police,Office supplies,01/19/2022,23.06,General Fund,Coffee Supplies for the EOC.,AMAZON.COM
Police,Office supplies,01/19/2022,13.79,General Fund,Office Supplies for SSD.,COSTCO WHSE #650
Police,Office supplies,01/19/2022,20.40,General Fund,EMPLOYEE APPRECIATION- FOOD,KING SOOPERS #0127
Police,Office supplies,01/19/2022,30.81,General Fund,HOLIDAY EMPLOYEE APPRECIATION-,KING SOOPERS #0127
Police,Office supplies,01/19/2022,177.42,General Fund,Office Supplies for the Invest,AMAZON.COM
Police,Office supplies,01/19/2022,3.98,General Fund,Tape Dispenser,AMAZON.COM
Police,Office supplies,01/19/2022,49.99,General Fund,Toner Cartridge-Sgt Printer,AMAZON.COM
Police,Office supplies,01/19/2022,15.94,General Fund,Office Supplies-Meyers,AMAZON.COM
Police,Office supplies,01/19/2022,14.99,General Fund,#16:  Wall Calendar,OFFICE DEPOT #1080
Police,Office supplies,01/19/2022,7.99,General Fund,#16b:  Wall Calendar,OFFICE DEPOT #1080
Police,Office supplies,01/19/2022,62.64,General Fund,#16a:  Stapler (3 ea.); Remova,OFFICE DEPOT #1080
Police,Office supplies,01/19/2022,59.09,General Fund,Office Supplies for the Invest,AMAZON.COM
Police,Office supplies,01/19/2022,19.97,General Fund,Calendar-Valdez,AMAZON.COM
Police,Office supplies,01/19/2022,15.18,General Fund,P Touch Label Tape,AMAZON.COM
Police,Office supplies,01/19/2022,13.96,General Fund,Office Supplies-Meyers,AMAZON.COM
Police,Office supplies,01/19/2022,-7.99,General Fund,2021 Return Black acrylic pain,AMAZON.COM
Police,Office supplies,01/19/2022,11.00,General Fund,Inv 2019073 - Name Plate for M,PEPPERDINES MARKING
Police,Office supplies,01/19/2022,11.00,General Fund,Inv 2019382 - Name Plate for K,PEPPERDINES MARKING
Police,Office supplies,01/19/2022,11.00,General Fund,Inv 2019381 Name Plate Christo,PEPPERDINES MARKING
Police,Office supplies,01/19/2022,10.74,General Fund,Legal Pads,AMAZON.COM
Police,Office supplies,01/19/2022,7.99,General Fund,Post It Notes-Loveall,AMAZON.COM
Police,Office supplies,01/19/2022,27.00,General Fund,Party Supplies,PARTY CITY 3202
Police,Office supplies,01/19/2022,38.97,General Fund,Pens,AMAZON.COM
Police,Office supplies,01/19/2022,25.99,General Fund,2021 NVME USB adapter,AMAZON.COM
Police,Office supplies,01/19/2022,19.00,General Fund,2021 Apple iPhone New cable -,WAL-MART
Police,Office supplies,01/19/2022,28.57,General Fund,Office Supplies for the SSD Di,STAPLES
Police,Office supplies,01/19/2022,9.39,General Fund,2021 Sharpie oil-bases silver,AMAZON.COM
Police,Office supplies,01/19/2022,13.95,General Fund,Coffee Supplies for events,AMAZON.COM
Police,Office supplies,01/19/2022,169.00,General Fund,2021-2 CRA Graduation Plaque,US RECOGNITION
Police,Office supplies,01/19/2022,450.00,General Fund,2021-2 CRA Graduation - Awards,US RECOGNITION
Police,Office supplies,01/19/2022,36.01,General Fund,Office Supplies for the Invest,STAPLES
Police,Office supplies,01/19/2022,8.00,General Fund,Retirement celebration (P Tenn,PARTY CITY 3202
Police,Office supplies,01/19/2022,13.99,General Fund,Retirement celebration (P  Ten,PARTY CITY 3202
Police,Office supplies,01/19/2022,191.52,General Fund,2021-2 CRA Graduation photo,WALGREENS #6621    Q03
Police,Office supplies,01/19/2022,178.80,General Fund,Patrol Pens,EON OFFICE PRODUCTS
Police,Office supplies,01/19/2022,62.97,General Fund,Desktop Computer speakers,STAPLES
Police,Office supplies,01/19/2022,25.74,General Fund,Office Supplies for Investigat,AMAZON.COM
Police,Office supplies,01/19/2022,1440.35,General Fund,"Pens, Markers Stapler, other M",STAPLES
Police,Office supplies,01/19/2022,34.13,General Fund,Office Supplies for SSD Divisi,STAPLES
Police,Office supplies,01/19/2022,5.21,General Fund,Office Supplies for Investigat,STAPLES
Police,Office supplies,01/19/2022,37.48,General Fund,Office Supplies for Investigat,STAPLES
Police,Office supplies,01/19/2022,21.47,General Fund,Office Supplies for Investigat,AMAZON.COM
Police,Office supplies,01/19/2022,89.95,General Fund,Office Supplies for Investigat,AMAZON.COM
Police,Office supplies,01/19/2022,38.96,General Fund,"biohaz labels, phone shoulder",AMAZON.COM
Police,Office supplies,01/19/2022,39.95,General Fund,2022 Desk calendars,STAPLES
Police,Office supplies,01/19/2022,21.85,General Fund,Office Supplies for Investigat,AMAZON.COM
Police,Office supplies,01/19/2022,7.99,General Fund,restock masks,AMAZON.COM
Police,Office supplies,01/19/2022,50.98,General Fund,restock coffee supplies,AMAZON.COM
Police,Office supplies,01/19/2022,19.99,General Fund,restock office supplies,AMAZON.COM
Police,Office supplies,01/19/2022,38.07,General Fund,Restock coffee supplies,AMAZON.COM
Police,Office supplies,01/19/2022,17.48,General Fund,Restock batteries,AMAZON.COM
Police,Office supplies,01/19/2022,16.50,General Fund,restock Tylenol,AMAZON.COM
Police,Office supplies,01/19/2022,73.98,General Fund,Restock coffee supplies,AMAZON.COM
Police,Office supplies,01/19/2022,19.48,General Fund,Office Supplies for the Invest,STAPLES
Police,Other general supplies,01/19/2022,2906.20,TABOR Fund,Storage Boxes for Drug  Vault,FLEXCON CORPORATION
Police,Other general supplies,01/19/2022,29.71,General Fund,CAT-Snacks for homeless-Could,KING SOOPERS #0127
Police,Other profess & tech services,01/19/2022,450.00,Grants Fund,CAT Subscription,CIVICORE
Police,Other profess & tech services,01/19/2022,1958.11,General Fund,Over the Phone Interpretation,LANGUAGE LINE
Police,Other profess & tech services,01/19/2022,652.70,General Fund,Over the Phone Interpretation,LANGUAGE LINE
Police,Other profess & tech services,01/19/2022,525.00,General Fund,Lateral testing (3),"I/O SOLUTIONS, INC."
Police,Other profess & tech services,01/19/2022,1787.50,General Fund,CRA - 2021-2 CRA - challenge c,SYMBOL ARTS WEB
Police,Other profess & tech services,01/19/2022,780.00,General Fund,Polygraphs - Civilians/,AMICH AND JENKS INC
Police,Other profess & tech services,01/19/2022,60.80,General Fund,CRA - Zoom meetings,LOGMEIN GOTOMEETING
Police,Other profess & tech services,01/19/2022,78.99,General Fund,CRA - pest control,WWP SPRAGUE PEST SOLUTION
Police,Other profess & tech services,01/19/2022,317.30,General Fund,Name Searches for the  Investi,TLO TRANSUNION
Police,Other profess & tech services,01/19/2022,292.90,General Fund,Name Searches for the Patrol D,TLO TRANSUNION
Police,Other profess & tech services,01/19/2022,6.00,General Fund,Name Searches for the Records,TLO TRANSUNION
Police,Other property services,01/19/2022,475.00,General Fund,Biohazard clean up for patrol,CRIME SCENE CLEANERS
Police,Other small tools & equipment,01/19/2022,584.35,General Fund,2021-2 LPD recruits - earpiece,RYDERS PUBLIC SAFE
Police,Other small tools & equipment,01/19/2022,1000.00,General Fund,Range targets,AMERICAN TARGET COMPAN
Police,Other small tools & equipment,01/19/2022,2393.30,General Fund,2021-2 LPD Recruits - batons,ADAMSON POLICE PRODUCTS
Police,Other small tools & equipment,01/19/2022,111.44,General Fund,Locker tools and supplies for,THE HOME DEPOT 1514
Police,Other small tools & equipment,01/19/2022,29.75,General Fund,Tools and supplies for repairs,THE HOME DEPOT 1514
Police,Other small tools & equipment,01/19/2022,109.99,General Fund,Drone Light Kit,FIREHOUSE TECHNOLOGY
Police,Other small tools & equipment,01/19/2022,34.00,General Fund,Drone Anti Collision Light,AMAZON.COM
Police,Other small tools & equipment,01/19/2022,198.99,General Fund,Drone Battery,AMAZON.COM
Police,Other small tools & equipment,01/19/2022,232.95,General Fund,K9 Leash,RAYALLEN.COM   JJDOG.COM
Police,Other small tools & equipment,01/19/2022,182.96,General Fund,K9 Flashlights,AMAZON.COM
Police,Other small tools & equipment,01/19/2022,80.40,General Fund,K9 light,ELITE K9 INC 2
Police,Other small tools & equipment,01/19/2022,2259.60,General Fund,N95 respirators,WW GRAINGER
Police,Other small tools & equipment,01/19/2022,2259.60,General Fund,N95 respirators,WW GRAINGER
Police,Other small tools & equipment,01/19/2022,50.00,General Fund,Person & Business Location Sea,REI LEXISNEXIS EPIC
Police,Other small tools & equipment,01/19/2022,667.60,General Fund,2021-2 - CRA - 9mm action trai,S.T. ACTION PRO INC
Police,Other small tools & equipment,01/19/2022,159.35,General Fund,"DOA bags, 4 cases, 3 on backor",THE HOME DEPOT 1514
Police,Other small tools & equipment,01/19/2022,39.76,General Fund,Wipes for vehicles after picki,WAL-MART
Police,Other small tools & equipment,01/19/2022,127.08,General Fund,"DOA bags, 3 cases that were on",THE HOME DEPOT 1514
Police,Other small tools & equipment,01/19/2022,241.77,General Fund,"300 nylon leashes, ACO vehicle",CAMPBELL PET COMPANY
Police,Other small tools & equipment,01/19/2022,167.11,General Fund,"backorder 200 nylon leashes, A",CAMPBELL PET COMPANY
Police,Other small tools & equipment,01/19/2022,35625.00,Grants Fund,"SM,MD,LG AVONC50 CBRN TWINPORT",CURTIS BLUE LINE
Police,Other small tools & equipment,01/19/2022,236.99,General Fund,Memorial Floral Wreath for Joh,VELDKAMPS FLOWERS & GIFTS
Police,Other small tools & equipment,01/19/2022,40.01,General Fund,Hotel/Motel - Mobile Cameras V,VERIZON WIRELESS
Police,Other small tools & equipment,01/19/2022,144.93,General Fund,7x9 poly heat seal booking bag,ASSOCIATED BAG COMPANY
Police,Other small tools & equipment,01/19/2022,1250.00,Grants Fund,Annual CDR Software Subscripti,SP   CRASH DATA GROUP
Police,Other small tools & equipment,01/19/2022,42.95,Grants Fund,garden hose for evaporative co,GIH GLOBALINDUSTRIALEQ
Police,Other small tools & equipment,01/19/2022,4124.07,Grants Fund,evaporative cooler for warehou,GIH GLOBALINDUSTRIALEQ
Police,Photo supplies,01/19/2022,498.81,General Fund,Loupes for Lab - 2021,SIRCHIE FINGER PRINT L
Police,Photo supplies,01/19/2022,430.47,General Fund,2021 - Crime scene processing,SIRCHIE FINGER PRINT L
Police,Photo supplies,01/19/2022,103.57,General Fund,2021 - Ladder for call out van,AMAZON.COM
Police,Photo supplies,01/19/2022,22.99,General Fund,2021   Alcatel cell phone  bat,AMAZON.COM
Police,Photo supplies,01/19/2022,-22.99,General Fund,2021  return - Alcatel cell ph,AMAZON.COM
Police,Postage & delivery,01/19/2022,97.49,General Fund,Shipping to Faro Technologies,FEDEX OFFICE  00004200
Police,Postage & delivery,01/19/2022,32.15,General Fund,Shipping for Small Box.,FEDEX OFFICE  00004200
Police,Postage & delivery,01/19/2022,25.89,General Fund,FedEx - MOM Police Dept in HI/,FEDEX OFFICE  00004200
Police,Postage & delivery,01/19/2022,216.42,General Fund,FedEx - Crime Lab/Faro Tech,FEDEX OFFICE  00004200
Police,"Printing, copying & binding",01/19/2022,3015.00,General Fund,Municipal Summons printing (15,RR DONNELLEY-PAYMETRIC
Police,"Printing, copying & binding",01/19/2022,3561.98,General Fund,"County Summons printing (16,05",RR DONNELLEY-PAYMETRIC
Police,"Printing, copying & binding",01/19/2022,74.75,General Fund,Colorado Peace Officers Handbo,BLUE 360 MEDIA
Police,Promotional expense,01/19/2022,249.00,General Fund,Service Plaque for A. Reichard,US RECOGNITION
Police,Promotional expense,01/19/2022,480.00,General Fund,Shadow Box for P. Tenney.,GRIZZLY CREEK CUSTOM FRAM
Police,Promotional expense,01/19/2022,340.00,General Fund,Shadow Box for P. Barben.,GRIZZLY CREEK CUSTOM FRAM
Police,Promotional expense,01/19/2022,68.00,General Fund,Acrylic Award for M. Griffith.,US RECOGNITION
Police,Repair & maintenance supplies,01/19/2022,599.88,General Fund,2021 adobe software renewal,ADOBE  ACROPRO SUBS
Police,Repair & maintenance supplies,01/19/2022,32.00,General Fund,2021 - Water service,ROCKY MOUNTAIN BOTTLED WA
Police,Repairs & maint - equipment,01/19/2022,1650.00,General Fund,Replacement Batteries for the,PF COMAC
Police,Repairs & maint - equipment,01/19/2022,1650.00,General Fund,Replacement Batteries for the,PF COMAC
Police,Special equipment,01/19/2022,4964.98,TABOR Fund,New commercial Freezer-Whse,"BLT RESTAURANT SUPPLY, LL"
Police,Training,01/19/2022,3833.31,General Fund,2021 FOR 518 SANS forensic Mac,SANS INSTITUTE/BETHESD
Police,Training,01/19/2022,-575.00,General Fund,2021 refund  Fabric class Bloo,BEVEL GARDNER ASSOCIATES
Police,Training,01/19/2022,1150.00,General Fund,2021   Fabric class Blood Patt,BEVEL GARDNER ASSOCIATES
Police,Training,01/19/2022,695.00,General Fund,40 hour OSHA Hazwoper class fo,RCKY MTN EDUCATN CENTER
Police,Training,01/19/2022,60.00,General Fund,BLS Training,COLO ADVANCED LIFE SUP
Police,Training,01/19/2022,150.00,General Fund,BLS Training-Cont. Can only pa,COLO ADVANCED LIFE SUP
Police,Training,01/19/2022,150.00,General Fund,Baggs Training-Forensics & Inv,LLRMI
Police,Travel - auto expense,01/19/2022,28.90,General Fund,Toll Charges - Investigation D,E 470 EXPRESS TOLLS
Police,Travel - other,01/19/2022,233.98,General Fund,Partial Order-SWAT Pants,AMAZON.COM
Police,Travel - other,01/19/2022,110.00,General Fund,2021-Travel for vehicle inspec,HOLIDAY INN EXPRESS
Police,Travel - other,01/19/2022,190.65,General Fund,2021 - Travel for vehicle insp,HOLIDAY INN EXPRESS
Police,Vehicle/Equipment Chargebacks,01/19/2022,8.99,General Fund,Car Wash,BEARS CAR WASH
Police,Vehicle/Equipment Chargebacks,01/19/2022,320.00,General Fund,Car Washes,IN  ALAMEDA EXPRESS LLC
Public Works,Building material supplies,01/19/2022,2221.70,General Fund,Traffic Signs - old traffic si,NORTHWEST SIGN RECYCLI
Public Works,Building material supplies,01/19/2022,130.00,General Fund,portolet(s),UNITED SITE SERVICES O
Public Works,Building material supplies,01/19/2022,527.76,General Fund,2021 Lumber,FRONT RANGE LUMBER
Public Works,Building material supplies,01/19/2022,116.36,General Fund,"REF# 00000011, Propane",AAA PROPANE SALES/RE
Public Works,Building material supplies,01/19/2022,32.10,General Fund,"Transaction number 29456,  Pai",THE HOME DEPOT 1514
Public Works,Building material supplies,01/19/2022,4388.16,General Fund,Transaction ID 389014-00420443,ROCKY MOUNTAIN FOREST PRO
Public Works,Building material supplies,01/19/2022,337.94,Stormwater Enterprise Fund,"Transaction number 51608, pain",THE HOME DEPOT 1514
Public Works,Building material supplies,01/19/2022,432.24,General Fund,"Transaction number 77600, fenc",THE HOME DEPOT 1514
Public Works,Building material supplies,01/19/2022,520.56,General Fund,"Transaction number 29435, t po",THE HOME DEPOT 1514
Public Works,Building material supplies,01/19/2022,1.98,General Fund,"Transaction number 00010071,",SAFEWAY #0892
Public Works,Building material supplies,01/19/2022,17.01,General Fund,"Ticket number 102163, Propane",AAA PROPANE SALES/RE
Public Works,Building material supplies,01/19/2022,125.80,General Fund,"Transaction 32427, fence repai",THE HOME DEPOT 1514
Public Works,Building material supplies,01/19/2022,7.26,General Fund,"Transaction number 10674734, 5",LOWES #01903
Public Works,Building material supplies,01/19/2022,308.15,General Fund,"Transaction number 2788075, Wh",LOWES #01903
Public Works,Building material supplies,01/19/2022,-39.63,General Fund,"Return 02351, tax correction",LOWES #01903
Public Works,Building material supplies,01/19/2022,568.03,General Fund,"Transaction number 2103378, co",LOWES #01903
Public Works,Building material supplies,01/19/2022,595.80,General Fund,"Transaction number 2184638, wh",LOWES #01903
Public Works,Building material supplies,01/19/2022,284.98,General Fund,"Transaction number 496495, tar",HARBOR FREIGHT TOOLS 230
Public Works,Building material supplies,01/19/2022,29.75,General Fund,"Order number 566412-0001, wedg",CONTRACTORS SUPPLY INC
Public Works,Building material supplies,01/19/2022,195.32,General Fund,"Transaction number 2636896,  c",LOWES #01903
Public Works,Building material supplies,01/19/2022,128.08,General Fund,"Transaction number 57803, 5in",THE HOME DEPOT 1514
Public Works,Building material supplies,01/19/2022,95.40,General Fund,"Order number H1514-200158, fen",THE HOME DEPOT 1514
Public Works,Building material supplies,01/19/2022,251.46,General Fund,"Invoice number 00061185, Catio",COBITCO INC
Public Works,Building material supplies,01/19/2022,96.15,General Fund,"Transaction number 47556, fenc",THE HOME DEPOT 1514
Public Works,Chem. & lab. supplies,01/19/2022,1008.00,Stormwater Enterprise Fund,SPILL CLEAN UP MICROBES,AMERICAN CLEANING TECH
Public Works,Cleaning supplies,01/19/2022,10.50,General Fund,08 Cleaning supplies,ALSCO INC.
Public Works,Cleaning supplies,01/19/2022,26.54,General Fund,18 Cleaning supplies,ALSCO INC.
Public Works,Cleaning supplies,01/19/2022,10.50,General Fund,32 Cleaning supplies,ALSCO INC.
Public Works,Cleaning supplies,01/19/2022,26.54,General Fund,40 Cleaning supplies,ALSCO INC.
Public Works,Clothing & Uniforms,01/19/2022,99.76,General Fund,35 Clothing & uniforms,INTERMOUNTAIN SAFETY SHOE
Public Works,Clothing & Uniforms,01/19/2022,2089.80,General Fund,33 Clothing & uniforms,CINTAS CORP # 060A
Public Works,Clothing & Uniforms,01/19/2022,213.22,General Fund,09 Clothing & uniforms,CINTAS CORP # 060A
Public Works,Clothing & Uniforms,01/19/2022,622.16,General Fund,SAFETY VESTS,TRINITY SCS INC
Public Works,Clothing & Uniforms,01/19/2022,39.42,Water Enterprise Fund,"Denny new hire clothing, trans",INTERMOUNTAIN SAFETY SHOE
Public Works,Computer software & supplies,01/19/2022,300.00,General Fund,2021 Cloud Lic#540260511285783,PAYPAL INC
Public Works,Computer software & supplies,01/19/2022,763.00,General Fund,Bluebeam Software Renewal-PW-B,APPLIED SOFTWARE
Public Works,Computer software & supplies,01/19/2022,616.28,Stormwater Enterprise Fund,AutoCAD Subscription Renewal -,DLT SOLUTIONS
Public Works,Computer software & supplies,01/19/2022,616.28,Stormwater Enterprise Fund,AutoCAD Subscription Renewal -,DLT SOLUTIONS
Public Works,Computer software & supplies,01/19/2022,616.28,Sewer Enterprise Fund,AutoCAD Subscription Renewal -,DLT SOLUTIONS
Public Works,Computer software & supplies,01/19/2022,1507.00,General Fund,Bluebeam Software Renewal - PW,APPLIED SOFTWARE
Public Works,Computer software & supplies,01/19/2022,922.00,General Fund,Bluebeam Software Renewal - PW,APPLIED SOFTWARE
Public Works,Computer software & supplies,01/19/2022,654.00,General Fund,Bluebeam Software Renewal - PW,APPLIED SOFTWARE
Public Works,Computer software & supplies,01/19/2022,3697.68,General Fund,AutoCAD Subscription Renewal -,DLT SOLUTIONS
Public Works,Computer software & supplies,01/19/2022,616.28,General Fund,AutoCAD Subscription Renewal -,DLT SOLUTIONS
Public Works,Computer software & supplies,01/19/2022,1232.56,General Fund,AutoCAD Subscription Renewal -,DLT SOLUTIONS
Public Works,Computer software & supplies,01/19/2022,1232.56,Capital Improvement Fund,AutoCAD Subscription Renewal -,DLT SOLUTIONS
Public Works,Construc Costs-Sewer Lines,01/19/2022,1110.00,Sewer Enterprise Fund,"Invoice number 6100001100, Pus",PRO PIPE SERVICES 61
Public Works,Construc Costs-Sewer Lines,01/19/2022,89136.38,Sewer Enterprise Fund,Clean and Video Inspection of,HYDRO PHYSICS PIPE INSPECTION SERVICES
Public Works,Consulting Costs-Streets/Roadw,01/19/2022,310.73,Grants Fund,Kipling/US 285 Hampden Median,PINYON ENVIRONMENTAL
Public Works,Contractor services,01/19/2022,1253.60,General Fund,2021 Generator Service Inv#42-,CUMMINS INC - 40
Public Works,Dues and memberships,01/19/2022,252.00,General Fund,MEMBERSHIP DUES,INTERNATIONAL RIGHT OF WA
Public Works,"Fuel, oil, lubricants",01/19/2022,313.00,General Fund,25 Oils,COLORADO PETROLEUM PRODUC
Public Works,"Fuel, oil, lubricants",01/19/2022,2070.05,General Fund,26 Oils,COLORADO PETROLEUM PRODUC
Public Works,"Fuel, oil, lubricants",01/19/2022,1286.60,General Fund,11 Oils,KENZ & LESLIE DISTRIBU
Public Works,"Fuel, oil, lubricants",01/19/2022,35.12,General Fund,19 Propane - tax corrected,ARAPAHOE RENTAL
Public Works,"Fuel, oil, lubricants",01/19/2022,-35.12,General Fund,17 Propane - tax corrected,ARAPAHOE RENTAL
Public Works,"Fuel, oil, lubricants",01/19/2022,32.67,General Fund,18 Propane,ARAPAHOE RENTAL
Public Works,"Fuel, oil, lubricants",01/19/2022,1444.80,General Fund,21 Oils,KENZ & LESLIE DISTRIBU
Public Works,Gasoline,01/19/2022,5839.68,General Fund,2021 Fuel,WEST METRO FIRE PROTECTION DISTRICT-FUEL
Public Works,Gasoline,01/19/2022,1541.50,General Fund,24 Oils,KENZ & LESLIE DISTRIBU
Public Works,Med. & phar. supplies,01/19/2022,101.08,General Fund,41 Med & phar. supplies,CINTAS CORP # 060A
Public Works,Misc expenses,01/19/2022,624.65,General Fund,38 Welding supplies,ROCKY MOUNTAIN AIR SOLUTI
Public Works,Misc expenses,01/19/2022,2899.00,General Fund,"Invoice number 1289237, push c",FERGUSON ENT #1116
Public Works,Motor Vehicles,01/19/2022,900.00,Equipment Replacement Fund,20 Body shop,WORLD COMPASS COLLISIO
Public Works,Motor Vehicles,01/19/2022,900.00,Equipment Replacement Fund,10 Body shop,WORLD COMPASS COLLISIO
Public Works,Motor Vehicles,01/19/2022,900.00,Equipment Replacement Fund,15 Body shop,WORLD COMPASS COLLISIO
Public Works,Motor Vehicles,01/19/2022,900.00,Equipment Replacement Fund,16 Body shop,WORLD COMPASS COLLISIO
Public Works,Motor Vehicles,01/19/2022,900.00,Equipment Replacement Fund,05 Body shop,WORLD COMPASS COLLISIO
Public Works,Office supplies,01/19/2022,22.55,General Fund,COFFEE SERVICE,ROCKY MOUNTAIN BOTTLED WA
Public Works,Office supplies,01/19/2022,19.99,Capital Improvement Fund,"Transaction number 050013, log",STAPLES
Public Works,Office supplies,01/19/2022,39.98,Capital Improvement Fund,"Transaction number 040936, Sci",STAPLES
Public Works,Office supplies,01/19/2022,114.50,Capital Improvement Fund,"Transaction number 086696, Off",STAPLES
Public Works,Office supplies,01/19/2022,26.68,General Fund,Order number 111-4506969-47962,AMAZON.COM
Public Works,Office supplies,01/19/2022,116.96,General Fund,"Transaction number 6719, Phone",BEST BUY MHT  00002105
Public Works,Office supplies,01/19/2022,326.11,General Fund,PRINTER CARTRIDGES,SOURCE OFFICE - VITAL
Public Works,Office supplies,01/19/2022,124.12,Stormwater Enterprise Fund,Order number 113-9060707-97178,AMAZON.COM
Public Works,Office supplies,01/19/2022,49.44,General Fund,36 Staff lunch,KING SOOPERS #0127
